Workbook

Sheet Lozen
B2: BAREM GİR >>> | C2: 72.5 | D2: 153.5 | E2: EV SAHİBİ | F2: DEPLASMAN | G2: TAHMİNLER | K2: =CONCATENATE(IF(E4>F4,"1","2")," / ",(IF(E5>F5,"1","2"))) -> 2 / 1 | S2: http://betistuta.club/Basketbol.aspx
B3: ANALİZ - SON 10 MAÇ ÜZERİNDEN | E3: =B7 -> Virtus Bologna | F3: =B19 -> Olimpia Milano | G3: =IF(E5+F5>D2,SUBSTITUTE(CONCATENATE(D2," - ","ÜST"),",","."),SUBSTITUTE(CONCATENATE(D2," - ","ALT"),",",".")) -> 153.5 - ALT | S3: https://www.nowgoal5.com/basketball/analysis/473934
A4: =INT(F4+E4) -> 88 | E4: =INT(('Betistuta İY'!AB30+Nowgoal5!M59+Most!N16+'0'!G5+İY!AM13)/5+1)+5 -> 43 | F4: =INT(('Betistuta İY'!AD30+Nowgoal5!L59+Most!P16+'0'!G4+İY!AN13)/5+1)+5 -> 45 | G4: =CONCATENATE("HT:"," ",A4) -> HT: 88
A5: =INT(E5+F5) -> 147 | E5: =INT(('Betistuta MS'!AB30+Nowgoal5!P8+Most!T16+RUS!G4+MS!AM13)/5-1) -> 76 | F5: =INT(('Betistuta MS'!AD30+Nowgoal5!S8+Most!V16+RUS!G5+MS!AN13)/5-1) -> 71 | G5: =CONCATENATE("FT:"," ",A5) -> FT: 147
B7: ='Betistuta MS'!A25 -> Virtus Bologna | G7: SONUÇ | I7: İY | J7: FORM | K7: TOPLAM
B8: 1 | C8: ='Betistuta MS'!B48 -> 2022-06-08 | D8: ='Betistuta MS'!A48 -> D | E8: ='Betistuta MS'!C48 -> Virtus Bolog | F8: ='Betistuta MS'!E48 -> Olimpia Mila | G8: ='Betistuta MS'!D48 -> 62-66 | I8: ='Betistuta MS'!F48 -> 27-28 | J8: =MS!N2 -> L | K8: =EV!AT2 -> 128
B9: 2 | C9: ='Betistuta MS'!B49 -> 2022-05-31 | D9: ='Betistuta MS'!A49 -> D | E9: ='Betistuta MS'!C49 -> Tortona | F9: ='Betistuta MS'!E49 -> Virtus Bolog | G9: ='Betistuta MS'!D49 -> 69-77 | I9: ='Betistuta MS'!F49 -> 33-47 | J9: =MS!N3 -> W | K9: =EV!AT3 -> 146
B10: 3 | C10: ='Betistuta MS'!B50 -> 2022-05-29 | D10: ='Betistuta MS'!A50 -> D | E10: ='Betistuta MS'!C50 -> Virtus Bolog | F10: ='Betistuta MS'!E50 -> Tortona | G10: ='Betistuta MS'!D50 -> 91-70 | I10: ='Betistuta MS'!F50 -> 41-35 | J10: =MS!N4 -> W | K10: =EV!AT4 -> 161
B11: 4 | C11: ='Betistuta MS'!B51 -> 2022-05-27 | D11: ='Betistuta MS'!A51 -> D | E11: ='Betistuta MS'!C51 -> Virtus Bolog | F11: ='Betistuta MS'!E51 -> Tortona | G11: ='Betistuta MS'!D51 -> 77-73 | I11: ='Betistuta MS'!F51 -> 35-38 | J11: =MS!N5 -> W | K11: =EV!AT5 -> 150
B12: 5 | C12: ='Betistuta MS'!B52 -> 2022-05-19 | D12: ='Betistuta MS'!A52 -> D | E12: ='Betistuta MS'!C52 -> Pesaro | F12: ='Betistuta MS'!E52 -> Virtus Bolog | G12: ='Betistuta MS'!D52 -> 55-75 | I12: ='Betistuta MS'!F52 -> 35-35 | J12: =MS!N6 -> W | K12: =EV!AT6 -> 130
B13: 6 | C13: ='Betistuta MS'!B53 -> 2022-05-17 | D13: ='Betistuta MS'!A53 -> D | E13: ='Betistuta MS'!C53 -> Virtus Bolog | F13: ='Betistuta MS'!E53 -> Pesaro | G13: ='Betistuta MS'!D53 -> 70-51 | I13: ='Betistuta MS'!F53 -> 31-25 | J13: =MS!N7 -> W | K13: =EV!AT7 -> 121
B14: 7 | C14: ='Betistuta MS'!B54 -> 2022-05-15 | D14: ='Betistuta MS'!A54 -> D | E14: ='Betistuta MS'!C54 -> Virtus Bolog | F14: ='Betistuta MS'!E54 -> Pesaro | G14: ='Betistuta MS'!D54 -> 82-76 | I14: ='Betistuta MS'!F54 -> 45-36 | J14: =MS!N8 -> W | K14: =EV!AT8 -> 158
B15: 8 | C15: ='Betistuta MS'!B55 -> 2022-05-11 | D15: ='Betistuta MS'!A55 -> D | E15: ='Betistuta MS'!C55 -> Virtus Bolog | F15: ='Betistuta MS'!E55 -> Bursaspor | G15: ='Betistuta MS'!D55 -> 80-67 | I15: ='Betistuta MS'!F55 -> 41-31 | J15: =MS!N9 -> W | K15: =EV!AT9 -> 147
B16: 9 | C16: ='Betistuta MS'!B56 -> 2022-05-08 | D16: ='Betistuta MS'!A56 -> D | E16: ='Betistuta MS'!C56 -> Virtus Bolog | F16: ='Betistuta MS'!E56 -> Brescia | G16: ='Betistuta MS'!D56 -> 79-57 | I16: ='Betistuta MS'!F56 -> 42-24 | J16: =MS!N10 -> W | K16: =EV!AT10 -> 136 | S16: =Nowgoal5!AC7 -> BELİRSİZ | V16: =Nowgoal5!AD7 -> ARALIK | Z16: =Nowgoal5!AE7 -> DİKKAT
B17: 10 | C17: ='Betistuta MS'!B57 -> 2022-05-06 | D17: ='Betistuta MS'!A57 -> D | E17: ='Betistuta MS'!C57 -> Sassari | F17: ='Betistuta MS'!E57 -> Virtus Bolog | G17: ='Betistuta MS'!D57 -> 108-73 | I17: ='Betistuta MS'!F57 -> 47-35 | J17: =MS!N11 -> L | K17: =EV!AT11 -> 181
B19: ='Betistuta MS'!A27 -> Olimpia Milano | G19: SONUÇ | I19: İY | J19: FORM | K19: TOPLAM | S19: ANALİZ ÖZETLERİ | V19: =E3 -> Virtus Bologna | X19: =F3 -> Olimpia Milano | Z19: =V19 -> Virtus Bologna | AB19: =X19 -> Olimpia Milano
B20: 1 | C20: ='Betistuta MS'!B67 -> 2022-06-08 | D20: ='Betistuta MS'!A67 -> D | E20: ='Betistuta MS'!C67 -> Virtus Bolog | F20: ='Betistuta MS'!E67 -> Olimpia Mila | G20: ='Betistuta MS'!D67 -> 62-66 | I20: ='Betistuta MS'!F67 -> 27-28 | J20: =MS!N16 -> W | K20: =DEP!AT2 -> 128 | S20: MOST ANALİZİ | V20: =Most!N16 -> 42 | X20: =Most!P16 -> 39 | Z20: =Most!T16 -> 78 | AB20: =Most!V16 -> 76
B21: 2 | C21: ='Betistuta MS'!B68 -> 2022-06-01 | D21: ='Betistuta MS'!A68 -> D | E21: ='Betistuta MS'!C68 -> Sassari | F21: ='Betistuta MS'!E68 -> Olimpia Mila | G21: ='Betistuta MS'!D68 -> 69-87 | I21: ='Betistuta MS'!F68 -> 34-47 | J21: =MS!N17 -> W | K21: =DEP!AT3 -> 156 | S21: BETİSTUTA ANALİZİ #1 | V21: ='Betistuta İY'!AB30 -> 40 | X21: ='Betistuta İY'!AD30 -> 39 | Z21: ='Betistuta MS'!AB30 -> 72 | AB21: ='Betistuta MS'!AD30 -> 76
B22: 3 | C22: ='Betistuta MS'!B69 -> 2022-05-30 | D22: ='Betistuta MS'!A69 -> D | E22: ='Betistuta MS'!C69 -> Olimpia Mila | F22: ='Betistuta MS'!E69 -> Sassari | G22: ='Betistuta MS'!D69 -> 91-82 | I22: ='Betistuta MS'!F69 -> 41-49 | J22: =MS!N18 -> W | K22: =DEP!AT4 -> 173 | S22: BETİSTUTA ANALİZİ #2 | V22: ='0'!G4 -> 43 | X22: ='0'!G5 -> 37 | Z22: =RUS!G4 -> 81 | AB22: =RUS!G5 -> 69
B23: 4 | C23: ='Betistuta MS'!B70 -> 2022-05-28 | D23: ='Betistuta MS'!A70 -> D | E23: ='Betistuta MS'!C70 -> Olimpia Mila | F23: ='Betistuta MS'!E70 -> Sassari | G23: ='Betistuta MS'!D70 -> 88-71 | I23: ='Betistuta MS'!F70 -> 50-42 | J23: =MS!N19 -> W | K23: =DEP!AT5 -> 159 | S23: BETİSTUTA ANALİZİ #3 | V23: =İY!AM13 -> 38 | X23: =İY!AN13 -> 36 | Z23: =MS!AM13 -> 75 | AB23: =MS!AN13 -> 73
B24: 5 | C24: ='Betistuta MS'!B71 -> 2022-05-19 | D24: ='Betistuta MS'!A71 -> D | E24: ='Betistuta MS'!C71 -> Reggiana | F24: ='Betistuta MS'!E71 -> Olimpia Mila | G24: ='Betistuta MS'!D71 -> 59-89 | I24: ='Betistuta MS'!F71 -> 27-43 | J24: =MS!N20 -> W | K24: =DEP!AT6 -> 148 | S24: NOWGOAL5 ANALİZİ | V24: =Nowgoal5!M59 -> 30 | X24: =Nowgoal5!L59 -> 39 | Z24: =Nowgoal5!P8 -> 79 | AB24: =Nowgoal5!S8 -> 66
B25: 6 | C25: ='Betistuta MS'!B72 -> 2022-05-17 | D25: ='Betistuta MS'!A72 -> D | E25: ='Betistuta MS'!C72 -> Olimpia Mila | F25: ='Betistuta MS'!E72 -> Reggiana | G25: ='Betistuta MS'!D72 -> 91-65 | I25: ='Betistuta MS'!F72 -> 57-32 | J25: =MS!N21 -> W | K25: =DEP!AT7 -> 156 | S25: ORTALAMA ANALİZ | V25: =SUM(V20:W24)/5 -> 38.6 | X25: =SUM(X20:Y24)/5 -> 38 | Z25: =SUM(Z20:AA24)/5 -> 77 | AB25: =SUM(AB20:AC24)/5 -> 72
B26: 7 | C26: ='Betistuta MS'!B73 -> 2022-05-15 | D26: ='Betistuta MS'!A73 -> D | E26: ='Betistuta MS'!C73 -> Olimpia Mila | F26: ='Betistuta MS'!E73 -> Reggiana | G26: ='Betistuta MS'!D73 -> 91-82 | I26: ='Betistuta MS'!F73 -> 51-40 | J26: =MS!N22 -> W | K26: =DEP!AT8 -> 173 | S26: GENEL ANALİZ | V26: =E4 -> 43 | X26: =F4 -> 45 | Z26: =E5 -> 76 | AB26: =F5 -> 71
B27: 8 | C27: ='Betistuta MS'!B74 -> 2022-05-08 | D27: ='Betistuta MS'!A74 -> D | E27: ='Betistuta MS'!C74 -> Venezia | F27: ='Betistuta MS'!E74 -> Olimpia Mila | G27: ='Betistuta MS'!D74 -> 69-74 | I27: ='Betistuta MS'!F74 -> 41-32 | J27: =MS!N23 -> W | K27: =DEP!AT9 -> 143 | S27: SONUÇ | V27: =SUM(V25:W26)/2 -> 40.8 | X27: =SUM(X25:Y26)/2 -> 41.5 | Z27: =SUM(Z25:AA26)/2 -> 76.5 | AB27: =SUM(AB25:AC26)/2 -> 71.5
B28: 9 | C28: ='Betistuta MS'!B75 -> 2022-05-04 | D28: ='Betistuta MS'!A75 -> D | E28: ='Betistuta MS'!C75 -> Treviso | F28: ='Betistuta MS'!E75 -> Olimpia Mila | G28: ='Betistuta MS'!D75 -> 80-74 | I28: ='Betistuta MS'!F75 -> 29-32 | J28: =MS!N24 -> L | K28: =DEP!AT10 -> 154 | S28: ALT / ÜST | V28: =IF(V27+X27>C2,"İLK YARI ÜST","İLK YARI ALT") -> İLK YARI ÜST | Z28: =IF(Z27+AB27>D2,"MAÇ SONUCU ÜST","MAÇ SONUCU ALT") -> MAÇ SONUCU ALT
B29: 10 | C29: ='Betistuta MS'!B76 -> 2022-05-01 | D29: ='Betistuta MS'!A76 -> D | E29: ='Betistuta MS'!C76 -> Olimpia Mila | F29: ='Betistuta MS'!E76 -> Brindisi | G29: ='Betistuta MS'!D76 -> 92-87 | I29: ='Betistuta MS'!F76 -> 44-50 | J29: =MS!N25 -> W | K29: =DEP!AT11 -> 179

Sheet Betistuta MS
M1: BAREM | N1: =Lozen!D2 -> 153.5 | O1: =Lozen!C2 -> 72.5
A4: Skip Navigation Links
A6: Betistuta
A7: Futbol
A8: Basketbol
A9: Voleybol
A10: Hentbol
A11: BuzHokeyi
A12: Beyzbol
A13: Tenis
A14: BOYZ(F)
A15: BOYZ(B)
A16: Orandelli
A17: Gol Oldu mu ?
A18: Iletisim
A21: Italy -Lega A
A23: 10.06.2022-21:00
A25: Virtus Bologna
A27: Olimpia Milano
M28: SKOR 1 | N28: =((X53*X51)+(X73*X51))*0.5 -> 75.24901961 | O28: =((X72*X70)+(X54*X70))*0.5 -> 78.5480643 | P28: =MROUND(SUM(N28,O28),1) -> 154 | Q28: =ABS(N28-O28) -> 3.299044697 | R28: =T57 -> 85.1 | S28: =T76 -> 91.8 | T28: =MROUND(SUM(R28,S28),1) -> 177 | U28: =ABS(R28-S28) -> 6.7 | V28: EV | X28: DEP | Z28: BAREM | AA28: =N1 -> 153.5 | AB28: =AB48 -> Virtus Bologna | AC28: =AB30+AD30 -> 148 | AD28: =AD48 -> Olimpia Milano | AE28: ALT | AF28: ÜST | AG28: MS1 | AH28: MS2 | AI28: EV - FORM | AJ28: DEP - FORM | AK28: EV SAYI | AL28: DEP SAYI
M29: SKOR2 | N29: =((X53*X51)+(X69*X51))*0.5 -> 74.03702304 | O29: =((X72*X70)+(X50*X70))*0.5 -> 79.71898629 | P29: =MROUND(SUM(N29,O29),1) -> 154 | Q29: =ABS(N29-O29) -> 5.681963255 | R29: =N32 -> 73.31551237 | S29: =O32 -> 75.27722364 | T29: =MROUND(SUM(R29,S29),1) -> 149 | U29: =ABS(R29-S29) -> 1.961711267 | V29: =IFERROR(VALUE(LEFT(D136,SEARCH("-",D136,1)-1)),"") -> 62 | X29: =IFERROR(VALUE(RIGHT(D136,LEN(D136)-SEARCH("-",D136,SEARCH("-",D136,1)-1))),"") -> 66 | AE29: =1-AF29 -> 0.6525636945 | AF29: =_xlfn.POISSON.DIST(AC28,AA28,TRUE) -> 0.3474363055 | AG29: =_xlfn.POISSON.DIST(AB30,AD30,TRUE) -> 0.3500000225 | AH29: =1-AG29 -> 0.6499999775 | AI29: =COUNTIF(V48:V57,"W")/10-2.28% -> 0.7772 | AJ29: =COUNTIF(V67:V76,"W")/10-2.28% -> 0.8772 | AK29: =R31 -> 79 | AL29: =S31 -> 84
A30: Beklenen Skor IY/MS | M30: SKOR3 | N30: =X51*X69 -> 70.10934019 | O30: =X50*X70 -> 70.0751773 | P30: 140 | Q30: 0.03416288355 | R30: =AVERAGE(R28:R29) -> 79.20775619 | S30: =AVERAGE(S28:S29) -> 83.53861182 | T30: =MROUND(SUM(R30,S30),1) -> 163 | U30: =ABS(R30-S30) -> 4.330855633 | V30: =IFERROR(VALUE(LEFT(D137,SEARCH("-",D137,1)-1)),"") -> 83 | X30: =IFERROR(VALUE(RIGHT(D137,LEN(D137)-SEARCH("-",D137,SEARCH("-",D137,1)-1))),"") -> 65 | AB30: =AB54-1 -> 72 | AC30: =U31 -> 5 | AD30: =AD54-1 -> 76 | AE30: ALT - GÜVEN | AF30: ÜST - GÜVEN | AG30: MİN. SAYI | AH30: MAK. SAYI | AI30: MİN. FARK | AJ30: MAK. FARK | AK30: EV SON SAYI | AL30: DEP SON SAYI
A31: 39-36 / 75-76 | M31: SKOR4 | N31: =(X51+X71)*0.5 -> 73.86666667 | O31: =(X52+X70)*0.5 -> 72.76666667 | P31: 147 | Q31: 1.1 | R31: =MROUND(R30,1) -> 79 | S31: =MROUND(S30,1) -> 84 | T31: =MROUND(T30,1) -> 163 | U31: =ABS(R31-S31) -> 5 | V31: =IFERROR(VALUE(LEFT(D138,SEARCH("-",D138,1)-1)),"") -> 73 | X31: =IFERROR(VALUE(RIGHT(D138,LEN(D138)-SEARCH("-",D138,SEARCH("-",D138,1)-1))),"") -> 62 | AE31: =1-AF31 -> 0.0528 | AF31: =((COUNTIF(U67:U76,"UST"))+(COUNTIF(U48:U57,"UST")))/20-5.28% -> 0.9472 | AG31: =INT(R32+AL54/2) -> 146 | AH31: =INT(T32+AL54) -> 189 | AI31: =AL52 -> 4 | AJ31: =AL53 -> 18 | AK31: =INT(AL29-AL54+(AI52*AI29)/5.5) -> 89 | AL31: =INT(AK29-AL54+(AI52*AJ29)/5.5) -> 86
A32: 19-18,20-18,18-22,18-18 | M32: ORTALAMA | N32: =AVERAGE(N28:N31) -> 73.31551237 | O32: =AVERAGE(O28:O31) -> 75.27722364 | P32: 148.75 | Q32: 2.528792709 | R32: =MROUND(MIN(T28:T31,P28:P31),1) -> 140 | S32: =MROUND(MIN(U28:U31,Q28:Q31),1) -> 0 | T32: =MROUND(MAX(T28:T31,P28:P31),1) -> 177 | U32: =MROUND(MAX(U28:U31,Q28:Q31),1) -> 7 | V32: =IFERROR(VALUE(LEFT(D139,SEARCH("-",D139,1)-1)),"") -> 76 | X32: =IFERROR(VALUE(RIGHT(D139,LEN(D139)-SEARCH("-",D139,SEARCH("-",D139,1)-1))),"") -> 58
V33: =IFERROR(VALUE(LEFT(D140,SEARCH("-",D140,1)-1)),"") -> 68 | X33: =IFERROR(VALUE(RIGHT(D140,LEN(D140)-SEARCH("-",D140,SEARCH("-",D140,1)-1))),"") -> 73
B34: Takım Gücü IY/MS
A35: 460.6 /673.7 | B35: Maç Sonucu
A36: 39-38 / 75-68
A37: 18-23,21-15,17-16,19-14 | B37: Takım Gücü IY/MS
A38: 421 /648
B39: Sonraki Maç
A40: 6/12/2022-D-Olimpia Milano
A41: Lega A | C41: Sonraki Maç
A42: 6/12/2022-E-Virtus Bologna
A43: Lega A
B47: Tarih | C47: EvSahibi | D47: MS | E47: Deplasman | F47: İY | M47: EV | N47: DEP | O47: EVİN ATTIĞI | P47: EVİN YEDİĞİ | Q47: EV SKOR | W47: EV'İN TOPLAM ATTIĞI | X47: =Q63 -> 1128 | Z47: =A134 -> Rekabet Analizi | AA47: TARİH | AB47: EV SAHİBİ | AC47: MS | AD47: DEPLASMAN | AE47: İY | AF47: LİG | AG47: EV | AH47: DEP | AI47: TOPLAM | AJ47: ALT / ÜST | AK47: MAÇ SONUCU | AL47: HANDİKAP
A48: D | B48: 2022-06-08 | C48: Virtus Bolog | D48: 62-66 | E48: Olimpia Mila | F48: 27-28 | M48: =IFERROR(VALUE(LEFT(D48,SEARCH("-",D48,1)-1)),"") -> 62 | N48: =IFERROR(VALUE(RIGHT(D48,LEN(D48)-SEARCH("-",D48,SEARCH("-",D48,1)-1))),"") -> 66 | O48: =IF(OR(M48="",N48=""),"",IF(C48=$C$86,M48,N48)) -> 62 | P48: =IF(OR(M48="",N48=""),"",IF(C48=$C$86,N48,M48)) -> 66 | Q48: =O48 -> 62 | R48: =P48 -> 66 | S48: =AVERAGE(Q48:Q57)+3.5 -> 80.1 | T48: =IF(Q48>R48,S48+1,S48-1.5) -> 78.6 | U48: =IF(AND(Q48+R48>$K$10),"UST","ALT") -> UST | V48: =IF(Q48>R48,"W","") ->  | W48: EV'İN TOPLAM YEDİĞİ | X48: =R63 -> 1016 | AA48: =B136 -> 2022-06-08 | AB48: =C136 -> Virtus Bologna | AC48: 62-66 | AD48: Olimpia Milano | AE48: 27-28 | AF48: Lega A | AG48: =V29 -> 62 | AH48: =X29 -> 66 | AI48: =AG48+AH48 -> 128 | AJ48: =IF(AI48="","",IF(AI48>$AA$28,"UST","ALT")) -> ALT | AK48: =IF(AG48>AH48,"MS1",IF(AH48>AG48,"MS2","")) -> MS2 | AL48: =IFERROR(ABS(AG48-AH48),"") -> 4
A49: D | B49: 2022-05-31 | C49: Tortona | D49: 69-77 | E49: Virtus Bolog | F49: 33-47 | M49: =IFERROR(VALUE(LEFT(D49,SEARCH("-",D49,1)-1)),"") -> 69 | N49: =IFERROR(VALUE(RIGHT(D49,LEN(D49)-SEARCH("-",D49,SEARCH("-",D49,1)-1))),"") -> 77 | O49: =IF(OR(M49="",N49=""),"",IF(C49=$C$86,M49,N49)) -> 77 | P49: =IF(OR(M49="",N49=""),"",IF(C49=$C$86,N49,M49)) -> 69 | Q49: =O49 -> 77 | R49: =P49 -> 69 | T49: =IF(Q49>R49,T48+1,T48-1.5) -> 79.6 | U49: UST | V49: =IF(Q49>R49,"W","") -> W | W49: EV ATTIĞI / EV YEDİĞİ | X49: =X47/X48 -> 1.11023622 | AA49: =B137 -> 2022-04-10 | AB49: =C137 -> Virtus Bologna | AC49: =D137 -> 83-65 | AD49: =E137 -> Olimpia Milano | AE49: =F137 -> 46-34 | AF49: =G137 -> Lega A | AG49: =V30 -> 83 | AH49: =X30 -> 65 | AI49: =AG49+AH49 -> 148 | AJ49: =IF(AI49="","",IF(AI49>$AA$28,"UST","ALT")) -> ALT | AK49: =IF(AG49>AH49,"MS1",IF(AH49>AG49,"MS2","")) -> MS1 | AL49: =IFERROR(ABS(AG49-AH49),"") -> 18
A50: D | B50: 2022-05-29 | C50: Virtus Bolog | D50: 91-70 | E50: Tortona | F50: 41-35 | M50: 91 | N50: 70 | O50: 91 | P50: 70 | Q50: 91 | R50: 70 | T50: =IF(Q50>R50,T49+1,T49-1.5) -> 80.6 | U50: UST | V50: =IF(Q50>R50,"W","") -> W | W50: EV YEDİĞİ / EV ATTIĞI | X50: =X48/X47 -> 0.9007092199 | AA50: 2021-06-11 | AB50: Virtus Bologna | AC50: 73-62 | AD50: Olimpia Milano | AE50: 41-43 | AF50: Lega A | AG50: 73 | AH50: 62 | AI50: 135 | AJ50: =IF(AI50="","",IF(AI50>$AA$28,"UST","ALT")) -> ALT | AK50: MS1 | AL50: 11
A51: D | B51: 2022-05-27 | C51: Virtus Bolog | D51: 77-73 | E51: Tortona | F51: 35-38 | M51: 77 | N51: 73 | O51: 77 | P51: 73 | Q51: 77 | R51: 73 | T51: =IF(Q51>R51,T50+1,T50-1.5) -> 81.6 | U51: UST | V51: W | W51: EV'İN ORT. ATTIĞI | X51: =AVERAGE(Q48:Q62) -> 75.2 | AA51: 2021-06-09 | AB51: Virtus Bologna | AC51: 76-58 | AD51: Olimpia Milano | AE51: 37-34 | AF51: Lega A | AG51: 76 | AH51: 58 | AI51: =AG51+AH51 -> 134 | AJ51: =IF(AI51="","",IF(AI51>$AA$28,"UST","ALT")) -> ALT | AK51: MS1 | AL51: 18
A52: D | B52: 2022-05-19 | C52: Pesaro | D52: 55-75 | E52: Virtus Bolog | F52: 35-35 | M52: 55 | N52: 75 | O52: 75 | P52: 55 | Q52: 75 | R52: 55 | T52: 82.6 | U52: UST | V52: W | W52: EV'İN ORT. YEDİĞİ | X52: =AVERAGE(R48:R62) -> 67.73333333 | AH52: MIN | AI52: =MIN(AI48:AI51) -> 128 | AL52: =MIN(AL48:AL51) -> 4
A53: D | B53: 2022-05-17 | C53: Virtus Bolog | D53: 70-51 | E53: Pesaro | F53: 31-25 | M53: 70 | N53: 51 | O53: 70 | P53: 51 | Q53: 70 | R53: 51 | T53: 83.6 | U53: UST | V53: W | W53: EV'İN TOPLAM ATTIĞI / DEP'İN TOPLAM YEDİĞİ | X53: =X47/X67 -> 1.036764706 | AH53: MAX | AI53: =MAX(AI48:AI51) -> 148 | AL53: =MAX(AL48:AL51) -> 18
A54: D | B54: 2022-05-15 | C54: Virtus Bolog | D54: 82-76 | E54: Pesaro | F54: 45-36 | M54: 82 | N54: 76 | O54: 82 | P54: 76 | Q54: 82 | R54: 76 | T54: 84.6 | U54: UST | V54: W | W54: EV'İN TOPLAM YEDİĞİ / DEP'İN TOPLAM ATTIĞI | X54: =X48/X66 -> 0.8706083976 | AB54: =INT((AK29+AL31)/2-AL54/1.5)-1 -> 73 | AD54: =INT((AL29+AK31)/2-AL54/1.5)-1 -> 77 | AH54: ORT. | AI54: =AVERAGE(AI48:AI51) -> 136.25 | AL54: =AVERAGE(AL48:AL51) -> 12.75
A55: D | B55: 2022-05-11 | C55: Virtus Bolog | D55: 80-67 | E55: Bursaspor | F55: 41-31 | M55: 80 | N55: 67 | O55: 80 | P55: 67 | Q55: 80 | R55: 67 | T55: 85.6 | U55: UST | V55: W
A56: D | B56: 2022-05-08 | C56: Virtus Bolog | D56: 79-57 | E56: Brescia | F56: 42-24 | M56: 79 | N56: 57 | O56: 79 | P56: 57 | Q56: 79 | R56: 57 | T56: 86.6 | U56: UST | V56: W
A57: D | B57: 2022-05-06 | C57: Sassari | D57: 108-73 | E57: Virtus Bolog | F57: 47-35 | M57: 108 | N57: 73 | O57: 73 | P57: 108 | Q57: 73 | R57: 108 | T57: =IF(Q57>R57,T56+1,T56-1.5) -> 85.1 | U57: UST
A58: D | B58: 2022-05-04 | C58: Valencia | D58: 73-83 | E58: Virtus Bolog | F58: 38-50 | M58: 73 | N58: 83 | O58: 83 | P58: 73 | Q58: =V29 -> 62 | R58: =X29 -> 66
A59: D | B59: 2022-04-29 | C59: Treviso | D59: 76-113 | E59: Virtus Bolog | F59: 34-52 | M59: 76 | N59: 113 | O59: 113 | P59: 76 | Q59: =V30 -> 83 | R59: =X30 -> 65
A60: D | B60: 2022-04-26 | C60: Virtus Bolog | D60: 83-77 | E60: Ulm | F60: 43-45 | M60: 83 | N60: 77 | O60: 83 | P60: 77 | Q60: =V31 -> 73 | R60: =X31 -> 62
A61: D | B61: 2022-04-22 | C61: Virtus Bolog | D61: 101-83 | E61: Tortona | F61: 49-53 | M61: 101 | N61: 83 | O61: 101 | P61: 83 | Q61: =V32 -> 76 | R61: =X32 -> 58
A62: D | B62: 2022-04-20 | C62: Virtus Bolog | D62: 75-67 | E62: Lietkabelis | F62: 39-34 | M62: 75 | N62: 67 | O62: 75 | P62: 67 | Q62: =V33 -> 68 | R62: =X33 -> 73
B63: G | C63: M | D63: AS | E63: YS | M63: =SUM(M48:M62) -> 1181 | N63: =SUM(N48:N62) -> 1108 | O63: =SUM(O48:O62) -> 1221 | P63: =SUM(P48:P62) -> 1068 | Q63: =SUM(Q48:Q62) -> 1128 | R63: =SUM(R48:R62) -> 1016 | S63: 80.1 | T63: 828.5
A64: İlk Yarı | B64: 9 | C64: 5 | D64: 612 | E64: 536
A65: Maç Sonu | B65: 13 | C65: 2 | D65: 1221 | E65: 1068
B66: Tarih | C66: EvSahibi | D66: MS | E66: Deplasman | F66: İY | M66: EV | N66: DEP | O66: DEP'İN ATTIĞI | P66: DEP'İN YEDİĞİ | Q66: DEP SKOR | W66: DEP'İN TOPLAM ATTIĞI | X66: =Q82 -> 1167
A67: D | B67: 2022-06-08 | C67: Virtus Bolog | D67: 62-66 | E67: Olimpia Mila | F67: 27-28 | M67: =IFERROR(VALUE(LEFT(D67,SEARCH("-",D67,1)-1)),"") -> 62 | N67: =IFERROR(VALUE(RIGHT(D67,LEN(D67)-SEARCH("-",D67,SEARCH("-",D67,1)-1))),"") -> 66 | O67: =IF(OR(M67="",N67=""),"",IF(C67=$E$110,M67,N67)) -> 66 | P67: =IF(OR(M67="",N67=""),"",IF(C67=$E$110,N67,M67)) -> 62 | Q67: =O67 -> 66 | R67: =P67 -> 62 | S67: =AVERAGE(Q67:Q76) -> 84.3 | T67: =IF(Q67>R67,S67+1,S67-1.5) -> 85.3 | U67: =IF(AND(Q67+R67>$K$10),"UST","ALT") -> UST | V67: =IF(Q67>R67,"W","") -> W | W67: DEP'İN TOPLAM YEDİĞİ | X67: =R82 -> 1088
A68: D | B68: 2022-06-01 | C68: Sassari | D68: 69-87 | E68: Olimpia Mila | F68: 34-47 | M68: =IFERROR(VALUE(LEFT(D68,SEARCH("-",D68,1)-1)),"") -> 69 | N68: =IFERROR(VALUE(RIGHT(D68,LEN(D68)-SEARCH("-",D68,SEARCH("-",D68,1)-1))),"") -> 87 | O68: =IF(OR(M68="",N68=""),"",IF(C68=$E$110,M68,N68)) -> 87 | P68: =IF(OR(M68="",N68=""),"",IF(C68=$E$110,N68,M68)) -> 69 | Q68: 87 | R68: 69 | T68: =IF(Q68>R68,T67+1,T67-1.5) -> 86.3 | U68: UST | V68: W | W68: DEP ATTIĞI / DEP YEDİĞİ | X68: =X66/X67 -> 1.072610294
A69: D | B69: 2022-05-30 | C69: Olimpia Mila | D69: 91-82 | E69: Sassari | F69: 41-49 | M69: 91 | N69: 82 | O69: 91 | P69: 82 | Q69: 91 | R69: 82 | T69: =IF(Q69>R69,T68+1,T68-1.5) -> 87.3 | U69: UST | V69: W | W69: DEP YEDİĞİ / DEP ATTIĞI | X69: =X67/X66 -> 0.9323050557
A70: D | B70: 2022-05-28 | C70: Olimpia Mila | D70: 88-71 | E70: Sassari | F70: 50-42 | M70: 88 | N70: 71 | O70: 88 | P70: 71 | Q70: 88 | R70: 71 | T70: =IF(Q70>R70,T69+1,T69-1.5) -> 88.3 | U70: UST | V70: W | W70: DEP'İN ORT. ATTIĞI | X70: =AVERAGE(Q67:Q81) -> 77.8
A71: D | B71: 2022-05-19 | C71: Reggiana | D71: 59-89 | E71: Olimpia Mila | F71: 27-43 | M71: 59 | N71: 89 | O71: 89 | P71: 59 | Q71: 89 | R71: 59 | T71: 89.3 | U71: UST | V71: W | W71: DEP'İN ORT. YEDİĞİ | X71: =AVERAGE(R67:R81) -> 72.53333333
A72: D | B72: 2022-05-17 | C72: Olimpia Mila | D72: 91-65 | E72: Reggiana | F72: 57-32 | M72: 91 | N72: 65 | O72: 91 | P72: 65 | Q72: 91 | R72: 65 | T72: 90.3 | U72: UST | V72: W | W72: DEP'İN TOPLAM ATTIĞI / EV'İN TOPLAM YEDİĞİ | X72: =X66/X48 -> 1.148622047
A73: D | B73: 2022-05-15 | C73: Olimpia Mila | D73: 91-82 | E73: Reggiana | F73: 51-40 | M73: 91 | N73: 82 | O73: 91 | P73: 82 | Q73: 91 | R73: 82 | T73: 91.3 | U73: UST | V73: W | W73: DEP'İN TOPLAM YEDİĞİ / EV'İN TOPLAM ATTIĞI | X73: =X67/X47 -> 0.9645390071
A74: D | B74: 2022-05-08 | C74: Venezia | D74: 69-74 | E74: Olimpia Mila | F74: 41-32 | M74: 69 | N74: 74 | O74: 74 | P74: 69 | Q74: 74 | R74: 69 | T74: 92.3 | U74: UST | V74: W
A75: D | B75: 2022-05-04 | C75: Treviso | D75: 80-74 | E75: Olimpia Mila | F75: 29-32 | M75: 80 | N75: 74 | O75: 74 | P75: 80 | Q75: 74 | R75: 80 | T75: 90.8 | U75: UST
A76: D | B76: 2022-05-01 | C76: Olimpia Mila | D76: 92-87 | E76: Brindisi | F76: 44-50 | M76: 92 | N76: 87 | O76: 92 | P76: 87 | Q76: 92 | R76: 87 | T76: =IF(Q76>R76,T75+1,T75-1.5) -> 91.8 | U76: UST | V76: W
A77: D | B77: 2022-04-28 | C77: Anadolu Efes | D77: 75-70 | E77: Olimpia Mila | F77: 42-43 | M77: 75 | N77: 70 | O77: 70 | P77: 75 | Q77: =X29 -> 66 | R77: =V29 -> 62
A78: D | B78: 2022-04-26 | C78: Anadolu Efes | D78: 77-65 | E78: Olimpia Mila | F78: 42-35 | M78: 77 | N78: 65 | O78: 65 | P78: 77 | Q78: =X30 -> 65 | R78: =V30 -> 83
A79: D | B79: 2022-04-23 | C79: Reggiana | D79: 63-67 | E79: Olimpia Mila | F79: 29-39 | M79: 63 | N79: 67 | O79: 67 | P79: 63 | Q79: =X31 -> 62 | R79: =V31 -> 73
A80: D | B80: 2022-04-21 | C80: Olimpia Mila | D80: 73-66 | E80: Anadolu Efes | F80: 33-33 | M80: 73 | N80: 66 | O80: 73 | P80: 66 | Q80: =X32 -> 58 | R80: =V32 -> 76
A81: D | B81: 2022-04-19 | C81: Olimpia Mila | D81: 48-64 | E81: Anadolu Efes | F81: 26-29 | M81: 48 | N81: 64 | O81: 48 | P81: 64 | Q81: =X33 -> 73 | R81: =V33 -> 68
B82: G | C82: M | D82: AS | E82: YS | M82: =SUM(M67:M81) -> 1128 | N82: =SUM(N67:N81) -> 1109 | O82: =SUM(O67:O81) -> 1166 | P82: =SUM(P67:P81) -> 1071 | Q82: =SUM(Q67:Q81) -> 1167 | R82: =SUM(R67:R81) -> 1088 | S82: =SUM(S67:S81) -> 84.3 | T82: =SUM(T67:T81) -> 893
A83: İlk Yarı | B83: 9 | C83: 5 | D83: 601 | E83: 546
A84: Maç Sonu | B84: 11 | C84: 4 | D84: 1166 | E84: 1071
B85: Tarih | C85: EvSahibi | D85: MS | E85: Deplasman | F85: İY
A86: D | B86: 2022-06-08 | C86: Virtus Bolog | D86: 62-66 | E86: Olimpia Mila | F86: 27-28
A87: D | B87: 2022-05-29 | C87: Virtus Bolog | D87: 91-70 | E87: Tortona | F87: 41-35
A88: D | B88: 2022-05-27 | C88: Virtus Bolog | D88: 77-73 | E88: Tortona | F88: 35-38
A89: D | B89: 2022-05-17 | C89: Virtus Bolog | D89: 70-51 | E89: Pesaro | F89: 31-25
A90: D | B90: 2022-05-15 | C90: Virtus Bolog | D90: 82-76 | E90: Pesaro | F90: 45-36
A91: D | B91: 2022-05-11 | C91: Virtus Bolog | D91: 80-67 | E91: Bursaspor | F91: 41-31
A92: D | B92: 2022-05-08 | C92: Virtus Bolog | D92: 79-57 | E92: Brescia | F92: 42-24
A93: D | B93: 2022-04-26 | C93: Virtus Bolog | D93: 83-77 | E93: Ulm | F93: 43-45
A94: D | B94: 2022-04-22 | C94: Virtus Bolog | D94: 101-83 | E94: Tortona | F94: 49-53
A95: D | B95: 2022-04-20 | C95: Virtus Bolog | D95: 75-67 | E95: Lietkabelis | F95: 39-34
A96: D | B96: 2022-04-13 | C96: Virtus Bolog | D96: 82-82 | E96: Trento | F96: 47-35
A97: D | B97: 2022-04-10 | C97: Virtus Bolog | D97: 83-65 | E97: Olimpia Mila | F97: 46-34
A98: D | B98: 2022-03-29 | C98: Virtus Bolog | D98: 70-68 | E98: Gran Canaria | F98: 36-35
A99: D | B99: 2022-03-26 | C99: Virtus Bolog | D99: 78-70 | E99: Reggiana | F99: 34-26
A100: D | B100: 2022-03-20 | C100: Virtus Bolog | D100: 81-77 | E100: Venezia | F100: 31-44
A101: D | B101: 2022-03-16 | C101: Virtus Bolog | D101: 74-86 | E101: Cedevita Oli | F101: 44-51
A102: D | B102: 2022-03-06 | C102: Virtus Bolog | D102: 86-75 | E102: Basket Napol | F102: 47-32
A103: D | B103: 2022-03-03 | C103: Virtus Bolog | D103: 98-94 | E103: Bursaspor | F103: 51-44
A104: D | B104: 2022-02-17 | C104: Virtus Bolog | D104: 93-81 | E104: Brindisi | F104: 51-42
A105: D | B105: 2022-02-01 | C105: Virtus Bolog | D105: 62-68 | E105: Buducnost | F105: 30-34
B106: G | C106: M | D106: AS | E106: YS
A107: İlk Yarı | B107: 13 | C107: 7 | D107: 810 | E107: 726
A108: Maç Sonu | B108: 16 | C108: 3 | D108: 1607 | E108: 1453
B109: Tarih | C109: EvSahibi | D109: MS | E109: Deplasman | F109: İY
A110: D | B110: 2022-06-08 | C110: Virtus Bolog | D110: 62-66 | E110: Olimpia Mila | F110: 27-28
A111: D | B111: 2022-06-01 | C111: Sassari | D111: 69-87 | E111: Olimpia Mila | F111: 34-47
A112: D | B112: 2022-05-19 | C112: Reggiana | D112: 59-89 | E112: Olimpia Mila | F112: 27-43
A113: D | B113: 2022-05-08 | C113: Venezia | D113: 69-74 | E113: Olimpia Mila | F113: 41-32
A114: D | B114: 2022-05-04 | C114: Treviso | D114: 80-74 | E114: Olimpia Mila | F114: 29-32
A115: D | B115: 2022-04-28 | C115: Anadolu Efes | D115: 75-70 | E115: Olimpia Mila | F115: 42-43
A116: D | B116: 2022-04-26 | C116: Anadolu Efes | D116: 77-65 | E116: Olimpia Mila | F116: 42-35
A117: D | B117: 2022-04-23 | C117: Reggiana | D117: 63-67 | E117: Olimpia Mila | F117: 29-39
A118: D | B118: 2022-04-10 | C118: Virtus Bolog | D118: 83-65 | E118: Olimpia Mila | F118: 46-34
A119: D | B119: 2022-04-07 | C119: Lyon-Villeur | D119: 80-81 | E119: Olimpia Mila | F119: 41-40
A120: D | B120: 2022-04-03 | C120: Sassari | D120: 92-90 | E120: Olimpia Mila | F120: 56-43
A121: D | B121: 2022-03-24 | C121: Anadolu Efes | D121: 77-83 | E121: Olimpia Mila | F121: 51-36
A122: D | B122: 2022-03-22 | C122: Maccabi Tel | D122: 75-58 | E122: Olimpia Mila | F122: 40-37
A123: D | B123: 2022-03-20 | C123: Brescia | D123: 82-74 | E123: Olimpia Mila | F123: 41-31
A124: D | B124: 2022-03-10 | C124: Real Madrid | D124: 81-81 | E124: Olimpia Mila | F124: 41-41
A125: D | B125: 2022-03-06 | C125: Tortona | D125: 64-81 | E125: Olimpia Mila | F125: 37-40
A126: D | B126: 2022-03-04 | C126: Panathinaiko | D126: 75-76 | E126: Olimpia Mila | F126: 36-40
A127: D | B127: 2022-02-24 | C127: Olympiacos | D127: 67-58 | E127: Olimpia Mila | F127: 25-27
A128: D | B128: 2022-02-08 | C128: Zalgiris Kau | D128: 70-74 | E128: Olimpia Mila | F128: 35-35
A129: D | B129: 2022-02-05 | C129: Trento | D129: 73-79 | E129: Olimpia Mila | F129: 40-40
B130: G | C130: M | D130: AS | E130: YS
A131: İlk Yarı | B131: 9 | C131: 8 | D131: 743 | E131: 760
A132: Maç Sonu | B132: 11 | C132: 8 | D132: 1492 | E132: 1473
A134: Rekabet Analizi
B135: Tarih | C135: EvSahibi | D135: MS | E135: Deplasman | F135: İY | G135: Lig
A136: Detay | B136: 2022-06-08 | C136: Virtus Bologna | D136: 62-66 | E136: Olimpia Milano | F136: 27-28 | G136: Lega A
A137: Detay | B137: 2022-04-10 | C137: Virtus Bologna | D137: 83-65 | E137: Olimpia Milano | F137: 46-34 | G137: Lega A
A138: Detay | B138: 2021-06-11 | C138: Virtus Bologna | D138: 73-62 | E138: Olimpia Milano | F138: 41-43 | G138: Lega A
A139: Detay | B139: 2021-06-09 | C139: Virtus Bologna | D139: 76-58 | E139: Olimpia Milano | F139: 37-34 | G139: Lega A
A140: Detay | B140: 2020-12-27 | C140: Virtus Bologna | D140: 68-73 | E140: Olimpia Milano | F140: 38-46 | G140: Lega A
A141: Detay | B141: 2019-12-29 | C141: Virtus Bologna | D141: 83-70 | E141: Olimpia Milano | F141: 46-40 | G141: Lega A
A142: Detay | B142: 2018-10-14 | C142: Virtus Segafredo Bologna | D142: 79-88 | E142: Olimpia Milano | F142: 40-39 | G142: Lega A
A143: Detay | B143: 2018-03-11 | C143: Virtus Segafredo Bologna | D143: 67-73 | E143: Olimpia Milano | F143: 28-40 | G143: Lega A
A144: Detay | B144: 2016-02-28 | C144: Virtus Bologna | D144: 85-101 | E144: Milano | F144: 38-54 | G144: Lega A 2015/2016
A145: Detay | B145: 2015-05-22 | C145: Virtus Bologna | D145: 65-92 | E145: Milano | F145: 38-46 | G145: Lega A 2014/2015
A146: Detay | B146: 2014-12-29 | C146: Virtus Bologna | D146: 58-81 | E146: Milano | F146: 33-46 | G146: Lega A 2014/2015
A148: Bahis oynayan tüm bireyler, bulunduğu ülkenin kural ve yasalarından sorumludur
A150: Detay | B150: 2018-10-03 | C150: Fenerbahce | D150: 62-65 | E150: Anadolu Efes | F150: 30-28 | G150: Super Cup
A151: Detay | B151: 2018-02-14 | C151: Fenerbahce | D151: 80-83 | E151: Anadolu Efes | F151: 36-45 | G151: Turkish Cup
A152: Detay | B152: 2018-02-04 | C152: Fenerbahce | D152: 100-74 | E152: Anadolu Efes | F152: 57-34 | G152: Super Ligi
A153: Detay | B153: 2017-10-25 | C153: Fenerbahce | D153: 81-70 | E153: Anadolu Efes | F153: 34-34 | G153: Euroleague
A154: Detay | B154: 2017-01-02 | C154: Fenerbahce | D154: 81-75 | E154: Anadolu Efes | F154: 41-34 | G154: Super Ligi
A155: Detay | B155: 2016-11-17 | C155: Fenerbahce | D155: 88-80 | E155: Anadolu Efes | F155: 43-42 | G155: Euroleague
A157: Bahis oynayan tüm bireyler, bulunduğu ülkenin kural ve yasalarından sorumludur

Sheet Betistuta İY
M1: BAREM | N1: =Lozen!C2 -> 72.5
A4: Skip Navigation Links
A6: Betistuta
A7: Futbol
A8: Basketbol
A9: Voleybol
A10: Hentbol
A11: BuzHokeyi
A12: Beyzbol
A13: Tenis
A14: BOYZ(F)
A15: BOYZ(B)
A16: Orandelli
A17: Gol Oldu mu ?
A18: Iletisim
A21: Puerto Rico -BSN
A23: ='Betistuta MS'!A23 -> 10.06.2022-21:00
A25: ='Betistuta MS'!A25 -> Virtus Bologna
A27: ='Betistuta MS'!A27 -> Olimpia Milano
M28: SKOR 1 | N28: =((X53*X51)+(X73*X51))*0.5 -> 42.47005829 | O28: =((X72*X70)+(X54*X70))*0.5 -> 44.57423709 | P28: =MROUND(SUM(N28,O28),1) -> 87 | Q28: =ABS(N28-O28) -> 2.104178796 | R28: =T57 -> 41.4 | S28: =T76 -> 45 | T28: =MROUND(SUM(R28,S28),1) -> 86 | U28: =ABS(R28-S28) -> 3.6 | V28: EV | X28: DEP | Z28: BAREM | AA28: =N1 -> 72.5 | AB28: =AB48 -> Virtus Bologna | AC28: =AB30+AD30 -> 79 | AD28: =AD48 -> Olimpia Milano | AE28: ALT | AF28: ÜST | AG28: MS1 | AH28: MS2 | AI28: EV - FORM | AJ28: DEP - FORM | AK28: EV SAYI | AL28: DEP SAYI
M29: SKOR2 | N29: =((X53*X51)+(X69*X51))*0.5 -> 41.70878749 | O29: =((X72*X70)+(X50*X70))*0.5 -> 45.28758089 | P29: =MROUND(SUM(N29,O29),1) -> 87 | Q29: =ABS(N29-O29) -> 3.578793396 | R29: =N32 -> 41.69740938 | S29: =O32 -> 42.53045973 | T29: =MROUND(SUM(R29,S29),1) -> 84 | U29: =ABS(R29-S29) -> 0.8330503485 | V29: =IFERROR(VALUE(LEFT(F136,SEARCH("-",F136,1)-1)),"") -> 27 | X29: =IFERROR(VALUE(RIGHT(F136,LEN(F136)-SEARCH("-",F136,SEARCH("-",F136,1)-1))),"") -> 28 | AE29: =1-AF29 -> 0.2036414794 | AF29: =_xlfn.POISSON.DIST(AC28,AA28,TRUE) -> 0.7963585206 | AG29: =_xlfn.POISSON.DIST(AB30,AD30+2.5,TRUE) -> 0.4483594575 | AH29: =1-AG29 -> 0.5516405425 | AI29: =COUNTIF(V48:V57,"W")/10-2.28% -> 0.5772 | AJ29: =COUNTIF(V67:V76,"W")/10-2.28% -> 0.6772 | AK29: =R31 -> 44 | AL29: =S31 -> 42
A30: ='Betistuta MS'!A30 -> Beklenen Skor IY/MS | M30: SKOR3 | N30: =X51*X69 -> 40.41079173 | O30: =X50*X70 -> 39.29335426 | P30: 80 | Q30: 1.117437465 | R30: =AVERAGE(R28:R29) -> 41.54870469 | S30: =AVERAGE(S28:S29) -> 43.76522986 | T30: =MROUND(SUM(R30,S30),1) -> 85 | U30: =ABS(R30-S30) -> 2.216525174 | V30: =IFERROR(VALUE(LEFT(F137,SEARCH("-",F137,1)-1)),"") -> 46 | X30: =IFERROR(VALUE(RIGHT(F137,LEN(F137)-SEARCH("-",F137,SEARCH("-",F137,1)-1))),"") -> 34 | AB30: =AB54-1 -> 40 | AC30: =U31 -> 2 | AD30: =AD54-1 -> 39 | AE30: ALT - GÜVEN | AF30: ÜST - GÜVEN | AG30: MİN. SAYI | AH30: MAK. SAYI | AI30: MİN. FARK | AJ30: MAK. FARK | AK30: EV SON SAYI | AL30: DEP SON SAYI
A31: ='Betistuta MS'!A31 -> 39-36 / 75-76 | M31: SKOR4 | N31: =(X51+X71)*0.5 -> 42.2 | O31: =(X52+X70)*0.5 -> 40.96666667 | P31: 83 | Q31: 1.233333333 | R31: =MROUND(S30,1) -> 44 | S31: =MROUND(R30,1) -> 42 | T31: =MROUND(T30,1) -> 85 | U31: =ABS(R31-S31) -> 2 | V31: 41 | X31: 43 | AE31: =1-AF31 -> 0.0528 | AF31: =((COUNTIF(U67:U76,"UST"))+(COUNTIF(U48:U57,"UST")))/20-5.28% -> 0.9472 | AG31: =INT(R32+AL54/2) -> 84 | AH31: =INT(T32+AL54) -> 95 | AI31: =AL52 -> 1 | AJ31: =AL53 -> 18 | AK31: =INT(AK29-AL54+(AH31*AI29)/4) -> 49 | AL31: =INT(AL29-AL54+(AH31*AJ29)/4) -> 49
A32: ='Betistuta MS'!A32 -> 19-18,20-18,18-22,18-18 | M32: ORTALAMA | N32: =AVERAGE(N28:N31) -> 41.69740938 | O32: =AVERAGE(O28:O31) -> 42.53045973 | P32: 84.25 | Q32: 2.008435748 | R32: =MROUND(MIN(T28:T31,P28:P31),1) -> 80 | S32: =MROUND(MIN(U28:U31,Q28:Q31),1) -> 1 | T32: =MROUND(MAX(T28:T31,P28:P31),1) -> 87 | U32: =MROUND(MAX(U28:U31,Q28:Q31),1) -> 4 | V32: =IFERROR(VALUE(LEFT(D139,SEARCH("-",D139,1)-1)),"") -> 76 | X32: =IFERROR(VALUE(RIGHT(D139,LEN(D139)-SEARCH("-",D139,SEARCH("-",D139,1)-1))),"") -> 58
V33: =IFERROR(VALUE(LEFT(D140,SEARCH("-",D140,1)-1)),"") -> 68 | X33: =IFERROR(VALUE(RIGHT(D140,LEN(D140)-SEARCH("-",D140,SEARCH("-",D140,1)-1))),"") -> 73
B34: Takım Gücü IY/MS
A35: 376.6 /601.4 | B35: Maç Sonucu
A36: 48-40 / 92-85
A37: 29-21,19-19,22-23,22-22 | B37: Takım Gücü IY/MS
A38: 346.8 /543.8
B39: Sonraki Maç
A40: 5/25/2022-E-Indios de Mayaguez
A41: BSN | C41: Sonraki Maç
A42: 5/27/2022-E-Gigantes de Carolina
A43: BSN
A47: ='Betistuta MS'!A47 ->  | B47: ='Betistuta MS'!B47 -> Tarih | C47: ='Betistuta MS'!C47 -> EvSahibi | D47: ='Betistuta MS'!D47 -> MS | E47: ='Betistuta MS'!E47 -> Deplasman | F47: ='Betistuta MS'!F47 -> İY | M47: EV | N47: DEP | O47: EVİN ATTIĞI | P47: EVİN YEDİĞİ | Q47: EV SKOR | W47: EV'İN TOPLAM ATTIĞI | X47: =Q63 -> 637 | Z47: =A134 -> Rekabet Analizi | AA47: TARİH | AB47: EV SAHİBİ | AC47: MS | AD47: DEPLASMAN | AE47: İY | AF47: LİG | AG47: EV | AH47: DEP | AI47: TOPLAM | AJ47: ALT / ÜST | AK47: MAÇ SONUCU | AL47: HANDİKAP
A48: ='Betistuta MS'!A48 -> D | B48: ='Betistuta MS'!B48 -> 44720 | C48: ='Betistuta MS'!C48 -> Virtus Bolog | D48: ='Betistuta MS'!D48 -> 62-66 | E48: ='Betistuta MS'!E48 -> Olimpia Mila | F48: ='Betistuta MS'!F48 -> 27-28 | M48: =IFERROR(VALUE(LEFT(F48,SEARCH("-",F48,1)-1)),"") -> 27 | N48: =IFERROR(VALUE(RIGHT(F48,LEN(F48)-SEARCH("-",F48,SEARCH("-",F48,1)-1))),"") -> 28 | O48: =IF(OR(M48="",N48=""),"",IF(C48=$C$86,M48,N48)) -> 27 | P48: =IF(OR(M48="",N48=""),"",IF(C48=$C$86,N48,M48)) -> 28 | Q48: =O48 -> 27 | R48: =P48 -> 28 | S48: =AVERAGE(Q48:Q57)+3.5 -> 41.4 | T48: =IF(Q48>R48,S48+1,S48-1.5) -> 39.9 | U48: =IF(AND(Q48+R48>$K$10),"UST","ALT") -> UST | V48: =IF(Q48>R48,"W","") ->  | W48: EV'İN TOPLAM YEDİĞİ | X48: =R63 -> 568 | AA48: =B136 -> 2022-06-08 | AB48: =C136 -> Virtus Bologna | AC48: 62-66 | AD48: Olimpia Milano | AE48: 27-28 | AF48: BSN | AG48: =V29 -> 27 | AH48: =X29 -> 28 | AI48: =AG48+AH48 -> 55 | AJ48: =IF(AI48="","",IF(AI48>$AA$28,"UST","ALT")) -> ALT | AK48: =IF(AG48>AH48,"MS1",IF(AH48>AG48,"MS2","")) -> MS2 | AL48: =IFERROR(ABS(AG48-AH48),"") -> 1
A49: ='Betistuta MS'!A49 -> D | B49: ='Betistuta MS'!B49 -> 44712 | C49: ='Betistuta MS'!C49 -> Tortona | D49: ='Betistuta MS'!D49 -> 69-77 | E49: ='Betistuta MS'!E49 -> Virtus Bolog | F49: ='Betistuta MS'!F49 -> 33-47 | M49: =IFERROR(VALUE(LEFT(F49,SEARCH("-",F49,1)-1)),"") -> 33 | N49: =IFERROR(VALUE(RIGHT(F49,LEN(F49)-SEARCH("-",F49,SEARCH("-",F49,1)-1))),"") -> 47 | O49: =IF(OR(M49="",N49=""),"",IF(C49=$C$86,M49,N49)) -> 47 | P49: =IF(OR(M49="",N49=""),"",IF(C49=$C$86,N49,M49)) -> 33 | Q49: =O49 -> 47 | R49: 33 | T49: =IF(Q49>R49,T48+1,T48-1.5) -> 40.9 | U49: UST | V49: =IF(Q49>R49,"W","") -> W | W49: EV ATTIĞI / EV YEDİĞİ | X49: =X47/X48 -> 1.121478873 | AA49: =B137 -> 2022-04-10 | AB49: Virtus Bologna | AC49: 83-65 | AD49: Olimpia Milano | AE49: 46-34 | AF49: BSN | AG49: =V30 -> 46 | AH49: =X30 -> 34 | AI49: =AG49+AH49 -> 80 | AJ49: =IF(AI49="","",IF(AI49>$AA$28,"UST","ALT")) -> UST | AK49: =IF(AG49>AH49,"MS1",IF(AH49>AG49,"MS2","")) -> MS1 | AL49: =IFERROR(ABS(AG49-AH49),"") -> 12
A50: ='Betistuta MS'!A50 -> D | B50: ='Betistuta MS'!B50 -> 44710 | C50: ='Betistuta MS'!C50 -> Virtus Bolog | D50: ='Betistuta MS'!D50 -> 91-70 | E50: ='Betistuta MS'!E50 -> Tortona | F50: ='Betistuta MS'!F50 -> 41-35 | M50: 41 | N50: 35 | O50: 41 | P50: 35 | Q50: 41 | R50: 35 | T50: =IF(Q50>R50,T49+1,T49-1.5) -> 41.9 | U50: UST | V50: =IF(Q50>R50,"W","") -> W | W50: EV YEDİĞİ / EV ATTIĞI | X50: =X48/X47 -> 0.8916797488 | AA50: 2021-06-11 | AB50: Virtus Bologna | AC50: 73-62 | AD50: Olimpia Milano | AE50: 41-43 | AF50: BSN | AG50: 41 | AH50: 43 | AI50: 84 | AJ50: =IF(AI50="","",IF(AI50>$AA$28,"UST","ALT")) -> UST | AK50: MS2 | AL50: 2
A51: ='Betistuta MS'!A51 -> D | B51: ='Betistuta MS'!B51 -> 44708 | C51: ='Betistuta MS'!C51 -> Virtus Bolog | D51: ='Betistuta MS'!D51 -> 77-73 | E51: ='Betistuta MS'!E51 -> Tortona | F51: ='Betistuta MS'!F51 -> 35-38 | M51: 35 | N51: 38 | O51: 35 | P51: 38 | Q51: 35 | R51: 38 | T51: =IF(Q51>R51,T50+1,T50-1.5) -> 40.4 | U51: UST | W51: EV'İN ORT. ATTIĞI | X51: =AVERAGE(Q48:Q62) -> 42.46666667 | AA51: 2021-06-09 | AB51: Virtus Bologna | AC51: 76-58 | AD51: Olimpia Milano | AE51: 37-34 | AF51: BSN | AG51: 76 | AH51: 58 | AI51: =AG51+AH51 -> 134 | AJ51: =IF(AI51="","",IF(AI51>$AA$28,"UST","ALT")) -> UST | AK51: MS1 | AL51: 18
A52: ='Betistuta MS'!A52 -> D | B52: ='Betistuta MS'!B52 -> 44700 | C52: ='Betistuta MS'!C52 -> Pesaro | D52: ='Betistuta MS'!D52 -> 55-75 | E52: ='Betistuta MS'!E52 -> Virtus Bolog | F52: ='Betistuta MS'!F52 -> 35-35 | M52: 35 | N52: 35 | O52: 35 | P52: 35 | Q52: 35 | R52: 35 | T52: 38.9 | U52: UST | W52: EV'İN ORT. YEDİĞİ | X52: =AVERAGE(R48:R62) -> 37.86666667 | AH52: MIN | AI52: =MIN(AI48:AI51) -> 55 | AL52: =MIN(AL48:AL51) -> 1
A53: ='Betistuta MS'!A53 -> D | B53: ='Betistuta MS'!B53 -> 44698 | C53: ='Betistuta MS'!C53 -> Virtus Bolog | D53: ='Betistuta MS'!D53 -> 70-51 | E53: ='Betistuta MS'!E53 -> Pesaro | F53: ='Betistuta MS'!F53 -> 31-25 | M53: 31 | N53: 25 | O53: 31 | P53: 25 | Q53: 31 | R53: 25 | T53: 39.9 | U53: UST | V53: W | W53: EV'İN TOPLAM ATTIĞI / DEP'İN TOPLAM YEDİĞİ | X53: =X47/X67 -> 1.012718601 | AH53: MAX | AI53: =MAX(AI48:AI51) -> 134 | AL53: =MAX(AL48:AL51) -> 18
A54: ='Betistuta MS'!A54 -> D | B54: ='Betistuta MS'!B54 -> 44696 | C54: ='Betistuta MS'!C54 -> Virtus Bolog | D54: ='Betistuta MS'!D54 -> 82-76 | E54: ='Betistuta MS'!E54 -> Pesaro | F54: ='Betistuta MS'!F54 -> 45-36 | M54: 45 | N54: 36 | O54: 45 | P54: 36 | Q54: 45 | R54: 36 | T54: 40.9 | U54: UST | V54: W | W54: EV'İN TOPLAM YEDİĞİ / DEP'İN TOPLAM ATTIĞI | X54: =X48/X66 -> 0.8593040847 | AB54: =INT((AK29+AK31)/2-AL54/2)-1 -> 41 | AD54: =INT((AL29+AL31)/2-AL54/2)-1 -> 40 | AH54: ORT. | AI54: =AVERAGE(AI48:AI51) -> 88.25 | AL54: =AVERAGE(AL48:AL51) -> 8.25
A55: ='Betistuta MS'!A55 -> D | B55: ='Betistuta MS'!B55 -> 44692 | C55: ='Betistuta MS'!C55 -> Virtus Bolog | D55: ='Betistuta MS'!D55 -> 80-67 | E55: ='Betistuta MS'!E55 -> Bursaspor | F55: ='Betistuta MS'!F55 -> 41-31 | M55: 41 | N55: 31 | O55: 41 | P55: 31 | Q55: 41 | R55: 31 | T55: 41.9 | U55: UST | V55: W
A56: ='Betistuta MS'!A56 -> D | B56: ='Betistuta MS'!B56 -> 44689 | C56: ='Betistuta MS'!C56 -> Virtus Bolog | D56: ='Betistuta MS'!D56 -> 79-57 | E56: ='Betistuta MS'!E56 -> Brescia | F56: ='Betistuta MS'!F56 -> 42-24 | M56: 42 | N56: 24 | O56: 42 | P56: 24 | Q56: 42 | R56: 24 | T56: 42.9 | U56: UST | V56: W
A57: ='Betistuta MS'!A57 -> D | B57: ='Betistuta MS'!B57 -> 44687 | C57: ='Betistuta MS'!C57 -> Sassari | D57: ='Betistuta MS'!D57 -> 108-73 | E57: ='Betistuta MS'!E57 -> Virtus Bolog | F57: ='Betistuta MS'!F57 -> 47-35 | M57: 47 | N57: 35 | O57: 35 | P57: 47 | Q57: 35 | R57: 47 | T57: =IF(Q57>R57,T56+1,T56-1.5) -> 41.4 | U57: UST
A58: ='Betistuta MS'!A58 -> D | B58: ='Betistuta MS'!B58 -> 44685 | C58: ='Betistuta MS'!C58 -> Valencia | D58: ='Betistuta MS'!D58 -> 73-83 | E58: ='Betistuta MS'!E58 -> Virtus Bolog | F58: ='Betistuta MS'!F58 -> 38-50 | M58: 38 | N58: 50 | O58: 50 | P58: 38 | Q58: =V29 -> 27 | R58: =X29 -> 28
A59: ='Betistuta MS'!A59 -> D | B59: ='Betistuta MS'!B59 -> 44680 | C59: ='Betistuta MS'!C59 -> Treviso | D59: ='Betistuta MS'!D59 -> 76-113 | E59: ='Betistuta MS'!E59 -> Virtus Bolog | F59: ='Betistuta MS'!F59 -> 34-52 | M59: 34 | N59: 52 | O59: 52 | P59: 34 | Q59: =V30 -> 46 | R59: =X30 -> 34
A60: ='Betistuta MS'!A60 -> D | B60: ='Betistuta MS'!B60 -> 44677 | C60: ='Betistuta MS'!C60 -> Virtus Bolog | D60: ='Betistuta MS'!D60 -> 83-77 | E60: ='Betistuta MS'!E60 -> Ulm | F60: ='Betistuta MS'!F60 -> 43-45 | M60: 43 | N60: 45 | O60: 43 | P60: 45 | Q60: =V31 -> 41 | R60: =X31 -> 43
A61: ='Betistuta MS'!A61 -> D | B61: ='Betistuta MS'!B61 -> 44673 | C61: ='Betistuta MS'!C61 -> Virtus Bolog | D61: ='Betistuta MS'!D61 -> 101-83 | E61: ='Betistuta MS'!E61 -> Tortona | F61: ='Betistuta MS'!F61 -> 49-53 | M61: 49 | N61: 53 | O61: 49 | P61: 53 | Q61: =V32 -> 76 | R61: =X32 -> 58
A62: ='Betistuta MS'!A62 -> D | B62: ='Betistuta MS'!B62 -> 44671 | C62: ='Betistuta MS'!C62 -> Virtus Bolog | D62: ='Betistuta MS'!D62 -> 75-67 | E62: ='Betistuta MS'!E62 -> Lietkabelis | F62: ='Betistuta MS'!F62 -> 39-34 | M62: 39 | N62: 34 | O62: 39 | P62: 34 | Q62: =V33 -> 68 | R62: =X33 -> 73
A63: ='Betistuta MS'!A63 ->  | B63: ='Betistuta MS'!B63 -> G | C63: ='Betistuta MS'!C63 -> M | D63: ='Betistuta MS'!D63 -> AS | E63: ='Betistuta MS'!E63 -> YS | M63: =SUM(M48:M62) -> 580 | N63: =SUM(N48:N62) -> 568 | O63: =SUM(O48:O62) -> 612 | P63: =SUM(P48:P62) -> 536 | Q63: =SUM(Q48:Q62) -> 637 | R63: =SUM(R48:R62) -> 568 | S63: 41.4 | T63: 409
A64: ='Betistuta MS'!A64 -> İlk Yarı | B64: ='Betistuta MS'!B64 -> 9 | C64: ='Betistuta MS'!C64 -> 5 | D64: ='Betistuta MS'!D64 -> 612 | E64: ='Betistuta MS'!E64 -> 536
A65: ='Betistuta MS'!A65 -> Maç Sonu | B65: ='Betistuta MS'!B65 -> 13 | C65: ='Betistuta MS'!C65 -> 2 | D65: ='Betistuta MS'!D65 -> 1221 | E65: ='Betistuta MS'!E65 -> 1068
B66: Tarih | C66: EvSahibi | D66: MS | E66: Deplasman | F66: İY | M66: EV | N66: DEP | O66: DEP'İN ATTIĞI | P66: DEP'İN YEDİĞİ | Q66: DEP SKOR | W66: DEP'İN TOPLAM ATTIĞI | X66: =Q82 -> 661
A67: ='Betistuta MS'!A67 -> D | B67: ='Betistuta MS'!B67 -> 44720 | C67: ='Betistuta MS'!C67 -> Virtus Bolog | D67: ='Betistuta MS'!D67 -> 62-66 | E67: ='Betistuta MS'!E67 -> Olimpia Mila | F67: ='Betistuta MS'!F67 -> 27-28 | M67: =IFERROR(VALUE(LEFT(F67,SEARCH("-",F67,1)-1)),"") -> 27 | N67: =IFERROR(VALUE(RIGHT(F67,LEN(F67)-SEARCH("-",F67,SEARCH("-",F67,1)-1))),"") -> 28 | O67: =IF(OR(M67="",N67=""),"",IF(C67=$E$110,M67,N67)) -> 28 | P67: =IF(OR(M67="",N67=""),"",IF(C67=$E$110,N67,M67)) -> 27 | Q67: =O67 -> 28 | R67: 27 | S67: =AVERAGE(Q67:Q76) -> 42.5 | T67: =IF(Q67>R67,S67+1,S67-1.5) -> 43.5 | U67: =IF(AND(Q67+R67>$K$10),"UST","ALT") -> UST | V67: =IF(Q67>R67,"W","") -> W | W67: DEP'İN TOPLAM YEDİĞİ | X67: =R82 -> 629
A68: ='Betistuta MS'!A68 -> D | B68: ='Betistuta MS'!B68 -> 44713 | C68: ='Betistuta MS'!C68 -> Sassari | D68: ='Betistuta MS'!D68 -> 69-87 | E68: ='Betistuta MS'!E68 -> Olimpia Mila | F68: ='Betistuta MS'!F68 -> 34-47 | M68: =IFERROR(VALUE(LEFT(F68,SEARCH("-",F68,1)-1)),"") -> 34 | N68: =IFERROR(VALUE(RIGHT(F68,LEN(F68)-SEARCH("-",F68,SEARCH("-",F68,1)-1))),"") -> 47 | O68: =IF(OR(M68="",N68=""),"",IF(C68=$E$110,M68,N68)) -> 47 | P68: =IF(OR(M68="",N68=""),"",IF(C68=$E$110,N68,M68)) -> 34 | Q68: 47 | R68: 34 | T68: =IF(Q68>R68,T67+1,T67-1.5) -> 44.5 | U68: UST | V68: W | W68: DEP ATTIĞI / DEP YEDİĞİ | X68: =X66/X67 -> 1.050874404
A69: ='Betistuta MS'!A69 -> D | B69: ='Betistuta MS'!B69 -> 44711 | C69: ='Betistuta MS'!C69 -> Olimpia Mila | D69: ='Betistuta MS'!D69 -> 91-82 | E69: ='Betistuta MS'!E69 -> Sassari | F69: ='Betistuta MS'!F69 -> 41-49 | M69: 41 | N69: 49 | O69: 41 | P69: 49 | Q69: 41 | R69: 49 | T69: =IF(Q69>R69,T68+1,T68-1.5) -> 43 | U69: UST | W69: DEP YEDİĞİ / DEP ATTIĞI | X69: =X67/X66 -> 0.9515885023
A70: ='Betistuta MS'!A70 -> D | B70: ='Betistuta MS'!B70 -> 44709 | C70: ='Betistuta MS'!C70 -> Olimpia Mila | D70: ='Betistuta MS'!D70 -> 88-71 | E70: ='Betistuta MS'!E70 -> Sassari | F70: ='Betistuta MS'!F70 -> 50-42 | M70: 50 | N70: 42 | O70: 50 | P70: 42 | Q70: 50 | R70: 42 | T70: =IF(Q70>R70,T69+1,T69-1.5) -> 44 | U70: UST | V70: W | W70: DEP'İN ORT. ATTIĞI | X70: =AVERAGE(Q67:Q81) -> 44.06666667
A71: ='Betistuta MS'!A71 -> D | B71: ='Betistuta MS'!B71 -> 44700 | C71: ='Betistuta MS'!C71 -> Reggiana | D71: ='Betistuta MS'!D71 -> 59-89 | E71: ='Betistuta MS'!E71 -> Olimpia Mila | F71: ='Betistuta MS'!F71 -> 27-43 | M71: 27 | N71: 43 | O71: 43 | P71: 27 | Q71: 43 | R71: 27 | T71: 45 | U71: UST | V71: W | W71: DEP'İN ORT. YEDİĞİ | X71: =AVERAGE(R67:R81) -> 41.93333333
A72: ='Betistuta MS'!A72 -> D | B72: ='Betistuta MS'!B72 -> 44698 | C72: ='Betistuta MS'!C72 -> Olimpia Mila | D72: ='Betistuta MS'!D72 -> 91-65 | E72: ='Betistuta MS'!E72 -> Reggiana | F72: ='Betistuta MS'!F72 -> 57-32 | M72: 57 | N72: 32 | O72: 57 | P72: 32 | Q72: 57 | R72: 32 | T72: 46 | U72: UST | V72: W | W72: DEP'İN TOPLAM ATTIĞI / EV'İN TOPLAM YEDİĞİ | X72: =X66/X48 -> 1.163732394
A73: ='Betistuta MS'!A73 -> D | B73: ='Betistuta MS'!B73 -> 44696 | C73: ='Betistuta MS'!C73 -> Olimpia Mila | D73: ='Betistuta MS'!D73 -> 91-82 | E73: ='Betistuta MS'!E73 -> Reggiana | F73: ='Betistuta MS'!F73 -> 51-40 | M73: 51 | N73: 40 | O73: 51 | P73: 40 | Q73: 51 | R73: 40 | T73: 47 | U73: UST | V73: W | W73: DEP'İN TOPLAM YEDİĞİ / EV'İN TOPLAM ATTIĞI | X73: =X67/X47 -> 0.9874411303
A74: ='Betistuta MS'!A74 -> D | B74: ='Betistuta MS'!B74 -> 44689 | C74: ='Betistuta MS'!C74 -> Venezia | D74: ='Betistuta MS'!D74 -> 69-74 | E74: ='Betistuta MS'!E74 -> Olimpia Mila | F74: ='Betistuta MS'!F74 -> 41-32 | M74: 41 | N74: 32 | O74: 32 | P74: 41 | Q74: 32 | R74: 41 | T74: 45.5 | U74: UST
A75: ='Betistuta MS'!A75 -> D | B75: ='Betistuta MS'!B75 -> 44685 | C75: ='Betistuta MS'!C75 -> Treviso | D75: ='Betistuta MS'!D75 -> 80-74 | E75: ='Betistuta MS'!E75 -> Olimpia Mila | F75: ='Betistuta MS'!F75 -> 29-32 | M75: 29 | N75: 32 | O75: 32 | P75: 29 | Q75: 32 | R75: 29 | T75: 46.5 | U75: UST | V75: W
A76: ='Betistuta MS'!A76 -> D | B76: ='Betistuta MS'!B76 -> 44682 | C76: ='Betistuta MS'!C76 -> Olimpia Mila | D76: ='Betistuta MS'!D76 -> 92-87 | E76: ='Betistuta MS'!E76 -> Brindisi | F76: ='Betistuta MS'!F76 -> 44-50 | M76: 44 | N76: 50 | O76: 44 | P76: 50 | Q76: 44 | R76: 50 | T76: =IF(Q76>R76,T75+1,T75-1.5) -> 45 | U76: UST
A77: ='Betistuta MS'!A77 -> D | B77: ='Betistuta MS'!B77 -> 44679 | C77: ='Betistuta MS'!C77 -> Anadolu Efes | D77: ='Betistuta MS'!D77 -> 75-70 | E77: ='Betistuta MS'!E77 -> Olimpia Mila | F77: ='Betistuta MS'!F77 -> 42-43 | M77: 42 | N77: 43 | O77: 43 | P77: 42 | Q77: =X29 -> 28 | R77: =V29 -> 27
A78: ='Betistuta MS'!A78 -> D | B78: ='Betistuta MS'!B78 -> 44677 | C78: ='Betistuta MS'!C78 -> Anadolu Efes | D78: ='Betistuta MS'!D78 -> 77-65 | E78: ='Betistuta MS'!E78 -> Olimpia Mila | F78: ='Betistuta MS'!F78 -> 42-35 | M78: 42 | N78: 35 | O78: 35 | P78: 42 | Q78: =X30 -> 34 | R78: =V30 -> 46
A79: ='Betistuta MS'!A79 -> D | B79: ='Betistuta MS'!B79 -> 44674 | C79: ='Betistuta MS'!C79 -> Reggiana | D79: ='Betistuta MS'!D79 -> 63-67 | E79: ='Betistuta MS'!E79 -> Olimpia Mila | F79: ='Betistuta MS'!F79 -> 29-39 | M79: 29 | N79: 39 | O79: 39 | P79: 29 | Q79: =X31 -> 43 | R79: =V31 -> 41
A80: ='Betistuta MS'!A80 -> D | B80: ='Betistuta MS'!B80 -> 44672 | C80: ='Betistuta MS'!C80 -> Olimpia Mila | D80: ='Betistuta MS'!D80 -> 73-66 | E80: ='Betistuta MS'!E80 -> Anadolu Efes | F80: ='Betistuta MS'!F80 -> 33-33 | M80: 33 | N80: 33 | O80: 33 | P80: 33 | Q80: =X32 -> 58 | R80: =V32 -> 76
A81: ='Betistuta MS'!A81 -> D | B81: ='Betistuta MS'!B81 -> 44670 | C81: ='Betistuta MS'!C81 -> Olimpia Mila | D81: ='Betistuta MS'!D81 -> 48-64 | E81: ='Betistuta MS'!E81 -> Anadolu Efes | F81: ='Betistuta MS'!F81 -> 26-29 | M81: 26 | N81: 29 | O81: 26 | P81: 29 | Q81: =X33 -> 73 | R81: =V33 -> 68
A82: ='Betistuta MS'!A82 ->  | B82: ='Betistuta MS'!B82 -> G | C82: ='Betistuta MS'!C82 -> M | D82: ='Betistuta MS'!D82 -> AS | E82: ='Betistuta MS'!E82 -> YS | M82: =SUM(M67:M81) -> 573 | N82: =SUM(N67:N81) -> 574 | O82: =SUM(O67:O81) -> 601 | P82: =SUM(P67:P81) -> 546 | Q82: =SUM(Q67:Q81) -> 661 | R82: =SUM(R67:R81) -> 629 | S82: 42.5 | T82: 450
A83: ='Betistuta MS'!A83 -> İlk Yarı | B83: ='Betistuta MS'!B83 -> 9 | C83: ='Betistuta MS'!C83 -> 5 | D83: ='Betistuta MS'!D83 -> 601 | E83: ='Betistuta MS'!E83 -> 546
A84: ='Betistuta MS'!A84 -> Maç Sonu | B84: ='Betistuta MS'!B84 -> 11 | C84: ='Betistuta MS'!C84 -> 4 | D84: ='Betistuta MS'!D84 -> 1166 | E84: ='Betistuta MS'!E84 -> 1071
B85: Tarih | C85: EvSahibi | D85: MS | E85: Deplasman | F85: İY
A86: ='Betistuta MS'!A86 -> D | B86: ='Betistuta MS'!B86 -> 2022-06-08 | C86: ='Betistuta MS'!C86 -> Virtus Bolog | D86: ='Betistuta MS'!D86 -> 62-66 | E86: ='Betistuta MS'!E86 -> Olimpia Mila | F86: ='Betistuta MS'!F86 -> 27-28
A87: ='Betistuta MS'!A87 -> D | B87: ='Betistuta MS'!B87 -> 2022-05-29 | C87: ='Betistuta MS'!C87 -> Virtus Bolog | D87: ='Betistuta MS'!D87 -> 91-70 | E87: ='Betistuta MS'!E87 -> Tortona | F87: ='Betistuta MS'!F87 -> 41-35
A88: ='Betistuta MS'!A88 -> D | B88: ='Betistuta MS'!B88 -> 2022-05-27 | C88: ='Betistuta MS'!C88 -> Virtus Bolog | D88: ='Betistuta MS'!D88 -> 77-73 | E88: ='Betistuta MS'!E88 -> Tortona | F88: ='Betistuta MS'!F88 -> 35-38
A89: ='Betistuta MS'!A89 -> D | B89: ='Betistuta MS'!B89 -> 2022-05-17 | C89: ='Betistuta MS'!C89 -> Virtus Bolog | D89: ='Betistuta MS'!D89 -> 70-51 | E89: ='Betistuta MS'!E89 -> Pesaro | F89: ='Betistuta MS'!F89 -> 31-25
A90: ='Betistuta MS'!A90 -> D | B90: ='Betistuta MS'!B90 -> 2022-05-15 | C90: ='Betistuta MS'!C90 -> Virtus Bolog | D90: ='Betistuta MS'!D90 -> 82-76 | E90: ='Betistuta MS'!E90 -> Pesaro | F90: ='Betistuta MS'!F90 -> 45-36
A91: ='Betistuta MS'!A91 -> D | B91: ='Betistuta MS'!B91 -> 2022-05-11 | C91: ='Betistuta MS'!C91 -> Virtus Bolog | D91: ='Betistuta MS'!D91 -> 80-67 | E91: ='Betistuta MS'!E91 -> Bursaspor | F91: ='Betistuta MS'!F91 -> 41-31
A92: ='Betistuta MS'!A92 -> D | B92: ='Betistuta MS'!B92 -> 2022-05-08 | C92: ='Betistuta MS'!C92 -> Virtus Bolog | D92: ='Betistuta MS'!D92 -> 79-57 | E92: ='Betistuta MS'!E92 -> Brescia | F92: ='Betistuta MS'!F92 -> 42-24
A93: ='Betistuta MS'!A93 -> D | B93: ='Betistuta MS'!B93 -> 2022-04-26 | C93: ='Betistuta MS'!C93 -> Virtus Bolog | D93: ='Betistuta MS'!D93 -> 83-77 | E93: ='Betistuta MS'!E93 -> Ulm | F93: ='Betistuta MS'!F93 -> 43-45
A94: ='Betistuta MS'!A94 -> D | B94: ='Betistuta MS'!B94 -> 2022-04-22 | C94: ='Betistuta MS'!C94 -> Virtus Bolog | D94: ='Betistuta MS'!D94 -> 101-83 | E94: ='Betistuta MS'!E94 -> Tortona | F94: ='Betistuta MS'!F94 -> 49-53
A95: ='Betistuta MS'!A95 -> D | B95: ='Betistuta MS'!B95 -> 2022-04-20 | C95: ='Betistuta MS'!C95 -> Virtus Bolog | D95: ='Betistuta MS'!D95 -> 75-67 | E95: ='Betistuta MS'!E95 -> Lietkabelis | F95: ='Betistuta MS'!F95 -> 39-34
A96: ='Betistuta MS'!A96 -> D | B96: ='Betistuta MS'!B96 -> 2022-04-13 | C96: ='Betistuta MS'!C96 -> Virtus Bolog | D96: ='Betistuta MS'!D96 -> 82-82 | E96: ='Betistuta MS'!E96 -> Trento | F96: ='Betistuta MS'!F96 -> 47-35
A97: ='Betistuta MS'!A97 -> D | B97: ='Betistuta MS'!B97 -> 2022-04-10 | C97: ='Betistuta MS'!C97 -> Virtus Bolog | D97: ='Betistuta MS'!D97 -> 83-65 | E97: ='Betistuta MS'!E97 -> Olimpia Mila | F97: ='Betistuta MS'!F97 -> 46-34
A98: ='Betistuta MS'!A98 -> D | B98: ='Betistuta MS'!B98 -> 2022-03-29 | C98: ='Betistuta MS'!C98 -> Virtus Bolog | D98: ='Betistuta MS'!D98 -> 70-68 | E98: ='Betistuta MS'!E98 -> Gran Canaria | F98: ='Betistuta MS'!F98 -> 36-35
A99: ='Betistuta MS'!A99 -> D | B99: ='Betistuta MS'!B99 -> 2022-03-26 | C99: ='Betistuta MS'!C99 -> Virtus Bolog | D99: ='Betistuta MS'!D99 -> 78-70 | E99: ='Betistuta MS'!E99 -> Reggiana | F99: ='Betistuta MS'!F99 -> 34-26
A100: ='Betistuta MS'!A100 -> D | B100: ='Betistuta MS'!B100 -> 2022-03-20 | C100: ='Betistuta MS'!C100 -> Virtus Bolog | D100: ='Betistuta MS'!D100 -> 81-77 | E100: ='Betistuta MS'!E100 -> Venezia | F100: ='Betistuta MS'!F100 -> 31-44
A101: ='Betistuta MS'!A101 -> D | B101: ='Betistuta MS'!B101 -> 2022-03-16 | C101: ='Betistuta MS'!C101 -> Virtus Bolog | D101: ='Betistuta MS'!D101 -> 74-86 | E101: ='Betistuta MS'!E101 -> Cedevita Oli | F101: ='Betistuta MS'!F101 -> 44-51
A102: ='Betistuta MS'!A102 -> D | B102: ='Betistuta MS'!B102 -> 2022-03-06 | C102: ='Betistuta MS'!C102 -> Virtus Bolog | D102: ='Betistuta MS'!D102 -> 86-75 | E102: ='Betistuta MS'!E102 -> Basket Napol | F102: ='Betistuta MS'!F102 -> 47-32
A103: ='Betistuta MS'!A103 -> D | B103: ='Betistuta MS'!B103 -> 2022-03-03 | C103: ='Betistuta MS'!C103 -> Virtus Bolog | D103: ='Betistuta MS'!D103 -> 98-94 | E103: ='Betistuta MS'!E103 -> Bursaspor | F103: ='Betistuta MS'!F103 -> 51-44
A104: ='Betistuta MS'!A104 -> D | B104: ='Betistuta MS'!B104 -> 2022-02-17 | C104: ='Betistuta MS'!C104 -> Virtus Bolog | D104: ='Betistuta MS'!D104 -> 93-81 | E104: ='Betistuta MS'!E104 -> Brindisi | F104: ='Betistuta MS'!F104 -> 51-42
A105: ='Betistuta MS'!A105 -> D | B105: ='Betistuta MS'!B105 -> 2022-02-01 | C105: ='Betistuta MS'!C105 -> Virtus Bolog | D105: ='Betistuta MS'!D105 -> 62-68 | E105: ='Betistuta MS'!E105 -> Buducnost | F105: ='Betistuta MS'!F105 -> 30-34
B106: G | C106: M | D106: AS | E106: YS
A107: İlk Yarı | B107: ='Betistuta MS'!B107 -> 13 | C107: ='Betistuta MS'!C107 -> 7 | D107: ='Betistuta MS'!D107 -> 810 | E107: ='Betistuta MS'!E107 -> 726
A108: Maç Sonu | B108: ='Betistuta MS'!B108 -> 16 | C108: ='Betistuta MS'!C108 -> 3 | D108: ='Betistuta MS'!D108 -> 1607 | E108: ='Betistuta MS'!E108 -> 1453
B109: Tarih | C109: EvSahibi | D109: MS | E109: Deplasman | F109: İY
A110: ='Betistuta MS'!A110 -> D | B110: ='Betistuta MS'!B110 -> 2022-06-08 | C110: ='Betistuta MS'!C110 -> Virtus Bolog | D110: ='Betistuta MS'!D110 -> 62-66 | E110: ='Betistuta MS'!E110 -> Olimpia Mila | F110: ='Betistuta MS'!F110 -> 27-28
A111: ='Betistuta MS'!A111 -> D | B111: ='Betistuta MS'!B111 -> 2022-06-01 | C111: ='Betistuta MS'!C111 -> Sassari | D111: ='Betistuta MS'!D111 -> 69-87 | E111: ='Betistuta MS'!E111 -> Olimpia Mila | F111: ='Betistuta MS'!F111 -> 34-47
A112: ='Betistuta MS'!A112 -> D | B112: ='Betistuta MS'!B112 -> 2022-05-19 | C112: ='Betistuta MS'!C112 -> Reggiana | D112: ='Betistuta MS'!D112 -> 59-89 | E112: ='Betistuta MS'!E112 -> Olimpia Mila | F112: ='Betistuta MS'!F112 -> 27-43
A113: ='Betistuta MS'!A113 -> D | B113: ='Betistuta MS'!B113 -> 2022-05-08 | C113: ='Betistuta MS'!C113 -> Venezia | D113: ='Betistuta MS'!D113 -> 69-74 | E113: ='Betistuta MS'!E113 -> Olimpia Mila | F113: ='Betistuta MS'!F113 -> 41-32
A114: ='Betistuta MS'!A114 -> D | B114: ='Betistuta MS'!B114 -> 2022-05-04 | C114: ='Betistuta MS'!C114 -> Treviso | D114: ='Betistuta MS'!D114 -> 80-74 | E114: ='Betistuta MS'!E114 -> Olimpia Mila | F114: ='Betistuta MS'!F114 -> 29-32
A115: ='Betistuta MS'!A115 -> D | B115: ='Betistuta MS'!B115 -> 2022-04-28 | C115: ='Betistuta MS'!C115 -> Anadolu Efes | D115: ='Betistuta MS'!D115 -> 75-70 | E115: ='Betistuta MS'!E115 -> Olimpia Mila | F115: ='Betistuta MS'!F115 -> 42-43
A116: ='Betistuta MS'!A116 -> D | B116: ='Betistuta MS'!B116 -> 2022-04-26 | C116: ='Betistuta MS'!C116 -> Anadolu Efes | D116: ='Betistuta MS'!D116 -> 77-65 | E116: ='Betistuta MS'!E116 -> Olimpia Mila | F116: ='Betistuta MS'!F116 -> 42-35
A117: ='Betistuta MS'!A117 -> D | B117: ='Betistuta MS'!B117 -> 2022-04-23 | C117: ='Betistuta MS'!C117 -> Reggiana | D117: ='Betistuta MS'!D117 -> 63-67 | E117: ='Betistuta MS'!E117 -> Olimpia Mila | F117: ='Betistuta MS'!F117 -> 29-39
A118: ='Betistuta MS'!A118 -> D | B118: ='Betistuta MS'!B118 -> 2022-04-10 | C118: ='Betistuta MS'!C118 -> Virtus Bolog | D118: ='Betistuta MS'!D118 -> 83-65 | E118: ='Betistuta MS'!E118 -> Olimpia Mila | F118: ='Betistuta MS'!F118 -> 46-34
A119: ='Betistuta MS'!A119 -> D | B119: ='Betistuta MS'!B119 -> 2022-04-07 | C119: ='Betistuta MS'!C119 -> Lyon-Villeur | D119: ='Betistuta MS'!D119 -> 80-81 | E119: ='Betistuta MS'!E119 -> Olimpia Mila | F119: ='Betistuta MS'!F119 -> 41-40
A120: ='Betistuta MS'!A120 -> D | B120: ='Betistuta MS'!B120 -> 2022-04-03 | C120: ='Betistuta MS'!C120 -> Sassari | D120: ='Betistuta MS'!D120 -> 92-90 | E120: ='Betistuta MS'!E120 -> Olimpia Mila | F120: ='Betistuta MS'!F120 -> 56-43
A121: ='Betistuta MS'!A121 -> D | B121: ='Betistuta MS'!B121 -> 2022-03-24 | C121: ='Betistuta MS'!C121 -> Anadolu Efes | D121: ='Betistuta MS'!D121 -> 77-83 | E121: ='Betistuta MS'!E121 -> Olimpia Mila | F121: ='Betistuta MS'!F121 -> 51-36
A122: ='Betistuta MS'!A122 -> D | B122: ='Betistuta MS'!B122 -> 2022-03-22 | C122: ='Betistuta MS'!C122 -> Maccabi Tel | D122: ='Betistuta MS'!D122 -> 75-58 | E122: ='Betistuta MS'!E122 -> Olimpia Mila | F122: ='Betistuta MS'!F122 -> 40-37
A123: ='Betistuta MS'!A123 -> D | B123: ='Betistuta MS'!B123 -> 2022-03-20 | C123: ='Betistuta MS'!C123 -> Brescia | D123: ='Betistuta MS'!D123 -> 82-74 | E123: ='Betistuta MS'!E123 -> Olimpia Mila | F123: ='Betistuta MS'!F123 -> 41-31
A124: ='Betistuta MS'!A124 -> D | B124: ='Betistuta MS'!B124 -> 2022-03-10 | C124: ='Betistuta MS'!C124 -> Real Madrid | D124: ='Betistuta MS'!D124 -> 81-81 | E124: ='Betistuta MS'!E124 -> Olimpia Mila | F124: ='Betistuta MS'!F124 -> 41-41
A125: ='Betistuta MS'!A125 -> D | B125: ='Betistuta MS'!B125 -> 2022-03-06 | C125: ='Betistuta MS'!C125 -> Tortona | D125: ='Betistuta MS'!D125 -> 64-81 | E125: ='Betistuta MS'!E125 -> Olimpia Mila | F125: ='Betistuta MS'!F125 -> 37-40
A126: ='Betistuta MS'!A126 -> D | B126: ='Betistuta MS'!B126 -> 2022-03-04 | C126: ='Betistuta MS'!C126 -> Panathinaiko | D126: ='Betistuta MS'!D126 -> 75-76 | E126: ='Betistuta MS'!E126 -> Olimpia Mila | F126: ='Betistuta MS'!F126 -> 36-40
A127: ='Betistuta MS'!A127 -> D | B127: ='Betistuta MS'!B127 -> 2022-02-24 | C127: ='Betistuta MS'!C127 -> Olympiacos | D127: ='Betistuta MS'!D127 -> 67-58 | E127: ='Betistuta MS'!E127 -> Olimpia Mila | F127: ='Betistuta MS'!F127 -> 25-27
A128: ='Betistuta MS'!A128 -> D | B128: ='Betistuta MS'!B128 -> 2022-02-08 | C128: ='Betistuta MS'!C128 -> Zalgiris Kau | D128: ='Betistuta MS'!D128 -> 70-74 | E128: ='Betistuta MS'!E128 -> Olimpia Mila | F128: ='Betistuta MS'!F128 -> 35-35
A129: ='Betistuta MS'!A129 -> D | B129: ='Betistuta MS'!B129 -> 2022-02-05 | C129: ='Betistuta MS'!C129 -> Trento | D129: ='Betistuta MS'!D129 -> 73-79 | E129: ='Betistuta MS'!E129 -> Olimpia Mila | F129: ='Betistuta MS'!F129 -> 40-40
B130: G | C130: M | D130: AS | E130: YS
A131: İlk Yarı | B131: ='Betistuta MS'!B131 -> 9 | C131: ='Betistuta MS'!C131 -> 8 | D131: ='Betistuta MS'!D131 -> 743 | E131: ='Betistuta MS'!E131 -> 760
A132: Maç Sonu | B132: ='Betistuta MS'!B132 -> 11 | C132: ='Betistuta MS'!C132 -> 8 | D132: ='Betistuta MS'!D132 -> 1492 | E132: ='Betistuta MS'!E132 -> 1473
A134: Rekabet Analizi
B135: Tarih | C135: EvSahibi | D135: MS | E135: Deplasman | F135: İY | G135: Lig
A136: Detay | B136: ='Betistuta MS'!B136 -> 2022-06-08 | C136: ='Betistuta MS'!C136 -> Virtus Bologna | D136: ='Betistuta MS'!D136 -> 62-66 | E136: ='Betistuta MS'!E136 -> Olimpia Milano | F136: ='Betistuta MS'!F136 -> 27-28 | G136: BSN
A137: Detay | B137: ='Betistuta MS'!B137 -> 2022-04-10 | C137: ='Betistuta MS'!C137 -> Virtus Bologna | D137: ='Betistuta MS'!D137 -> 83-65 | E137: ='Betistuta MS'!E137 -> Olimpia Milano | F137: ='Betistuta MS'!F137 -> 46-34 | G137: BSN
A138: Detay | B138: ='Betistuta MS'!B138 -> 2021-06-11 | C138: ='Betistuta MS'!C138 -> Virtus Bologna | D138: ='Betistuta MS'!D138 -> 73-62 | E138: ='Betistuta MS'!E138 -> Olimpia Milano | F138: ='Betistuta MS'!F138 -> 41-43 | G138: BSN
A139: Detay | B139: ='Betistuta MS'!B139 -> 2021-06-09 | C139: ='Betistuta MS'!C139 -> Virtus Bologna | D139: ='Betistuta MS'!D139 -> 76-58 | E139: ='Betistuta MS'!E139 -> Olimpia Milano | F139: ='Betistuta MS'!F139 -> 37-34 | G139: BSN
A140: Detay | B140: ='Betistuta MS'!B140 -> 2020-12-27 | C140: ='Betistuta MS'!C140 -> Virtus Bologna | D140: ='Betistuta MS'!D140 -> 68-73 | E140: ='Betistuta MS'!E140 -> Olimpia Milano | F140: ='Betistuta MS'!F140 -> 38-46 | G140: BSN
A141: Detay | B141: ='Betistuta MS'!B141 -> 2019-12-29 | C141: ='Betistuta MS'!C141 -> Virtus Bologna | D141: ='Betistuta MS'!D141 -> 83-70 | E141: ='Betistuta MS'!E141 -> Olimpia Milano | F141: ='Betistuta MS'!F141 -> 46-40 | G141: BSN
A142: Detay | B142: 2018-07-10 | C142: Capitanes de Arecibo | D142: 85-73 | E142: San German | G142: BSN
A143: Detay | B143: 2018-05-07 | C143: Capitanes de Arecibo | D143: 97-87 | E143: San German | F143: 48-45 | G143: BSN
A144: Detay | B144: 2017-06-23 | C144: Capitanes de Arecibo | D144: 88-82 | E144: San German | F144: 52-43 | G144: BSN
A145: Detay | B145: 2017-04-07 | C145: Capitanes de Arecibo | D145: 87-77 | E145: San German | F145: 40-37 | G145: BSN
A146: Detay | B146: 2016-03-21 | C146: Capitanes de Arecibo | D146: 89-79 | E146: San German | F146: 39-37 | G146: BSN
A147: Detay | B147: 2015-04-28 | C147: Capitanes de Arecibo | D147: 92-84 | E147: San German | F147: 42-37 | G147: BSN 2015
A148: Detay | B148: 2015-04-05 | C148: Capitanes de Arecibo | D148: 91-77 | E148: San German | F148: 40-38 | G148: BSN 2015
A150: Bahis oynayan tüm bireyler, bulunduğu ülkenin kural ve yasalarından sorumludur

Sheet Nowgoal5
A1: Average Get/Miss Comparison | R1: =IF(R12>'Betistuta MS'!AA28,"ÜST","ALT") -> ALT
A2: Virtus Bologna | P2: =A2 -> Virtus Bologna | R2: =CONCATENATE((R11)," / ",(R12)) -> 69 / 145 | S2: =A9 -> EA7-Emporio Armani Milano | Z2: BET365 | AA2: HANDİKAP ODDS | AD2: O/U ODDS | AM2: 8 | AN2: =$O$3 -> 0 | AO2: ALT | AP2: OYNA
A3: 10 | P3: =C54 -> 19.39008318 | R3: 1. PERİYOT | S3: =D54 -> 16.12882382 | AA3: =B17 -> 0.91 | AB3: =C18 -> 3.5 | AC3: =C19 -> 0.91 | AD3: =C20 -> 0.95 | AE3: =C21 -> 153.5 | AF3: =C22 -> 0.87 | AH3: =(SUBSTITUTE(AE3,".",",")*1)+5 -> 158.5 | AI3: =(SUBSTITUTE(AE3,".",",")*1)+2 -> 155.5 | AJ3: =(SUBSTITUTE(AE3,".",",")*1)-(SUBSTITUTE(AE4,".",",")*1) -> 1 | AL3: ALT | AM3: 7 | AN3: =$O$3 -> 0 | AO3: ALT | AP3: OYNA
A4: Matches | B4: Q1 | C4: Q2 | D4: Q3 | E4: Q4 | F4: OT | G4: Full Time | P4: =C55 -> 14.97318318 | R4: 2. PERİYOT | S4: =D55 -> 20.02631324 | AA4: =B18 -> 0.80 | AB4: =B19 -> 3.5 | AC4: =B20 -> 0.95 | AD4: =B21 -> 0.86 | AE4: =B22 -> 152.5 | AF4: =B23 -> 0.86 | AH4: =(SUBSTITUTE(AE3,".",",")*1)-8 -> 145.5 | AI4: =(SUBSTITUTE(AE3,".",",")*1)-4 -> 149.5 | AL4: ÜST | AM4: 6 | AN4: =$O$3 -> 0 | AO4: ALT | AP4: OYNA
A5: G | B5: L | C5: G | D5: L | E5: G | F5: L | G5: G | H5: L | I5: G | J5: L | K5: G | L5: L | P5: =INT(SUM(P3:Q4)) -> 34 | R5: İLK YARI | S5: =INT(SUM(S3:T4)) -> 36 | AM5: 5 | AN5: =$O$3 -> 0 | AO5: ALT | AP5: OYNA
A6: Total | B6: 8 | C6: 18 | D6: 18 | E6: 20 | F6: 15 | G6: 19 | H6: 17 | I6: 20 | J6: 16 | K6: 0 | L6: 0 | M6: 76 | N6: 66 | P6: =C56 -> 17.76684511 | R6: 3. PERİYOT | S6: =D56 -> 15.78752052 | AM6: 4 | AN6: =$O$3 -> 0 | AO6: ALT | AP6: OYNA
A7: Home | B7: 6 | C7: 17 | D7: 19 | E7: 19 | F7: 14 | G7: 18 | H7: 18 | I7: 22 | J7: 16 | K7: 0 | L7: 0 | M7: 76 | N7: 67 | P7: =D57 -> 24.33455366 | R7: 4. PERİYOT | S7: =C57 -> 11.38554358 | AC7: =VLOOKUP(AJ3,AM2:AP112,2,FALSE) -> BELİRSİZ | AD7: =VLOOKUP(AJ3,AM2:AP112,3,FALSE) -> ARALIK | AE7: =VLOOKUP(AJ3,AM2:AP112,4,FALSE) -> DİKKAT | AM7: 3 | AN7: =AH3 -> 158.5 | AO7: ALT | AP7: OYNA
A8: Away | B8: 2 | C8: 20 | D8: 16 | E8: 22 | F8: 18 | G8: 20 | H8: 14 | I8: 16 | J8: 14 | K8: 0 | L8: 0 | M8: 76 | N8: 62 | P8: =ROUNDUP(SUM(P5:Q7),0)+2 -> 79 | R8: MAÇ SONU | S8: =ROUNDUP(SUM(S5:T7),0)+2 -> 66 | AM8: 2 | AN8: =AH3 -> 158.5 | AO8: ALT | AP8: OYNA
A9: EA7-Emporio Armani Milano | R9: =CONCATENATE(IF(P5>S5,"İY1","İY2")," / ",IF(P8>S8,"MS1","MS2")) -> İY2 / MS1 | AM9: 1 | AN9: BELİRSİZ | AO9: ARALIK | AP9: DİKKAT
A10: 10 | AM10: 0 | AN10: BELİRSİZ | AO10: ARALIK | AP10: DİKKAT
A11: Matches | B11: Q1 | C11: Q2 | D11: Q3 | E11: Q4 | F11: OT | G11: Full Time | Q11: İLK YARI | R11: =N59 -> 69 | AM11: -1 | AN11: BELİRSİZ | AO11: ARALIK | AP11: DİKKAT
A12: G | B12: L | C12: G | D12: L | E12: G | F12: L | G12: G | H12: L | I12: G | J12: L | K12: G | L12: L | Q12: MAÇ SONU | R12: =P8+S8 -> 145 | AM12: -2 | AN12: =AH4 -> 145.5 | AO12: ÜST | AP12: OYNA
A13: Total | B13: 8 | C13: 22 | D13: 17 | E13: 22 | F13: 19 | G13: 23 | H13: 17 | I13: 16 | J13: 18 | K13: 0 | L13: 0 | M13: 84 | N13: 71 | AM13: -3 | AN13: =AH4 -> 145.5 | AO13: ÜST | AP13: OYNA
A14: Home | B14: 4 | C14: 26 | D14: 19 | E14: 24 | F14: 22 | G14: 24 | H14: 18 | I14: 16 | J14: 17 | K14: 0 | L14: 0 | M14: 90 | N14: 75 | AM14: -4 | AN14: =$O$4 -> 0 | AO14: ÜST | AP14: OYNA
A15: Away | B15: 4 | C15: 18 | D15: 15 | E15: 20 | F15: 17 | G15: 22 | H15: 16 | I15: 16 | J15: 19 | K15: 0 | L15: 0 | M15: 78 | N15: 66 | AM15: -5 | AN15: =$O$4 -> 0 | AO15: ÜST | AP15: OYNA
AM16: -6 | AN16: =$O$4 -> 0 | AO16: ÜST | AP16: OYNA
A17: BET365 ODDS | B17: 0.91 | M17: =M6+M7+M8-N6-N7-N8 -> 33 | N17: =M13+M14+M15-N13-N14-N15 -> 40 | AM17: -7 | AN17: =$O$4 -> 0 | AO17: ÜST | AP17: OYNA
B18: 0.80 | C18: 3.5 | N18: =IF(N17>M17,"MS2","MS1") -> MS2 | AM18: -8 | AN18: =$O$4 -> 0 | AO18: ÜST | AP18: OYNA
B19: 3.5 | C19: 0.91 | N19: =(N17-M17)/2 -> 3.5 | AM19: 0.5 | AN19: BELİRSİZ | AO19: ARALIK | AP19: DİKKAT
B20: 0.95 | C20: 0.95 | AM20: 1.5 | AN20: BELİRSİZ | AO20: ARALIK | AP20: DİKKAT
B21: 0.86 | C21: 153.5 | AM21: 2.5 | AN21: =AN8 -> 158.5 | AO21: ALT | AP21: OYNA
B22: 152.5 | C22: 0.87 | AM22: 3.5 | AN22: =AN7 -> 158.5 | AO22: ALT | AP22: OYNA
B23: 0.86 | AM23: 4.5 | AN23: =$O$3 -> 0 | AO23: ALT | AP23: OYNA
AM24: 5.5 | AN24: =$O$3 -> 0 | AO24: ALT | AP24: OYNA
AM25: 6.5 | AN25: 0 | AO25: ALT | AP25: OYNA
AM26: 7.5 | AN26: 0 | AO26: ALT | AP26: OYNA
A27: =A2 -> Virtus Bologna | C27: P1 | E27: P2 | G27: P3 | I27: P4 | K27: OT | M27: FT | AM27: 8.5 | AN27: 0 | AO27: ALT | AP27: OYNA
C28: (L/G) | D28: G_dep | E28: (L/G) | F28: G_dep | G28: (L/G) | H28: G_dep | I28: (L/G) | J28: G_dep | K28: (L/G) | L28: G_dep | M28: (L/G) | N28: G_dep | AM28: -0.5 | AN28: BELİRSİZ | AO28: ARALIK | AP28: DİKKAT
A29: Total | B29: =B6 -> 8 | C29: =IFERROR(D6/C6,0) -> 1 | D29: =C13 -> 22 | E29: =IFERROR(F6/E6,0) -> 0.75 | F29: =E13 -> 22 | G29: =IFERROR(H6/G6,0) -> 0.8947368421 | H29: =G13 -> 23 | I29: =IFERROR(J6/I6,0) -> 0.8 | J29: =I13 -> 16 | K29: =IFERROR(L6/K6,0) -> 0 | L29: =K13 -> 0 | M29: =IFERROR(N6/M6,0) -> 0.8684210526 | N29: =M13 -> 84 | AM29: -1.5 | AN29: BELİRSİZ | AO29: ARALIK | AP29: DİKKAT
A30: Home | B30: =B7 -> 6 | C30: =IFERROR(D7/C7,0) -> 1.117647059 | D30: =C14 -> 26 | E30: =IFERROR(F7/E7,0) -> 0.7368421053 | F30: =E14 -> 24 | G30: =IFERROR(H7/G7,0) -> 1 | H30: =G14 -> 24 | I30: =IFERROR(J7/I7,0) -> 0.7272727273 | J30: =I14 -> 16 | K30: =IFERROR(L7/K7,0) -> 0 | L30: =K14 -> 0 | M30: =IFERROR(N7/M7,0) -> 0.8815789474 | N30: =M14 -> 90 | AM30: -2.5 | AN30: =AN12 -> 145.5 | AO30: ÜST | AP30: OYNA
A31: Away | B31: =B8 -> 2 | C31: =IFERROR(D8/C8,0) -> 0.8 | D31: =C15 -> 18 | E31: =IFERROR(F8/E8,0) -> 0.8181818182 | F31: =E15 -> 20 | G31: =IFERROR(H8/G8,0) -> 0.7 | H31: =G15 -> 22 | I31: =IFERROR(J8/I8,0) -> 0.875 | J31: =I15 -> 16 | K31: =IFERROR(L8/K8,0) -> 0 | L31: =K15 -> 0 | M31: =IFERROR(N8/M8,0) -> 0.8157894737 | N31: =M15 -> 78 | AM31: -3.5 | AN31: =AN13 -> 145.5 | AO31: ÜST | AP31: OYNA
AM32: -4.5 | AN32: =AN14 -> 0 | AO32: ÜST | AP32: OYNA
A33: =A9 -> EA7-Emporio Armani Milano | C33: P1 | E33: P2 | G33: P3 | I33: P4 | K33: OT | M33: FT | AM33: -5.5 | AN33: =AN15 -> 0 | AO33: ÜST | AP33: OYNA
C34: (L/G) | D34: G_ev | E34: (L/G) | F34: G_ev | G34: (L/G) | H34: G_ev | I34: (L/G) | J34: G_ev | K34: (L/G) | L34: G_ev | M34: (L/G) | N34: G_ev | AM34: -6.5 | AN34: 0 | AO34: ÜST | AP34: OYNA
A35: Total | B35: =B13 -> 8 | C35: =IFERROR(D13/C13,0) -> 0.7727272727 | D35: =C6 -> 18 | E35: =IFERROR(F13/E13,0) -> 0.8636363636 | F35: =E6 -> 20 | G35: =IFERROR(H13/G13,0) -> 0.7391304348 | H35: =G6 -> 19 | I35: =IFERROR(J13/I13,0) -> 1.125 | J35: =I6 -> 20 | K35: =IFERROR(L13/K13,0) -> 0 | L35: =K6 -> 0 | M35: =IFERROR(N13/M13,0) -> 0.8452380952 | N35: =M6 -> 76 | AM35: -7.5 | AN35: 0 | AO35: ÜST | AP35: OYNA
A36: Home | B36: =B14 -> 4 | C36: =IFERROR(D14/C14,0) -> 0.7307692308 | D36: =C7 -> 17 | E36: =IFERROR(F14/E14,0) -> 0.9166666667 | F36: =E7 -> 19 | G36: =IFERROR(H14/G14,0) -> 0.75 | H36: =G7 -> 18 | I36: =IFERROR(J14/I14,0) -> 1.0625 | J36: =I7 -> 22 | K36: =IFERROR(L14/K14,0) -> 0 | L36: =K7 -> 0 | M36: =IFERROR(N14/M14,0) -> 0.8333333333 | N36: =M7 -> 76 | AM36: -8.5 | AN36: 0 | AO36: ÜST | AP36: OYNA
A37: Away | B37: =B15 -> 4 | C37: =IFERROR(D15/C15,0) -> 0.8333333333 | D37: =C8 -> 20 | E37: =IFERROR(F15/E15,0) -> 0.85 | F37: =E8 -> 22 | G37: =IFERROR(H15/G15,0) -> 0.7272727273 | H37: =G8 -> 20 | I37: =IFERROR(J15/I15,0) -> 1.1875 | J37: =I8 -> 16 | K37: =IFERROR(L15/K15,0) -> 0 | L37: =K8 -> 0 | M37: =IFERROR(N15/M15,0) -> 0.8461538462 | N37: =M8 -> 76 | AM37: 9 | AN37: FARK | AO37: UYGUN | AP37: DEĞİL
AM38: 9.5 | AN38: FARK | AO38: UYGUN | AP38: DEĞİL
A39: =A27 -> Virtus Bologna | C39: P1 | E39: P2 | G39: P3 | I39: P4 | K39: OT | M39: FT | AM39: 10 | AN39: FARK | AO39: UYGUN | AP39: DEĞİL
C40: (L/G)*G_dep | E40: (L/G)*G_dep | G40: (L/G)*G_dep | I40: (L/G)*G_dep | K40: (L/G)*G_dep | M40: (L/G)*G_dep | AM40: 10.5 | AN40: FARK | AO40: UYGUN | AP40: DEĞİL
A41: Total | B41: =B29 -> 8 | C41: =C29*D29 -> 22 | E41: =E29*F29 -> 16.5 | G41: =G29*H29 -> 20.57894737 | I41: =I29*J29 -> 12.8 | K41: =K29*L29 -> 0 | M41: =M29*N29 -> 72.94736842 | AM41: 11 | AN41: FARK | AO41: UYGUN | AP41: DEĞİL
A42: Home | B42: =B30 -> 6 | C42: =C30*D30 -> 29.05882353 | E42: =E30*F30 -> 17.68421053 | G42: =G30*H30 -> 24 | I42: =I30*J30 -> 11.63636364 | K42: =K30*L30 -> 0 | M42: =M30*N30 -> 79.34210526 | AM42: 11.5 | AN42: FARK | AO42: UYGUN | AP42: DEĞİL
A43: Away | B43: 2 | C43: 14.4 | E43: 16.36363636 | G43: 15.4 | I43: 14 | K43: =K31*L31 -> 0 | M43: 63.63157895 | AM43: 12 | AN43: FARK | AO43: UYGUN | AP43: DEĞİL
A44: TOPLAM | C44: =SUM(C41:D43)/3 -> 21.81960784 | E44: =SUM(E41:F43)/3 -> 16.8492823 | G44: =SUM(G41:H43)/3 -> 19.99298246 | I44: =SUM(I41:J43)/3 -> 12.81212121 | K44: =SUM(K41:L43)/3 -> 0 | M44: =SUM(M41:N43)/3 -> 71.97368421 | AM44: 12.5 | AN44: FARK | AO44: UYGUN | AP44: DEĞİL
AM45: 13 | AN45: FARK | AO45: UYGUN | AP45: DEĞİL
A46: =A33 -> EA7-Emporio Armani Milano | C46: P1 | E46: P2 | G46: P3 | I46: P4 | K46: OT | M46: FT | AM46: 13.5 | AN46: FARK | AO46: UYGUN | AP46: DEĞİL
C47: (L/G)*G_ev | E47: (L/G)*G_ev | G47: (L/G)*G_ev | I47: (L/G)*G_ev | K47: (L/G)*G_ev | M47: (L/G)*G_ev | AM47: 14 | AN47: FARK | AO47: UYGUN | AP47: DEĞİL
A48: Total | B48: =B35 -> 8 | C48: =C35*D35 -> 13.90909091 | E48: =E35*F35 -> 17.27272727 | G48: =G35*H35 -> 14.04347826 | I48: =I35*J35 -> 22.5 | K48: =K35*L35 -> 0 | M48: =M35*N35 -> 64.23809524 | AM48: 14.5 | AN48: FARK | AO48: UYGUN | AP48: DEĞİL
A49: Home | B49: =B36 -> 4 | C49: =C36*D36 -> 12.42307692 | E49: =E36*F36 -> 17.41666667 | G49: =G36*H36 -> 13.5 | I49: =I36*J36 -> 23.375 | K49: =K36*L36 -> 0 | M49: =M36*N36 -> 63.33333333 | AM49: 15 | AN49: FARK | AO49: UYGUN | AP49: DEĞİL
A50: Away | B50: 4 | C50: 16.66666667 | E50: 18.7 | G50: 14.54545455 | I50: 19 | K50: 0 | M50: 64.30769231 | AM50: 15.5 | AN50: FARK | AO50: UYGUN | AP50: DEĞİL
A51: TOPLAM | C51: =SUM(C48:D50)/3 -> 14.33294483 | E51: =SUM(E48:F50)/3 -> 17.79646465 | G51: =SUM(G48:H50)/3 -> 14.02964427 | I51: =SUM(I48:J50)/3 -> 21.625 | K51: =SUM(K48:L50)/3 -> 0 | M51: =SUM(M48:N50)/3 -> 63.95970696 | AM51: 16 | AN51: FARK | AO51: UYGUN | AP51: DEĞİL
AM52: 16.5 | AN52: FARK | AO52: UYGUN | AP52: DEĞİL
AM53: 17 | AN53: FARK | AO53: UYGUN | AP53: DEĞİL
B54: 1.P | C54: =C44*M51/M44 -> 19.39008318 | D54: =C51*M44/M51 -> 16.12882382 | E54: =MIN(C44,C51)/2 -> 7.166472416 | G54: 1.P | H54: =INT(IF(C44>C51,C54+E54,C54)) -> 26 | I54: =INT(IF(C44>C51,D54-E54,D54)) -> 8 | J54: =SUM(H54:I54) -> 34 | AM54: 17.5 | AN54: FARK | AO54: UYGUN | AP54: DEĞİL
B55: 2.P | C55: =E44*M51/M44 -> 14.97318318 | D55: =E51*M44/M51 -> 20.02631324 | E55: =MIN(E44,E51)/2 -> 8.424641148 | G55: 2.P | H55: =INT(IF(E44>E51,C55-E55*2,C55)) -> 14 | I55: =INT(IF(E44>E51,D55+E55,D55)) -> 20 | J55: =SUM(H55:I55) -> 34 | AM55: 18 | AN55: FARK | AO55: UYGUN | AP55: DEĞİL
B56: 3.P | C56: =G44*M51/M44 -> 17.76684511 | D56: =G51*M44/M51 -> 15.78752052 | E56: =MIN(G44,G51)/2 -> 7.014822134 | G56: 3.P | H56: =INT(IF(G44>G51,C56,C56+E56)) -> 17 | I56: =INT(IF(G44>G51,D56,D56-E56*2)) -> 15 | J56: 32 | AM56: 18.5 | AN56: FARK | AO56: UYGUN | AP56: DEĞİL
B57: 4.P | C57: =I44*M51/M44 -> 11.38554358 | D57: =I51*M44/M51 -> 24.33455366 | E57: =MIN(I44,I51)/2 -> 6.406060606 | G57: 4.P | H57: =INT(IF(I44>I51,C57,C57-E57)) -> 4 | I57: =INT(IF(G44>G51,D57,D57-E57)) -> 24 | J57: 28 | AM57: 19 | AN57: FARK | AO57: UYGUN | AP57: DEĞİL
B58: FT | C58: =SUM(C54:C57) -> 63.51565505 | D58: =SUM(D54:D57) -> 76.27721125 | E58: =SUM(E54:E57)/B6 -> 3.626499538 | G58: FT | H58: =SUM(H54:H57) -> 61 | I58: =SUM(I54:I57) -> 67 | J58: =SUM(H58:I58) -> 128 | L58: =INT(((D58+H58)/2)) -> 68 | M58: =INT(((C58+I58)/2)) -> 65 | N58: =L58+M58 -> 133 | AM58: 19.5 | AN58: FARK | AO58: UYGUN | AP58: DEĞİL
B59: HT | C59: =C54+C55 -> 34.36326637 | D59: =D54+D55 -> 36.15513706 | E59: =C59+D59 -> 70.51840343 | F59: =(E59-J59)/B6 -> 0.3148004287 | G59: HT | H59: =H54+H55 -> 40 | I59: =I54+I55 -> 28 | J59: =H59+I59 -> 68 | L59: =INT(((D59+H59)/2)*(E59/J59)+F59) -> 39 | M59: =INT(((C59+I59)/2)*(J59/E59)+F59) -> 30 | N59: =M59+L59 -> 69 | AM59: 20 | AN59: FARK | AO59: UYGUN | AP59: DEĞİL
AM60: 20.5 | AN60: FARK | AO60: UYGUN | AP60: DEĞİL
AM61: 21 | AN61: FARK | AO61: UYGUN | AP61: DEĞİL
AM62: 21.5 | AN62: FARK | AO62: UYGUN | AP62: DEĞİL
AM63: 22 | AN63: FARK | AO63: UYGUN | AP63: DEĞİL
AM64: 22.5 | AN64: FARK | AO64: UYGUN | AP64: DEĞİL
AM65: 23 | AN65: FARK | AO65: UYGUN | AP65: DEĞİL
AM66: 23.5 | AN66: FARK | AO66: UYGUN | AP66: DEĞİL
AM67: 24 | AN67: FARK | AO67: UYGUN | AP67: DEĞİL
AM68: 24.5 | AN68: FARK | AO68: UYGUN | AP68: DEĞİL
AM69: 25 | AN69: FARK | AO69: UYGUN | AP69: DEĞİL
AM70: 25.5 | AN70: FARK | AO70: UYGUN | AP70: DEĞİL
AM71: 26 | AN71: FARK | AO71: UYGUN | AP71: DEĞİL
AM72: 26.5 | AN72: FARK | AO72: UYGUN | AP72: DEĞİL
AM73: 27 | AN73: FARK | AO73: UYGUN | AP73: DEĞİL
AM74: 27.5 | AN74: FARK | AO74: UYGUN | AP74: DEĞİL
AM75: -9 | AN75: FARK | AO75: UYGUN | AP75: DEĞİL
AM76: -9.5 | AN76: FARK | AO76: UYGUN | AP76: DEĞİL
AM77: -10 | AN77: FARK | AO77: UYGUN | AP77: DEĞİL
AM78: -10.5 | AN78: FARK | AO78: UYGUN | AP78: DEĞİL
AM79: -11 | AN79: FARK | AO79: UYGUN | AP79: DEĞİL
AM80: -11.5 | AN80: FARK | AO80: UYGUN | AP80: DEĞİL
AM81: -12 | AN81: FARK | AO81: UYGUN | AP81: DEĞİL
AM82: -12.5 | AN82: FARK | AO82: UYGUN | AP82: DEĞİL
AM83: -13 | AN83: FARK | AO83: UYGUN | AP83: DEĞİL
AM84: -13.5 | AN84: FARK | AO84: UYGUN | AP84: DEĞİL
AM85: -14 | AN85: FARK | AO85: UYGUN | AP85: DEĞİL
AM86: -14.5 | AN86: FARK | AO86: UYGUN | AP86: DEĞİL
AM87: -15 | AN87: FARK | AO87: UYGUN | AP87: DEĞİL
AM88: -15.5 | AN88: FARK | AO88: UYGUN | AP88: DEĞİL
AM89: -16 | AN89: FARK | AO89: UYGUN | AP89: DEĞİL
AM90: -16.5 | AN90: FARK | AO90: UYGUN | AP90: DEĞİL
AM91: -17 | AN91: FARK | AO91: UYGUN | AP91: DEĞİL
AM92: -17.5 | AN92: FARK | AO92: UYGUN | AP92: DEĞİL
AM93: -18 | AN93: FARK | AO93: UYGUN | AP93: DEĞİL
AM94: -18.5 | AN94: FARK | AO94: UYGUN | AP94: DEĞİL
AM95: -19 | AN95: FARK | AO95: UYGUN | AP95: DEĞİL
AM96: -19.5 | AN96: FARK | AO96: UYGUN | AP96: DEĞİL
AM97: -20 | AN97: FARK | AO97: UYGUN | AP97: DEĞİL
AM98: -20.5 | AN98: FARK | AO98: UYGUN | AP98: DEĞİL
AM99: -21 | AN99: FARK | AO99: UYGUN | AP99: DEĞİL
AM100: -21.5 | AN100: FARK | AO100: UYGUN | AP100: DEĞİL
AM101: -22 | AN101: FARK | AO101: UYGUN | AP101: DEĞİL
AM102: -22.5 | AN102: FARK | AO102: UYGUN | AP102: DEĞİL
AM103: -23 | AN103: FARK | AO103: UYGUN | AP103: DEĞİL
AM104: -23.5 | AN104: FARK | AO104: UYGUN | AP104: DEĞİL
AM105: -24 | AN105: FARK | AO105: UYGUN | AP105: DEĞİL
AM106: -24.5 | AN106: FARK | AO106: UYGUN | AP106: DEĞİL
AM107: -25 | AN107: FARK | AO107: UYGUN | AP107: DEĞİL
AM108: -25.5 | AN108: FARK | AO108: UYGUN | AP108: DEĞİL
AM109: -26 | AN109: FARK | AO109: UYGUN | AP109: DEĞİL
AM110: -26.5 | AN110: FARK | AO110: UYGUN | AP110: DEĞİL
AM111: -27 | AN111: FARK | AO111: UYGUN | AP111: DEĞİL
AM112: -27.5 | AN112: FARK | AO112: UYGUN | AP112: DEĞİL

Sheet Betistuta Kullanımı
A1: SARI HÜCREYE SADECE YAPIŞTIR

Sheet Nowgoal5 Kullanımı

Sheet MS
A1: =IF(COUNTIF(D2:E11,D2)>COUNTIF(D2:E11,E2),D2,E2) -> Virtus Bolog | F1: SONUÇ | G1: BUL | H1: SONUÇ | J1: TG | K1: GT | L1: PKT | M1: PERF | N1: FORM | O1: FARK | P1: TOPLAM | Q1: =A1 -> Virtus Bolog | U1: BUL | V1: SONUÇ | X1: SONUÇ | Z1: TG | AA1: GT | AB1: PKT | AC1: PERF | AD1: FORM | AE1: TD | AF1: OV | AG1: İÇ SAHA | AH1: GENEL | AI1: İSTATİSTİK | AJ1: EV SAHİBİ | AM1: =AJ1 -> EV SAHİBİ | AN1: =AJ15 -> DEPLASMAN
A2: 1 | B2: ='Betistuta MS'!B48 -> 2022-06-08 | C2: ='Betistuta MS'!A48 -> D | D2: ='Betistuta MS'!C48 -> Virtus Bolog | E2: ='Betistuta MS'!E48 -> Olimpia Mila | F2: ='Betistuta MS'!D48 -> 62-66 | G2: =SEARCH("-",F2) -> 3 | H2: =LEFT(F2,G2-1)*1 -> 62 | I2: =MID(F2,G2+1,4)*1 -> 66 | J2: =IF(OR(H2="",I2=""),"",IF(D2=$A$1,H2,I2)) -> 62 | K2: =IF(OR(H2="",I2=""),"",IF(D2=$A$1,I2,H2)) -> 66 | L2: =IF(OR(J2="",K2=""),"",IF(J2>K2,3,IF(J2<K2,0,1))) -> 0 | M2: =IF(L2="","",IF(L2=3,1,IF(L2=1,0.5,IF(L2=0,0)))) -> 0 | N2: =IF(L2="","",IF(L2=1,"D",IF(L2=0,"L",IF(L2=3,"W")))) -> L | O2: =IF(OR(J2="",K2=""),"",J2-K2) -> -4 | P2: =IF(OR(H2="",I2=""),"",H2+I2) -> 128 | Q2: 1 | R2: =IF(D2=$A$1,D2,"-") -> Virtus Bolog | S2: =IF(D2=$A$1,E2,"-") -> Olimpia Mila | T2: =IFERROR(IF(AND(R2=D2,S2=E2),F2,"-"),"") -> 62-66 | U2: =IFERROR(SEARCH("-",T2),"") -> 3 | V2: =IFERROR(LEFT(T2,U2-1)*1,"") -> 62 | W2: =IFERROR(MID(T2,U2+1,4)*1,"") -> 66 | X2: =IFERROR(V2,"") -> 62 | Y2: =IFERROR(W2,"") -> 66 | Z2: =IF(OR(X2="",Y2=""),"",X2) -> 62 | AA2: =IF(OR(X2="",Y2=""),"",Y2) -> 66 | AB2: =IF(OR(Z2="",AA2=""),"",IF(Z2>AA2,3,IF(Z2<AA2,0,1))) -> 0 | AC2: =IF(AB2="","",IF(AB2=3,1,IF(AB2=1,0.5,IF(AB2=0,0)))) -> 0 | AD2: =IF(AB2="","",IF(AB2=1,"D",IF(AB2=0,"L",IF(AB2=3,"W")))) -> L | AE2: =IF(OR(Z2="",AA2=""),"",Z2-AA2) -> -4 | AF2: =IFERROR(SUM(Z2:AA2),"") -> 128 | AG2: =COUNT(X2:X11) -> 7 | AH2: =COUNT(H2:H11) -> 10 | AI2: Oynanan Maç Sayısı | AJ2: 1 | AK2: =J11 -> 73 | AL2: =K11 -> 108 | AM2: =(AK12+AL26)/2 -> 68.5 | AN2: =(AL12+AK26)/2 -> 70.5
A3: =1+A2 -> 2 | B3: ='Betistuta MS'!B49 -> 2022-05-31 | C3: ='Betistuta MS'!A49 -> D | D3: ='Betistuta MS'!C49 -> Tortona | E3: ='Betistuta MS'!E49 -> Virtus Bolog | F3: ='Betistuta MS'!D49 -> 69-77 | G3: 3 | H3: 69 | I3: 77 | J3: 77 | K3: 69 | L3: =IF(OR(J3="",K3=""),"",IF(J3>K3,3,IF(J3<K3,0,1))) -> 3 | M3: =IF(L3="","",IF(L3=3,1,IF(L3=1,0.5,IF(L3=0,0)))) -> 1 | N3: =IF(L3="","",IF(L3=1,"D",IF(L3=0,"L",IF(L3=3,"W")))) -> W | O3: 8 | P3: 146 | Q3: =1+Q2 -> 2 | R3: - | S3: - | T3: - | U3: =IFERROR(SEARCH("-",T3),"") -> 1 | V3: =IFERROR(LEFT(T3,U3-1)*1,"") ->  | W3: =IFERROR(MID(T3,U3+1,4)*1,"") ->  | X3: =IFERROR(V3,"") ->  | Z3: =IF(OR(X3="",Y3=""),"",X3) ->  | AA3: =IF(OR(X3="",Y3=""),"",Y3) ->  | AB3: =IF(OR(Z3="",AA3=""),"",IF(Z3>AA3,3,IF(Z3<AA3,0,1))) ->  | AC3: =IF(AB3="","",IF(AB3=3,1,IF(AB3=1,0.5,IF(AB3=0,0)))) ->  | AD3: =IF(AB3="","",IF(AB3=1,"D",IF(AB3=0,"L",IF(AB3=3,"W")))) ->  | AE3: =IF(OR(Z3="",AA3=""),"",Z3-AA3) ->  | AF3: =IFERROR(SUM(Z3:AA3),"") -> 0 | AG3: =SUM(Z2:Z11) -> 541 | AH3: =SUM(J2:J11) -> 766 | AI3: Attıkları Basket Sayısı | AJ3: 2 | AK3: =J10 -> 79 | AL3: =K10 -> 57 | AM3: =IF(AM2>=7,"7",IF(AM2>=6,"6",IF(AM2>=5,"5",IF(AM2>=4,"4",IF(AM2>=3,"3",IF(AM2>=2,"2",IF(AM2>=1,"1","0"))))))) -> 7 | AN3: =IF(AN2>=7,"7",IF(AN2>=6,"6",IF(AN2>=5,"5",IF(AN2>=4,"4",IF(AN2>=3,"3",IF(AN2>=2,"2",IF(AN2>=1,"1","0"))))))) -> 7
A4: =1+A3 -> 3 | B4: ='Betistuta MS'!B50 -> 2022-05-29 | C4: ='Betistuta MS'!A50 -> D | D4: ='Betistuta MS'!C50 -> Virtus Bolog | E4: ='Betistuta MS'!E50 -> Tortona | F4: ='Betistuta MS'!D50 -> 91-70 | G4: 3 | H4: 91 | I4: 70 | J4: 91 | K4: 70 | L4: 3 | M4: 1 | N4: W | O4: 21 | P4: 161 | Q4: =1+Q3 -> 3 | R4: Virtus Bolog | S4: Tortona | T4: 91-70 | U4: 3 | V4: =IFERROR(LEFT(T4,U4-1)*1,"") -> 91 | W4: 70 | X4: 91 | Y4: 70 | Z4: 91 | AA4: 70 | AB4: 3 | AC4: 1 | AD4: W | AE4: 21 | AF4: 161 | AG4: =SUM(AA2:AA11) -> 460 | AH4: =SUM(K2:K11) -> 692 | AI4: Yedikleri Basket Sayısı | AJ4: 3 | AK4: =J9 -> 80 | AL4: =K9 -> 67 | AM4: =ROUNDDOWN(AM2+AN3/2+1,0) -> 73 | AN4: =ROUNDDOWN(AN2+AM3/2+1,0) -> 75
A5: 4 | B5: ='Betistuta MS'!B51 -> 2022-05-27 | C5: ='Betistuta MS'!A51 -> D | D5: ='Betistuta MS'!C51 -> Virtus Bolog | E5: ='Betistuta MS'!E51 -> Tortona | F5: ='Betistuta MS'!D51 -> 77-73 | G5: 3 | H5: 77 | I5: 73 | J5: 77 | K5: 73 | L5: 3 | M5: 1 | N5: W | O5: 4 | P5: 150 | Q5: 4 | R5: Virtus Bolog | S5: Tortona | T5: 77-73 | U5: 3 | V5: =IFERROR(LEFT(T5,U5-1)*1,"") -> 77 | W5: 73 | X5: 77 | Y5: 73 | Z5: 77 | AA5: 73 | AB5: 3 | AC5: 1 | AD5: W | AE5: 4 | AF5: 150 | AG5: =AG3/AG2 -> 77.28571429 | AH5: =AH3/AH2 -> 76.6 | AI5: Attıkları Basket Sayısı Ortalaması | AJ5: 4 | AK5: =J8 -> 82 | AL5: =K8 -> 76 | AM5: =AM4-AN4 -> -2 | AN5: =AM2+AN2 -> 139
A6: 5 | B6: ='Betistuta MS'!B52 -> 2022-05-19 | C6: ='Betistuta MS'!A52 -> D | D6: ='Betistuta MS'!C52 -> Pesaro | E6: ='Betistuta MS'!E52 -> Virtus Bolog | F6: ='Betistuta MS'!D52 -> 55-75 | G6: 3 | H6: 55 | I6: 75 | J6: 75 | K6: 55 | L6: 3 | M6: 1 | N6: W | O6: 20 | P6: 130 | Q6: 5 | R6: - | S6: - | T6: - | U6: 1 | AF6: 0 | AG6: =AG4/AG2 -> 65.71428571 | AH6: =AH4/AH2 -> 69.2 | AI6: Yedikleri Basket Sayısı Ortalaması | AJ6: 5 | AK6: =J7 -> 70 | AL6: =K7 -> 51 | AM6: =CONCATENATE(AM4," : ",AN4) -> 73 : 75 | AN6: =AM4+AN4 -> 148
A7: 6 | B7: ='Betistuta MS'!B53 -> 2022-05-17 | C7: ='Betistuta MS'!A53 -> D | D7: ='Betistuta MS'!C53 -> Virtus Bolog | E7: ='Betistuta MS'!E53 -> Pesaro | F7: ='Betistuta MS'!D53 -> 70-51 | G7: 3 | H7: 70 | I7: 51 | J7: 70 | K7: 51 | L7: 3 | M7: 1 | N7: W | O7: 19 | P7: 121 | Q7: 6 | R7: Virtus Bolog | S7: Pesaro | T7: 70-51 | U7: 3 | V7: 70 | W7: 51 | X7: 70 | Y7: 51 | Z7: 70 | AA7: 51 | AB7: 3 | AC7: 1 | AD7: W | AE7: 19 | AF7: 121 | AG7: =COUNTIF($AD$2:$AD$11,"W")/AG2 -> 0.8571428571 | AH7: =COUNTIF($N$2:$N$11,"W")/AH2 -> 0.8 | AI7: Galibiyet % | AJ7: 6 | AK7: =J6 -> 75 | AL7: =K6 -> 55 | AM7: 178.5 | AN7: =SUBSTITUTE(AM7,",",".") -> 178.5
A8: 7 | B8: ='Betistuta MS'!B54 -> 2022-05-15 | C8: ='Betistuta MS'!A54 -> D | D8: ='Betistuta MS'!C54 -> Virtus Bolog | E8: ='Betistuta MS'!E54 -> Pesaro | F8: ='Betistuta MS'!D54 -> 82-76 | G8: 3 | H8: 82 | I8: 76 | J8: 82 | K8: 76 | L8: 3 | M8: 1 | N8: W | O8: 6 | P8: 158 | Q8: 7 | R8: Virtus Bolog | S8: Pesaro | T8: 82-76 | U8: 3 | V8: 82 | W8: 76 | X8: 82 | Y8: 76 | Z8: 82 | AA8: 76 | AB8: 3 | AC8: 1 | AD8: W | AE8: 6 | AF8: 158 | AG8: =COUNTIF($AD$2:$AD$11,"D")/AG2 -> 0 | AH8: =COUNTIF($N$2:$N$11,"D")/AH2 -> 0 | AI8: Beraberlik % | AJ8: 7 | AK8: =J5 -> 77 | AL8: =K5 -> 73 | AM8: 170.5 | AN8: =SUBSTITUTE(AM8+4,",",".") -> 174.5
A9: 8 | B9: ='Betistuta MS'!B55 -> 2022-05-11 | C9: ='Betistuta MS'!A55 -> D | D9: ='Betistuta MS'!C55 -> Virtus Bolog | E9: ='Betistuta MS'!E55 -> Bursaspor | F9: ='Betistuta MS'!D55 -> 80-67 | G9: 3 | H9: 80 | I9: 67 | J9: 80 | K9: 67 | L9: 3 | M9: 1 | N9: W | O9: 13 | P9: 147 | Q9: 8 | R9: Virtus Bolog | S9: Bursaspor | T9: 80-67 | U9: 3 | V9: 80 | W9: 67 | X9: 80 | Y9: 67 | Z9: 80 | AA9: 67 | AB9: 3 | AC9: 1 | AD9: W | AE9: 13 | AF9: 147 | AG9: =COUNTIF($AD$2:$AD$11,"L")/AG2 -> 0.1428571429 | AH9: =COUNTIF($N$2:$N$11,"L")/AH2 -> 0.2 | AI9: Mağlubiyet % | AJ9: 8 | AK9: =J4 -> 91 | AL9: =K4 -> 70 | AM9: =CONCATENATE("TOPLAM : ",AN8," ",AN9) -> TOPLAM : 174.5 ÜST | AN9: ÜST
A10: 9 | B10: ='Betistuta MS'!B56 -> 2022-05-08 | C10: ='Betistuta MS'!A56 -> D | D10: ='Betistuta MS'!C56 -> Virtus Bolog | E10: ='Betistuta MS'!E56 -> Brescia | F10: ='Betistuta MS'!D56 -> 79-57 | G10: 3 | H10: 79 | I10: 57 | J10: 79 | K10: 57 | L10: 3 | M10: 1 | N10: W | O10: 22 | P10: 136 | Q10: 9 | R10: Virtus Bolog | S10: Brescia | T10: 79-57 | U10: 3 | V10: 79 | W10: 57 | X10: 79 | Y10: 57 | Z10: 79 | AA10: 57 | AB10: 3 | AC10: 1 | AD10: W | AE10: 22 | AF10: 136 | AG10: =IF(OR(AH7=0,AH9=0),0,(AH7/AH9)) -> 4 | AI10: Skor Olasılıkları | AJ10: 9 | AK10: =J3 -> 77 | AL10: =K3 -> 69 | AM10: =CONCATENATE("BEN SADECE TOPLAM SAYIYA BAKARAK OYNUYORUM"," ","MS-TOP.SAYI: ",AN6) -> BEN SADECE TOPLAM SAYIYA BAKARAK OYNUYORUM MS-TOP.SAYI: 148
A11: 10 | B11: ='Betistuta MS'!B57 -> 2022-05-06 | C11: ='Betistuta MS'!A57 -> D | D11: ='Betistuta MS'!C57 -> Sassari | E11: ='Betistuta MS'!E57 -> Virtus Bolog | F11: ='Betistuta MS'!D57 -> 108-73 | G11: 4 | H11: 108 | I11: 73 | J11: 73 | K11: 108 | L11: 0 | M11: 0 | N11: L | O11: -35 | P11: 181 | Q11: 10 | R11: - | S11: - | T11: - | U11: 1 | AF11: 0 | AG11: =IF(OR(AG7=0,AG9=0),0,(AG7/AG9)) -> 6 | AI11: Genel Skor Olasılığı | AJ11: 10 | AK11: =J2 -> 62 | AL11: =K2 -> 66
AG12: =AVERAGE(AG10:AG11) -> 5 | AH12: EV | AI12: =A1 -> Virtus Bolog | AJ12: 11 | AK12: =INT(FORECAST(AJ12,AK2:AK11,AJ2:AJ11)) -> 74 | AL12: =INT(FORECAST(AJ12,AL2:AL11,AJ2:AJ11)) -> 59
H13: =SUM(H2:H12) -> 773 | I13: =SUM(I2:I12) -> 685 | J13: 766 | K13: 692 | O13: =SUM(O2:O12) -> 74 | P13: =SUM(P2:P12) -> 1458 | V13: =SUM(V2:V12) -> 541 | W13: =SUM(W2:W12) -> 460 | X13: 541 | Y13: 460 | Z13: 541 | AA13: 460 | AF13: =SUM(AF2:AF12) -> 1001 | AG13: =AI13 -> 76.6 | AI13: =AH5 -> 76.6 | AJ13: ORT. | AK13: =INT(AVERAGE(AK2:AK12)) -> 76 | AL13: =INT(AVERAGE(AL2:AL12)) -> 68 | AM13: =AN4 -> 75 | AN13: =AM4 -> 73
A15: =IF(COUNTIF(D16:E25,D16)>COUNTIF(D16:E25,E16),D16,E16) -> Olimpia Mila | F15: SONUÇ | G15: BUL | H15: SONUÇ | J15: TG | K15: GT | L15: PKT | M15: PERF | N15: Form | O15: FARK | P15: TOPLAM | Q15: =A15 -> Olimpia Mila | U15: BUL | V15: SONUÇ | X15: SONUÇ | Z15: TG | AA15: GT | AB15: PKT | AC15: PERF | AD15: FORM | AE15: TD | AF15: OV | AG15: İÇ SAHA | AH15: GENEL | AI15: İSTATİSTİK | AJ15: DEPLASMAN
A16: 1 | B16: ='Betistuta MS'!B67 -> 2022-06-08 | C16: ='Betistuta MS'!A67 -> D | D16: ='Betistuta MS'!C67 -> Virtus Bolog | E16: ='Betistuta MS'!E67 -> Olimpia Mila | F16: ='Betistuta MS'!D67 -> 62-66 | G16: =SEARCH("-",F16) -> 3 | H16: =LEFT(F16,G16-1)*1 -> 62 | I16: =MID(F16,G16+1,4)*1 -> 66 | J16: =IF(OR(H16="",I16=""),"",IF(D16=$A$15,H16,I16)) -> 66 | K16: =IF(OR(H16="",I16=""),"",IF(D16=$A$15,I16,H16)) -> 62 | L16: =IF(OR(J16="",K16=""),"",IF(J16>K16,3,IF(J16<K16,0,1))) -> 3 | M16: =IF(L16="","",IF(L16=3,1,IF(L16=1,0.5,IF(L16=0,0)))) -> 1 | N16: =IF(L16="","",IF(L16=1,"D",IF(L16=0,"L",IF(L16=3,"W")))) -> W | O16: =IF(OR(J16="",K16=""),"",J16-K16) -> 4 | P16: =IF(OR(H16="",I16=""),"",H16+I16) -> 128 | Q16: 1 | R16: =IF(E16=$A$15,D16,"-") -> Virtus Bolog | S16: =IF(E16=$A$15,E16,"-") -> Olimpia Mila | T16: =IFERROR(IF(AND(R16=D16,S16=E16),F16,"-"),"") -> 62-66 | U16: =IFERROR(SEARCH("-",T16),"") -> 3 | V16: =IFERROR(LEFT(T16,U16-1)*1,"") -> 62 | W16: =IFERROR(MID(T16,U16+1,4)*1,"") -> 66 | X16: =IFERROR(V16,"") -> 62 | Y16: =IFERROR(W16,"") -> 66 | Z16: =IF(OR(X16="",Y16=""),"",Y16) -> 66 | AA16: =IF(OR(X16="",Y16=""),"",X16) -> 62 | AB16: =IF(OR(Z16="",AA16=""),"",IF(Z16>AA16,3,IF(Z16<AA16,0,1))) -> 3 | AC16: =IF(AB16="","",IF(AB16=3,1,IF(AB16=1,0.5,IF(AB16=0,0)))) -> 1 | AD16: =IF(AB16="","",IF(AB16=1,"D",IF(AB16=0,"L",IF(AB16=3,"W")))) -> W | AE16: =IF(OR(Z16="",AA16=""),"",Z16-AA16) -> 4 | AF16: =IFERROR(SUM(Z16:AA16),"") -> 128 | AG16: =COUNT(X16:X25) -> 5 | AH16: =COUNT(H16:H25) -> 10 | AI16: Oynanan Maç Sayısı | AJ16: =AJ2 -> 1 | AK16: =J25 -> 92 | AL16: =K25 -> 87
A17: =1+A16 -> 2 | B17: ='Betistuta MS'!B68 -> 2022-06-01 | C17: ='Betistuta MS'!A68 -> D | D17: ='Betistuta MS'!C68 -> Sassari | E17: ='Betistuta MS'!E68 -> Olimpia Mila | F17: ='Betistuta MS'!D68 -> 69-87 | G17: 3 | H17: 69 | I17: 87 | J17: 87 | K17: 69 | L17: =IF(OR(J17="",K17=""),"",IF(J17>K17,3,IF(J17<K17,0,1))) -> 3 | M17: =IF(L17="","",IF(L17=3,1,IF(L17=1,0.5,IF(L17=0,0)))) -> 1 | N17: =IF(L17="","",IF(L17=1,"D",IF(L17=0,"L",IF(L17=3,"W")))) -> W | O17: 18 | P17: 156 | Q17: =1+Q16 -> 2 | R17: Sassari | S17: Olimpia Mila | T17: 69-87 | U17: =IFERROR(SEARCH("-",T17),"") -> 3 | V17: =IFERROR(LEFT(T17,U17-1)*1,"") -> 69 | W17: =IFERROR(MID(T17,U17+1,4)*1,"") -> 87 | X17: =IFERROR(V17,"") -> 69 | Y17: 87 | Z17: =IF(OR(X17="",Y17=""),"",Y17) -> 87 | AA17: =IF(OR(X17="",Y17=""),"",X17) -> 69 | AB17: =IF(OR(Z17="",AA17=""),"",IF(Z17>AA17,3,IF(Z17<AA17,0,1))) -> 3 | AC17: =IF(AB17="","",IF(AB17=3,1,IF(AB17=1,0.5,IF(AB17=0,0)))) -> 1 | AD17: =IF(AB17="","",IF(AB17=1,"D",IF(AB17=0,"L",IF(AB17=3,"W")))) -> W | AE17: =IF(OR(Z17="",AA17=""),"",Z17-AA17) -> 18 | AF17: =IFERROR(SUM(Z17:AA17),"") -> 156 | AG17: =SUM(Z16:Z25) -> 390 | AH17: =SUM(J16:J25) -> 843 | AI17: Attıkları Basket Sayısı | AJ17: 2 | AK17: =J24 -> 74 | AL17: =K24 -> 80
A18: =1+A17 -> 3 | B18: ='Betistuta MS'!B69 -> 2022-05-30 | C18: ='Betistuta MS'!A69 -> D | D18: ='Betistuta MS'!C69 -> Olimpia Mila | E18: ='Betistuta MS'!E69 -> Sassari | F18: ='Betistuta MS'!D69 -> 91-82 | G18: 3 | H18: 91 | I18: 82 | J18: 91 | K18: 82 | L18: 3 | M18: 1 | N18: W | O18: 9 | P18: 173 | Q18: =1+Q17 -> 3 | R18: - | S18: - | T18: - | U18: 1 | AF18: 0 | AG18: =SUM(AA16:AA25) -> 339 | AH18: =SUM(K16:K25) -> 726 | AI18: Yedikleri Basket Sayısı | AJ18: 3 | AK18: =J23 -> 74 | AL18: =K23 -> 69
A19: 4 | B19: ='Betistuta MS'!B70 -> 2022-05-28 | C19: ='Betistuta MS'!A70 -> D | D19: ='Betistuta MS'!C70 -> Olimpia Mila | E19: ='Betistuta MS'!E70 -> Sassari | F19: ='Betistuta MS'!D70 -> 88-71 | G19: 3 | H19: 88 | I19: 71 | J19: 88 | K19: 71 | L19: 3 | M19: 1 | N19: W | O19: 17 | P19: 159 | Q19: 4 | R19: - | S19: - | T19: - | U19: 1 | AF19: 0 | AG19: =AG17/AG16 -> 78 | AH19: =AH17/AH16 -> 84.3 | AI19: Attıkları Basket Sayısı Ortalaması | AJ19: 4 | AK19: =J22 -> 91 | AL19: =K22 -> 82
A20: 5 | B20: ='Betistuta MS'!B71 -> 2022-05-19 | C20: ='Betistuta MS'!A71 -> D | D20: ='Betistuta MS'!C71 -> Reggiana | E20: ='Betistuta MS'!E71 -> Olimpia Mila | F20: ='Betistuta MS'!D71 -> 59-89 | G20: 3 | H20: 59 | I20: 89 | J20: 89 | K20: 59 | L20: 3 | M20: 1 | N20: W | O20: 30 | P20: 148 | Q20: 5 | R20: Reggiana | S20: Olimpia Mila | T20: 59-89 | U20: 3 | V20: 59 | W20: 89 | X20: 59 | Y20: 89 | Z20: 89 | AA20: 59 | AB20: 3 | AC20: 1 | AD20: W | AE20: 30 | AF20: 148 | AG20: =AG18/AG16 -> 67.8 | AH20: =AH18/AH16 -> 72.6 | AI20: Yedikleri Basket Sayısı Ortalaması | AJ20: 5 | AK20: =J21 -> 91 | AL20: =K21 -> 65
A21: 6 | B21: ='Betistuta MS'!B72 -> 2022-05-17 | C21: ='Betistuta MS'!A72 -> D | D21: ='Betistuta MS'!C72 -> Olimpia Mila | E21: ='Betistuta MS'!E72 -> Reggiana | F21: ='Betistuta MS'!D72 -> 91-65 | G21: 3 | H21: 91 | I21: 65 | J21: 91 | K21: 65 | L21: 3 | M21: 1 | N21: W | O21: 26 | P21: 156 | Q21: 6 | R21: - | S21: - | T21: - | U21: 1 | AF21: 0 | AG21: =COUNTIF($AD$16:$AD$25,"W")/AG16 -> 0.8 | AH21: =COUNTIF($N$16:$N$25,"W")/AH16 -> 0.9 | AI21: Galibiyet % | AJ21: 6 | AK21: =J20 -> 89 | AL21: =K20 -> 59
A22: 7 | B22: ='Betistuta MS'!B73 -> 2022-05-15 | C22: ='Betistuta MS'!A73 -> D | D22: ='Betistuta MS'!C73 -> Olimpia Mila | E22: ='Betistuta MS'!E73 -> Reggiana | F22: ='Betistuta MS'!D73 -> 91-82 | G22: 3 | H22: 91 | I22: 82 | J22: 91 | K22: 82 | L22: 3 | M22: 1 | N22: W | O22: 9 | P22: 173 | Q22: 7 | R22: - | S22: - | T22: - | U22: 1 | AF22: 0 | AG22: =COUNTIF($AD$16:$AD$25,"D")/AG16 -> 0 | AH22: =COUNTIF($N$16:$N$25,"D")/AH16 -> 0 | AI22: Beraberlik % | AJ22: 7 | AK22: =J19 -> 88 | AL22: =K19 -> 71
A23: 8 | B23: ='Betistuta MS'!B74 -> 2022-05-08 | C23: ='Betistuta MS'!A74 -> D | D23: ='Betistuta MS'!C74 -> Venezia | E23: ='Betistuta MS'!E74 -> Olimpia Mila | F23: ='Betistuta MS'!D74 -> 69-74 | G23: 3 | H23: 69 | I23: 74 | J23: 74 | K23: 69 | L23: 3 | M23: 1 | N23: W | O23: 5 | P23: 143 | Q23: 8 | R23: Venezia | S23: Olimpia Mila | T23: 69-74 | U23: 3 | V23: 69 | W23: 74 | X23: 69 | Y23: 74 | Z23: 74 | AA23: 69 | AB23: 3 | AC23: 1 | AD23: W | AE23: 5 | AF23: 143 | AG23: =COUNTIF($AD$16:$AD$25,"L")/AG16 -> 0.2 | AH23: =COUNTIF($N$16:$N$25,"L")/AH16 -> 0.1 | AI23: Mağlubiyet % | AJ23: 8 | AK23: =J18 -> 91 | AL23: =K18 -> 82
A24: 9 | B24: ='Betistuta MS'!B75 -> 2022-05-04 | C24: ='Betistuta MS'!A75 -> D | D24: ='Betistuta MS'!C75 -> Treviso | E24: ='Betistuta MS'!E75 -> Olimpia Mila | F24: ='Betistuta MS'!D75 -> 80-74 | G24: 3 | H24: 80 | I24: 74 | J24: 74 | K24: 80 | L24: 0 | M24: 0 | N24: L | O24: -6 | P24: 154 | Q24: 9 | R24: Treviso | S24: Olimpia Mila | T24: 80-74 | U24: 3 | V24: 80 | W24: 74 | X24: 80 | Y24: 74 | Z24: 74 | AA24: 80 | AB24: 0 | AC24: 0 | AD24: L | AE24: -6 | AF24: 154 | AG24: =IF(OR(AH21=0,AH23=0),0,(AH21/AH23)) -> 9 | AI24: Skor Olasılıkları | AJ24: 9 | AK24: =J17 -> 87 | AL24: =K17 -> 69
A25: 10 | B25: ='Betistuta MS'!B76 -> 2022-05-01 | C25: ='Betistuta MS'!A76 -> D | D25: ='Betistuta MS'!C76 -> Olimpia Mila | E25: ='Betistuta MS'!E76 -> Brindisi | F25: ='Betistuta MS'!D76 -> 92-87 | G25: 3 | H25: 92 | I25: 87 | J25: 92 | K25: 87 | L25: 3 | M25: 1 | N25: W | O25: 5 | P25: 179 | Q25: 10 | R25: - | S25: - | T25: - | U25: 1 | AF25: 0 | AG25: =IF(OR(AG21=0,AG23=0),0,(AG21/AG23)) -> 4 | AI25: Genel Skor Olasılığı | AJ25: 10 | AK25: =J16 -> 66 | AL25: =K16 -> 62
AG26: =AVERAGE(AG24:AG25) -> 6.5 | AH26: DEP | AI26: =A15 -> Olimpia Mila | AJ26: 11 | AK26: =INT(FORECAST(AJ26,AK16:AK25,AJ16:AJ25)) -> 82 | AL26: =INT(FORECAST(AJ26,AL16:AL25,AJ16:AJ25)) -> 63
H27: =SUM(H16:H26) -> 792 | I27: =SUM(I16:I26) -> 777 | J27: 843 | K27: 726 | O27: =SUM(O16:O26) -> 117 | P27: =SUM(P16:P26) -> 1569 | V27: =SUM(V16:V26) -> 339 | W27: =SUM(W16:W26) -> 390 | X27: 339 | Y27: 390 | Z27: 390 | AA27: 339 | AF27: =SUM(AF16:AF26) -> 729 | AG27: =AI27 -> 84.3 | AI27: =AH19 -> 84.3 | AJ27: ORT. | AK27: =INT(AVERAGE(AK16:AK26)) -> 84 | AL27: =INT(AVERAGE(AL16:AL26)) -> 71

Sheet İY
A1: =IF(COUNTIF(D2:E11,D2)>COUNTIF(D2:E11,E2),D2,E2) -> Virtus Bolog | F1: SONUÇ | G1: BUL | H1: SONUÇ | J1: TG | K1: GT | L1: PKT | M1: PERF | N1: FORM | O1: FARK | P1: TOPLAM | Q1: =A1 -> Virtus Bolog | U1: BUL | V1: SONUÇ | X1: SONUÇ | Z1: TG | AA1: GT | AB1: PKT | AC1: PERF | AD1: FORM | AE1: TD | AF1: OV | AG1: İÇ SAHA | AH1: GENEL | AI1: İSTATİSTİK | AJ1: EV SAHİBİ | AM1: =AJ1 -> EV SAHİBİ | AN1: =AJ15 -> DEPLASMAN
A2: 1 | B2: ='Betistuta MS'!B48 -> 2022-06-08 | C2: ='Betistuta MS'!A48 -> D | D2: ='Betistuta MS'!C48 -> Virtus Bolog | E2: ='Betistuta MS'!E48 -> Olimpia Mila | F2: ='Betistuta MS'!F48 -> 27-28 | G2: =SEARCH("-",F2) -> 3 | H2: =LEFT(F2,G2-1)*1 -> 27 | I2: =MID(F2,G2+1,4)*1 -> 28 | J2: =IF(OR(H2="",I2=""),"",IF(D2=$A$1,H2,I2)) -> 27 | K2: =IF(OR(H2="",I2=""),"",IF(D2=$A$1,I2,H2)) -> 28 | L2: =IF(OR(J2="",K2=""),"",IF(J2>K2,3,IF(J2<K2,0,1))) -> 0 | M2: =IF(L2="","",IF(L2=3,1,IF(L2=1,0.5,IF(L2=0,0)))) -> 0 | N2: =IF(L2="","",IF(L2=1,"D",IF(L2=0,"L",IF(L2=3,"W")))) -> L | O2: =IF(OR(J2="",K2=""),"",J2-K2) -> -1 | P2: =IF(OR(H2="",I2=""),"",H2+I2) -> 55 | Q2: 1 | R2: =IF(D2=$A$1,D2,"-") -> Virtus Bolog | S2: =IF(D2=$A$1,E2,"-") -> Olimpia Mila | T2: =IFERROR(IF(AND(R2=D2,S2=E2),F2,"-"),"") -> 27-28 | U2: =IFERROR(SEARCH("-",T2),"") -> 3 | V2: =IFERROR(LEFT(T2,U2-1)*1,"") -> 27 | W2: =IFERROR(MID(T2,U2+1,4)*1,"") -> 28 | X2: =IFERROR(V2,"") -> 27 | Y2: =IFERROR(W2,"") -> 28 | Z2: =IF(OR(X2="",Y2=""),"",X2) -> 27 | AA2: =IF(OR(X2="",Y2=""),"",Y2) -> 28 | AB2: =IF(OR(Z2="",AA2=""),"",IF(Z2>AA2,3,IF(Z2<AA2,0,1))) -> 0 | AC2: =IF(AB2="","",IF(AB2=3,1,IF(AB2=1,0.5,IF(AB2=0,0)))) -> 0 | AD2: =IF(AB2="","",IF(AB2=1,"D",IF(AB2=0,"L",IF(AB2=3,"W")))) -> L | AE2: =IF(OR(Z2="",AA2=""),"",Z2-AA2) -> -1 | AF2: =IFERROR(SUM(Z2:AA2),"") -> 55 | AG2: =COUNT(X2:X11) -> 7 | AH2: =COUNT(H2:H11) -> 10 | AI2: Oynanan Maç Sayısı | AJ2: 1 | AK2: =J11 -> 35 | AL2: =K11 -> 47 | AM2: =(AK12+AL26)/2 -> 33.5 | AN2: =(AL12+AK26)/2 -> 36
A3: =1+A2 -> 2 | B3: ='Betistuta MS'!B49 -> 2022-05-31 | C3: ='Betistuta MS'!A49 -> D | D3: ='Betistuta MS'!C49 -> Tortona | E3: ='Betistuta MS'!E49 -> Virtus Bolog | F3: ='Betistuta MS'!F49 -> 33-47 | G3: 3 | H3: 33 | I3: 47 | J3: 47 | K3: 33 | L3: =IF(OR(J3="",K3=""),"",IF(J3>K3,3,IF(J3<K3,0,1))) -> 3 | M3: =IF(L3="","",IF(L3=3,1,IF(L3=1,0.5,IF(L3=0,0)))) -> 1 | N3: =IF(L3="","",IF(L3=1,"D",IF(L3=0,"L",IF(L3=3,"W")))) -> W | O3: 14 | P3: 80 | Q3: =1+Q2 -> 2 | R3: - | S3: - | T3: - | U3: =IFERROR(SEARCH("-",T3),"") -> 1 | V3: =IFERROR(LEFT(T3,U3-1)*1,"") ->  | W3: =IFERROR(MID(T3,U3+1,4)*1,"") ->  | X3: =IFERROR(V3,"") ->  | Z3: =IF(OR(X3="",Y3=""),"",X3) ->  | AA3: =IF(OR(X3="",Y3=""),"",Y3) ->  | AB3: =IF(OR(Z3="",AA3=""),"",IF(Z3>AA3,3,IF(Z3<AA3,0,1))) ->  | AC3: =IF(AB3="","",IF(AB3=3,1,IF(AB3=1,0.5,IF(AB3=0,0)))) ->  | AD3: =IF(AB3="","",IF(AB3=1,"D",IF(AB3=0,"L",IF(AB3=3,"W")))) ->  | AE3: =IF(OR(Z3="",AA3=""),"",Z3-AA3) ->  | AF3: =IFERROR(SUM(Z3:AA3),"") -> 0 | AG3: =SUM(Z2:Z11) -> 262 | AH3: =SUM(J2:J11) -> 379 | AI3: Attıkları Basket Sayısı | AJ3: 2 | AK3: =J10 -> 42 | AL3: =K10 -> 24 | AM3: =IF(AM2>=7,"7",IF(AM2>=6,"6",IF(AM2>=5,"5",IF(AM2>=4,"4",IF(AM2>=3,"3",IF(AM2>=2,"2",IF(AM2>=1,"1","0"))))))) -> 7 | AN3: =IF(AN2>=7,"7",IF(AN2>=6,"6",IF(AN2>=5,"5",IF(AN2>=4,"4",IF(AN2>=3,"3",IF(AN2>=2,"2",IF(AN2>=1,"1","0"))))))) -> 7
A4: =1+A3 -> 3 | B4: ='Betistuta MS'!B50 -> 2022-05-29 | C4: ='Betistuta MS'!A50 -> D | D4: ='Betistuta MS'!C50 -> Virtus Bolog | E4: ='Betistuta MS'!E50 -> Tortona | F4: ='Betistuta MS'!F50 -> 41-35 | G4: 3 | H4: 41 | I4: 35 | J4: 41 | K4: 35 | L4: 3 | M4: 1 | N4: W | O4: 6 | P4: 76 | Q4: =1+Q3 -> 3 | R4: Virtus Bolog | S4: Tortona | T4: 41-35 | U4: 3 | V4: =IFERROR(LEFT(T4,U4-1)*1,"") -> 41 | W4: 35 | X4: 41 | Y4: 35 | Z4: 41 | AA4: 35 | AB4: 3 | AC4: 1 | AD4: W | AE4: 6 | AF4: 76 | AG4: =SUM(AA2:AA11) -> 217 | AH4: =SUM(K2:K11) -> 332 | AI4: Yedikleri Basket Sayısı | AJ4: 3 | AK4: =J9 -> 41 | AL4: =K9 -> 31 | AM4: =ROUNDDOWN(AM2+AN3/2+1,0) -> 38 | AN4: =ROUNDDOWN(AN2+AM3/2+1,0) -> 40
A5: 4 | B5: ='Betistuta MS'!B51 -> 2022-05-27 | C5: ='Betistuta MS'!A51 -> D | D5: ='Betistuta MS'!C51 -> Virtus Bolog | E5: ='Betistuta MS'!E51 -> Tortona | F5: ='Betistuta MS'!F51 -> 35-38 | G5: 3 | H5: 35 | I5: 38 | J5: 35 | K5: 38 | L5: 0 | M5: 0 | N5: L | O5: -3 | P5: 73 | Q5: 4 | R5: Virtus Bolog | S5: Tortona | T5: 35-38 | U5: 3 | V5: =IFERROR(LEFT(T5,U5-1)*1,"") -> 35 | W5: 38 | X5: 35 | Y5: 38 | Z5: 35 | AA5: 38 | AB5: 0 | AC5: 0 | AD5: L | AE5: -3 | AF5: 73 | AG5: =AG3/AG2 -> 37.42857143 | AH5: =AH3/AH2 -> 37.9 | AI5: Attıkları Basket Sayısı Ortalaması | AJ5: 4 | AK5: =J8 -> 45 | AL5: =K8 -> 36 | AM5: =AM4-AN4 -> -2 | AN5: =AM2+AN2 -> 69.5
A6: 5 | B6: ='Betistuta MS'!B52 -> 2022-05-19 | C6: ='Betistuta MS'!A52 -> D | D6: ='Betistuta MS'!C52 -> Pesaro | E6: ='Betistuta MS'!E52 -> Virtus Bolog | F6: ='Betistuta MS'!F52 -> 35-35 | G6: 3 | H6: 35 | I6: 35 | J6: 35 | K6: 35 | L6: 1 | M6: 0.5 | N6: D | O6: 0 | P6: 70 | Q6: 5 | R6: - | S6: - | T6: - | U6: 1 | AF6: 0 | AG6: =AG4/AG2 -> 31 | AH6: =AH4/AH2 -> 33.2 | AI6: Yedikleri Basket Sayısı Ortalaması | AJ6: 5 | AK6: =J7 -> 31 | AL6: =K7 -> 25 | AM6: =CONCATENATE(AM4," : ",AN4) -> 38 : 40 | AN6: =AM4+AN4 -> 78
A7: 6 | B7: ='Betistuta MS'!B53 -> 2022-05-17 | C7: ='Betistuta MS'!A53 -> D | D7: ='Betistuta MS'!C53 -> Virtus Bolog | E7: ='Betistuta MS'!E53 -> Pesaro | F7: ='Betistuta MS'!F53 -> 31-25 | G7: 3 | H7: 31 | I7: 25 | J7: 31 | K7: 25 | L7: 3 | M7: 1 | N7: W | O7: 6 | P7: 56 | Q7: 6 | R7: Virtus Bolog | S7: Pesaro | T7: 31-25 | U7: 3 | V7: 31 | W7: 25 | X7: 31 | Y7: 25 | Z7: 31 | AA7: 25 | AB7: 3 | AC7: 1 | AD7: W | AE7: 6 | AF7: 56 | AG7: =COUNTIF($AD$2:$AD$11,"W")/AG2 -> 0.7142857143 | AH7: =COUNTIF($N$2:$N$11,"W")/AH2 -> 0.6 | AI7: Galibiyet % | AJ7: 6 | AK7: =J6 -> 35 | AL7: =K6 -> 35 | AM7: 178.5 | AN7: =SUBSTITUTE(AM7,",",".") -> 178.5
A8: 7 | B8: ='Betistuta MS'!B54 -> 2022-05-15 | C8: ='Betistuta MS'!A54 -> D | D8: ='Betistuta MS'!C54 -> Virtus Bolog | E8: ='Betistuta MS'!E54 -> Pesaro | F8: ='Betistuta MS'!F54 -> 45-36 | G8: 3 | H8: 45 | I8: 36 | J8: 45 | K8: 36 | L8: 3 | M8: 1 | N8: W | O8: 9 | P8: 81 | Q8: 7 | R8: Virtus Bolog | S8: Pesaro | T8: 45-36 | U8: 3 | V8: 45 | W8: 36 | X8: 45 | Y8: 36 | Z8: 45 | AA8: 36 | AB8: 3 | AC8: 1 | AD8: W | AE8: 9 | AF8: 81 | AG8: =COUNTIF($AD$2:$AD$11,"D")/AG2 -> 0 | AH8: =COUNTIF($N$2:$N$11,"D")/AH2 -> 0.1 | AI8: Beraberlik % | AJ8: 7 | AK8: =J5 -> 35 | AL8: =K5 -> 38 | AM8: 170.5 | AN8: =SUBSTITUTE(AM8+4,",",".") -> 174.5
A9: 8 | B9: ='Betistuta MS'!B55 -> 2022-05-11 | C9: ='Betistuta MS'!A55 -> D | D9: ='Betistuta MS'!C55 -> Virtus Bolog | E9: ='Betistuta MS'!E55 -> Bursaspor | F9: ='Betistuta MS'!F55 -> 41-31 | G9: 3 | H9: 41 | I9: 31 | J9: 41 | K9: 31 | L9: 3 | M9: 1 | N9: W | O9: 10 | P9: 72 | Q9: 8 | R9: Virtus Bolog | S9: Bursaspor | T9: 41-31 | U9: 3 | V9: 41 | W9: 31 | X9: 41 | Y9: 31 | Z9: 41 | AA9: 31 | AB9: 3 | AC9: 1 | AD9: W | AE9: 10 | AF9: 72 | AG9: =COUNTIF($AD$2:$AD$11,"L")/AG2 -> 0.2857142857 | AH9: =COUNTIF($N$2:$N$11,"L")/AH2 -> 0.3 | AI9: Mağlubiyet % | AJ9: 8 | AK9: =J4 -> 41 | AL9: =K4 -> 35 | AM9: =CONCATENATE("TOPLAM : ",AN8," ",AN9) -> TOPLAM : 174.5 ALT | AN9: ALT
A10: 9 | B10: ='Betistuta MS'!B56 -> 2022-05-08 | C10: ='Betistuta MS'!A56 -> D | D10: ='Betistuta MS'!C56 -> Virtus Bolog | E10: ='Betistuta MS'!E56 -> Brescia | F10: ='Betistuta MS'!F56 -> 42-24 | G10: 3 | H10: 42 | I10: 24 | J10: 42 | K10: 24 | L10: 3 | M10: 1 | N10: W | O10: 18 | P10: 66 | Q10: 9 | R10: Virtus Bolog | S10: Brescia | T10: 42-24 | U10: 3 | V10: 42 | W10: 24 | X10: 42 | Y10: 24 | Z10: 42 | AA10: 24 | AB10: 3 | AC10: 1 | AD10: W | AE10: 18 | AF10: 66 | AG10: =IF(OR(AH7=0,AH9=0),0,(AH7/AH9)) -> 2 | AI10: Skor Olasılıkları | AJ10: 9 | AK10: =J3 -> 47 | AL10: =K3 -> 33 | AM10: =CONCATENATE("BEN SADECE TOPLAM SAYIYA BAKARAK OYNUYORUM"," ","MS-TOP.SAYI: ",AN6) -> BEN SADECE TOPLAM SAYIYA BAKARAK OYNUYORUM MS-TOP.SAYI: 78
A11: 10 | B11: ='Betistuta MS'!B57 -> 2022-05-06 | C11: ='Betistuta MS'!A57 -> D | D11: ='Betistuta MS'!C57 -> Sassari | E11: ='Betistuta MS'!E57 -> Virtus Bolog | F11: ='Betistuta MS'!F57 -> 47-35 | G11: 3 | H11: 47 | I11: 35 | J11: 35 | K11: 47 | L11: 0 | M11: 0 | N11: L | O11: -12 | P11: 82 | Q11: 10 | R11: - | S11: - | T11: - | U11: 1 | AF11: 0 | AG11: =IF(OR(AG7=0,AG9=0),0,(AG7/AG9)) -> 2.5 | AI11: Genel Skor Olasılığı | AJ11: 10 | AK11: =J2 -> 27 | AL11: =K2 -> 28
AG12: =AVERAGE(AG10:AG11) -> 2.25 | AH12: EV | AI12: =A1 -> Virtus Bolog | AJ12: 11 | AK12: =INT(FORECAST(AJ12,AK2:AK11,AJ2:AJ11)) -> 35 | AL12: =INT(FORECAST(AJ12,AL2:AL11,AJ2:AJ11)) -> 30
H13: =SUM(H2:H12) -> 377 | I13: =SUM(I2:I12) -> 334 | J13: 379 | K13: 332 | O13: =SUM(O2:O12) -> 47 | P13: =SUM(P2:P12) -> 711 | V13: =SUM(V2:V12) -> 262 | W13: =SUM(W2:W12) -> 217 | X13: 262 | Y13: 217 | Z13: 262 | AA13: 217 | AF13: =SUM(AF2:AF12) -> 479 | AG13: =AI13 -> 37.9 | AI13: =AH5 -> 37.9 | AJ13: ORT. | AK13: =INT(AVERAGE(AK2:AK12)) -> 37 | AL13: =INT(AVERAGE(AL2:AL12)) -> 32 | AM13: =AN4-2 -> 38 | AN13: =AM4-2 -> 36
A15: =IF(COUNTIF(D16:E25,D16)>COUNTIF(D16:E25,E16),D16,E16) -> Olimpia Mila | F15: SONUÇ | G15: BUL | H15: SONUÇ | J15: TG | K15: GT | L15: PKT | M15: PERF | N15: Form | O15: FARK | P15: TOPLAM | Q15: =A15 -> Olimpia Mila | U15: BUL | V15: SONUÇ | X15: SONUÇ | Z15: TG | AA15: GT | AB15: PKT | AC15: PERF | AD15: FORM | AE15: TD | AF15: OV | AG15: İÇ SAHA | AH15: GENEL | AI15: İSTATİSTİK | AJ15: DEPLASMAN
A16: 1 | B16: ='Betistuta MS'!B67 -> 2022-06-08 | C16: ='Betistuta MS'!A67 -> D | D16: ='Betistuta MS'!C67 -> Virtus Bolog | E16: ='Betistuta MS'!E67 -> Olimpia Mila | F16: ='Betistuta MS'!F67 -> 27-28 | G16: =SEARCH("-",F16) -> 3 | H16: =LEFT(F16,G16-1)*1 -> 27 | I16: =MID(F16,G16+1,4)*1 -> 28 | J16: =IF(OR(H16="",I16=""),"",IF(D16=$A$15,H16,I16)) -> 28 | K16: =IF(OR(H16="",I16=""),"",IF(D16=$A$15,I16,H16)) -> 27 | L16: =IF(OR(J16="",K16=""),"",IF(J16>K16,3,IF(J16<K16,0,1))) -> 3 | M16: =IF(L16="","",IF(L16=3,1,IF(L16=1,0.5,IF(L16=0,0)))) -> 1 | N16: =IF(L16="","",IF(L16=1,"D",IF(L16=0,"L",IF(L16=3,"W")))) -> W | O16: =IF(OR(J16="",K16=""),"",J16-K16) -> 1 | P16: =IF(OR(H16="",I16=""),"",H16+I16) -> 55 | Q16: 1 | R16: =IF(E16=$A$15,D16,"-") -> Virtus Bolog | S16: =IF(E16=$A$15,E16,"-") -> Olimpia Mila | T16: =IFERROR(IF(AND(R16=D16,S16=E16),F16,"-"),"") -> 27-28 | U16: =IFERROR(SEARCH("-",T16),"") -> 3 | V16: =IFERROR(LEFT(T16,U16-1)*1,"") -> 27 | W16: =IFERROR(MID(T16,U16+1,4)*1,"") -> 28 | X16: =IFERROR(V16,"") -> 27 | Y16: =IFERROR(W16,"") -> 28 | Z16: =IF(OR(X16="",Y16=""),"",Y16) -> 28 | AA16: =IF(OR(X16="",Y16=""),"",X16) -> 27 | AB16: =IF(OR(Z16="",AA16=""),"",IF(Z16>AA16,3,IF(Z16<AA16,0,1))) -> 3 | AC16: =IF(AB16="","",IF(AB16=3,1,IF(AB16=1,0.5,IF(AB16=0,0)))) -> 1 | AD16: =IF(AB16="","",IF(AB16=1,"D",IF(AB16=0,"L",IF(AB16=3,"W")))) -> W | AE16: =IF(OR(Z16="",AA16=""),"",Z16-AA16) -> 1 | AF16: =IFERROR(SUM(Z16:AA16),"") -> 55 | AG16: =COUNT(X16:X25) -> 5 | AH16: =COUNT(H16:H25) -> 10 | AI16: Oynanan Maç Sayısı | AJ16: =AJ2 -> 1 | AK16: =J25 -> 44 | AL16: =K25 -> 50
A17: =1+A16 -> 2 | B17: ='Betistuta MS'!B68 -> 2022-06-01 | C17: ='Betistuta MS'!A68 -> D | D17: ='Betistuta MS'!C68 -> Sassari | E17: ='Betistuta MS'!E68 -> Olimpia Mila | F17: ='Betistuta MS'!F68 -> 34-47 | G17: 3 | H17: 34 | I17: 47 | J17: 47 | K17: 34 | L17: =IF(OR(J17="",K17=""),"",IF(J17>K17,3,IF(J17<K17,0,1))) -> 3 | M17: =IF(L17="","",IF(L17=3,1,IF(L17=1,0.5,IF(L17=0,0)))) -> 1 | N17: =IF(L17="","",IF(L17=1,"D",IF(L17=0,"L",IF(L17=3,"W")))) -> W | O17: 13 | P17: 81 | Q17: =1+Q16 -> 2 | R17: Sassari | S17: Olimpia Mila | T17: 34-47 | U17: =IFERROR(SEARCH("-",T17),"") -> 3 | V17: =IFERROR(LEFT(T17,U17-1)*1,"") -> 34 | W17: =IFERROR(MID(T17,U17+1,4)*1,"") -> 47 | X17: =IFERROR(V17,"") -> 34 | Y17: 47 | Z17: =IF(OR(X17="",Y17=""),"",Y17) -> 47 | AA17: =IF(OR(X17="",Y17=""),"",X17) -> 34 | AB17: =IF(OR(Z17="",AA17=""),"",IF(Z17>AA17,3,IF(Z17<AA17,0,1))) -> 3 | AC17: =IF(AB17="","",IF(AB17=3,1,IF(AB17=1,0.5,IF(AB17=0,0)))) -> 1 | AD17: =IF(AB17="","",IF(AB17=1,"D",IF(AB17=0,"L",IF(AB17=3,"W")))) -> W | AE17: =IF(OR(Z17="",AA17=""),"",Z17-AA17) -> 13 | AF17: =IFERROR(SUM(Z17:AA17),"") -> 81 | AG17: =SUM(Z16:Z25) -> 182 | AH17: =SUM(J16:J25) -> 425 | AI17: Attıkları Basket Sayısı | AJ17: 2 | AK17: =J24 -> 32 | AL17: =K24 -> 29
A18: =1+A17 -> 3 | B18: ='Betistuta MS'!B69 -> 2022-05-30 | C18: ='Betistuta MS'!A69 -> D | D18: ='Betistuta MS'!C69 -> Olimpia Mila | E18: ='Betistuta MS'!E69 -> Sassari | F18: ='Betistuta MS'!F69 -> 41-49 | G18: 3 | H18: 41 | I18: 49 | J18: 41 | K18: 49 | L18: 0 | M18: 0 | N18: L | O18: -8 | P18: 90 | Q18: =1+Q17 -> 3 | R18: - | S18: - | T18: - | U18: 1 | AF18: 0 | AG18: =SUM(AA16:AA25) -> 158 | AH18: =SUM(K16:K25) -> 371 | AI18: Yedikleri Basket Sayısı | AJ18: 3 | AK18: =J23 -> 32 | AL18: =K23 -> 41
A19: 4 | B19: ='Betistuta MS'!B70 -> 2022-05-28 | C19: ='Betistuta MS'!A70 -> D | D19: ='Betistuta MS'!C70 -> Olimpia Mila | E19: ='Betistuta MS'!E70 -> Sassari | F19: ='Betistuta MS'!F70 -> 50-42 | G19: 3 | H19: 50 | I19: 42 | J19: 50 | K19: 42 | L19: 3 | M19: 1 | N19: W | O19: 8 | P19: 92 | Q19: 4 | R19: - | S19: - | T19: - | U19: 1 | AF19: 0 | AG19: =AG17/AG16 -> 36.4 | AH19: =AH17/AH16 -> 42.5 | AI19: Attıkları Basket Sayısı Ortalaması | AJ19: 4 | AK19: =J22 -> 51 | AL19: =K22 -> 40
A20: 5 | B20: ='Betistuta MS'!B71 -> 2022-05-19 | C20: ='Betistuta MS'!A71 -> D | D20: ='Betistuta MS'!C71 -> Reggiana | E20: ='Betistuta MS'!E71 -> Olimpia Mila | F20: ='Betistuta MS'!F71 -> 27-43 | G20: 3 | H20: 27 | I20: 43 | J20: 43 | K20: 27 | L20: 3 | M20: 1 | N20: W | O20: 16 | P20: 70 | Q20: 5 | R20: Reggiana | S20: Olimpia Mila | T20: 27-43 | U20: 3 | V20: 27 | W20: 43 | X20: 27 | Y20: 43 | Z20: 43 | AA20: 27 | AB20: 3 | AC20: 1 | AD20: W | AE20: 16 | AF20: 70 | AG20: =AG18/AG16 -> 31.6 | AH20: =AH18/AH16 -> 37.1 | AI20: Yedikleri Basket Sayısı Ortalaması | AJ20: 5 | AK20: =J21 -> 57 | AL20: =K21 -> 32
A21: 6 | B21: ='Betistuta MS'!B72 -> 2022-05-17 | C21: ='Betistuta MS'!A72 -> D | D21: ='Betistuta MS'!C72 -> Olimpia Mila | E21: ='Betistuta MS'!E72 -> Reggiana | F21: ='Betistuta MS'!F72 -> 57-32 | G21: 3 | H21: 57 | I21: 32 | J21: 57 | K21: 32 | L21: 3 | M21: 1 | N21: W | O21: 25 | P21: 89 | Q21: 6 | R21: - | S21: - | T21: - | U21: 1 | AF21: 0 | AG21: =COUNTIF($AD$16:$AD$25,"W")/AG16 -> 0.8 | AH21: =COUNTIF($N$16:$N$25,"W")/AH16 -> 0.7 | AI21: Galibiyet % | AJ21: 6 | AK21: =J20 -> 43 | AL21: =K20 -> 27
A22: 7 | B22: ='Betistuta MS'!B73 -> 2022-05-15 | C22: ='Betistuta MS'!A73 -> D | D22: ='Betistuta MS'!C73 -> Olimpia Mila | E22: ='Betistuta MS'!E73 -> Reggiana | F22: ='Betistuta MS'!F73 -> 51-40 | G22: 3 | H22: 51 | I22: 40 | J22: 51 | K22: 40 | L22: 3 | M22: 1 | N22: W | O22: 11 | P22: 91 | Q22: 7 | R22: - | S22: - | T22: - | U22: 1 | AF22: 0 | AG22: =COUNTIF($AD$16:$AD$25,"D")/AG16 -> 0 | AH22: =COUNTIF($N$16:$N$25,"D")/AH16 -> 0 | AI22: Beraberlik % | AJ22: 7 | AK22: =J19 -> 50 | AL22: =K19 -> 42
A23: 8 | B23: ='Betistuta MS'!B74 -> 2022-05-08 | C23: ='Betistuta MS'!A74 -> D | D23: ='Betistuta MS'!C74 -> Venezia | E23: ='Betistuta MS'!E74 -> Olimpia Mila | F23: ='Betistuta MS'!F74 -> 41-32 | G23: 3 | H23: 41 | I23: 32 | J23: 32 | K23: 41 | L23: 0 | M23: 0 | N23: L | O23: -9 | P23: 73 | Q23: 8 | R23: Venezia | S23: Olimpia Mila | T23: 41-32 | U23: 3 | V23: 41 | W23: 32 | X23: 41 | Y23: 32 | Z23: 32 | AA23: 41 | AB23: 0 | AC23: 0 | AD23: L | AE23: -9 | AF23: 73 | AG23: =COUNTIF($AD$16:$AD$25,"L")/AG16 -> 0.2 | AH23: =COUNTIF($N$16:$N$25,"L")/AH16 -> 0.3 | AI23: Mağlubiyet % | AJ23: 8 | AK23: =J18 -> 41 | AL23: =K18 -> 49
A24: 9 | B24: ='Betistuta MS'!B75 -> 2022-05-04 | C24: ='Betistuta MS'!A75 -> D | D24: ='Betistuta MS'!C75 -> Treviso | E24: ='Betistuta MS'!E75 -> Olimpia Mila | F24: ='Betistuta MS'!F75 -> 29-32 | G24: 3 | H24: 29 | I24: 32 | J24: 32 | K24: 29 | L24: 3 | M24: 1 | N24: W | O24: 3 | P24: 61 | Q24: 9 | R24: Treviso | S24: Olimpia Mila | T24: 29-32 | U24: 3 | V24: 29 | W24: 32 | X24: 29 | Y24: 32 | Z24: 32 | AA24: 29 | AB24: 3 | AC24: 1 | AD24: W | AE24: 3 | AF24: 61 | AG24: =IF(OR(AH21=0,AH23=0),0,(AH21/AH23)) -> 2.333333333 | AI24: Skor Olasılıkları | AJ24: 9 | AK24: =J17 -> 47 | AL24: =K17 -> 34
A25: 10 | B25: ='Betistuta MS'!B76 -> 2022-05-01 | C25: ='Betistuta MS'!A76 -> D | D25: ='Betistuta MS'!C76 -> Olimpia Mila | E25: ='Betistuta MS'!E76 -> Brindisi | F25: ='Betistuta MS'!F76 -> 44-50 | G25: 3 | H25: 44 | I25: 50 | J25: 44 | K25: 50 | L25: 0 | M25: 0 | N25: L | O25: -6 | P25: 94 | Q25: 10 | R25: - | S25: - | T25: - | U25: 1 | AF25: 0 | AG25: =IF(OR(AG21=0,AG23=0),0,(AG21/AG23)) -> 4 | AI25: Genel Skor Olasılığı | AJ25: 10 | AK25: =J16 -> 28 | AL25: =K16 -> 27
AG26: =AVERAGE(AG24:AG25) -> 3.166666667 | AH26: DEP | AI26: =A15 -> Olimpia Mila | AJ26: 11 | AK26: =INT(FORECAST(AJ26,AK16:AK25,AJ16:AJ25)) -> 42 | AL26: =INT(FORECAST(AJ26,AL16:AL25,AJ16:AJ25)) -> 32
H27: =SUM(H16:H26) -> 401 | I27: =SUM(I16:I26) -> 395 | J27: 425 | K27: 371 | O27: =SUM(O16:O26) -> 54 | P27: =SUM(P16:P26) -> 796 | V27: =SUM(V16:V26) -> 158 | W27: =SUM(W16:W26) -> 182 | X27: 158 | Y27: 182 | Z27: 182 | AA27: 158 | AF27: =SUM(AF16:AF26) -> 340 | AG27: =AI27 -> 42.5 | AI27: =AH19 -> 42.5 | AJ27: ORT. | AK27: =INT(AVERAGE(AK16:AK26)) -> 42 | AL27: =INT(AVERAGE(AL16:AL26)) -> 36

Sheet Most
B1: Tarih | C1: Ev Sahibi | D1: MS | E1: Deplasman | F1: İY | H1: Tarih | I1: Ev Sahibi | J1: MS | K1: Deplasman | L1: İY | N1: EV | O1: DEP | P1: EV | Q1: DEP | R1: EV | S1: DEP | T1: EV | U1: DEP | V1: EV | W1: DEP
A2: ='Betistuta MS'!A48 -> D | B2: ='Betistuta MS'!B48 -> 2022-06-08 | C2: ='Betistuta MS'!C48 -> Virtus Bolog | D2: ='Betistuta MS'!D48 -> 62-66 | E2: ='Betistuta MS'!E48 -> Olimpia Mila | F2: ='Betistuta MS'!F48 -> 27-28 | G2: ='Betistuta MS'!A67 -> D | H2: ='Betistuta MS'!B67 -> 2022-06-08 | I2: ='Betistuta MS'!C67 -> Virtus Bolog | J2: ='Betistuta MS'!D67 -> 62-66 | K2: ='Betistuta MS'!E67 -> Olimpia Mila | L2: ='Betistuta MS'!F67 -> 27-28 | N2: =E18/15 -> 40.8 | O2: =K18/15 -> 40.06666667 | P2: =N4+0.02 -> 1.140879121 | Q2: =O4+0.02 -> 1.141268657 | R2: =N2*N4 -> 45.73186813 | S2: =O2*O4 -> 44.92549751 | T2: =MAX(O3,N2) -> 40.8 | U2: =MAX(O2,N3) -> 40.06666667 | V2: =MIN(O3,N2) -> 36.4 | W2: =MIN(O2,N3) -> 35.73333333
A3: ='Betistuta MS'!A49 -> D | B3: ='Betistuta MS'!B49 -> 2022-05-31 | C3: ='Betistuta MS'!C49 -> Tortona | D3: ='Betistuta MS'!D49 -> 69-77 | E3: ='Betistuta MS'!E49 -> Virtus Bolog | F3: ='Betistuta MS'!F49 -> 33-47 | G3: ='Betistuta MS'!A68 -> D | H3: ='Betistuta MS'!B68 -> 2022-06-01 | I3: ='Betistuta MS'!C68 -> Sassari | J3: ='Betistuta MS'!D68 -> 69-87 | K3: ='Betistuta MS'!E68 -> Olimpia Mila | L3: ='Betistuta MS'!F68 -> 34-47 | N3: =F18/15 -> 35.73333333 | O3: =L18/15 -> 36.4 | P3: =N4-0.02 -> 1.100879121 | Q3: =O4-0.02 -> 1.101268657 | R3: =N2*O5 -> 36.4 | S3: =O2*N5 -> 35.73333333 | T3: =MAX(N4,O5) -> 1.120879121 | U3: =MAX(O4,N5) -> 1.121268657 | V3: =MIN(N4,O5) -> 0.8921568627 | W3: =MIN(O4,N5) -> 0.8918469218
A4: ='Betistuta MS'!A50 -> D | B4: ='Betistuta MS'!B50 -> 2022-05-29 | C4: ='Betistuta MS'!C50 -> Virtus Bolog | D4: ='Betistuta MS'!D50 -> 91-70 | E4: ='Betistuta MS'!E50 -> Tortona | F4: ='Betistuta MS'!F50 -> 41-35 | G4: ='Betistuta MS'!A69 -> D | H4: ='Betistuta MS'!B69 -> 2022-05-30 | I4: ='Betistuta MS'!C69 -> Olimpia Mila | J4: ='Betistuta MS'!D69 -> 91-82 | K4: ='Betistuta MS'!E69 -> Sassari | L4: ='Betistuta MS'!F69 -> 41-49 | N4: =N2/O3 -> 1.120879121 | O4: =O2/N3 -> 1.121268657 | P4: =N5+0.02 -> 0.9118469218 | Q4: =O5+0.02 -> 0.9121568627 | R4: =O3*N4 -> 40.8 | S4: =N3*O4 -> 40.06666667 | T4: =T2*T3 -> 45.73186813 | U4: =U2*U3 -> 44.92549751 | V4: =V2*V3 -> 32.4745098 | W4: =W2*W3 -> 31.86866334
A5: ='Betistuta MS'!A51 -> D | B5: ='Betistuta MS'!B51 -> 2022-05-27 | C5: ='Betistuta MS'!C51 -> Virtus Bolog | D5: ='Betistuta MS'!D51 -> 77-73 | E5: ='Betistuta MS'!E51 -> Tortona | F5: ='Betistuta MS'!F51 -> 35-38 | G5: ='Betistuta MS'!A70 -> D | H5: ='Betistuta MS'!B70 -> 2022-05-28 | I5: ='Betistuta MS'!C70 -> Olimpia Mila | J5: ='Betistuta MS'!D70 -> 88-71 | K5: ='Betistuta MS'!E70 -> Sassari | L5: ='Betistuta MS'!F70 -> 50-42 | N5: =N3/O2 -> 0.8918469218 | O5: =O3/N2 -> 0.8921568627 | P5: =N5-0.02 -> 0.8718469218 | Q5: =O5-0.02 -> 0.8721568627 | R5: =O3*O5 -> 32.4745098 | S5: =N3*N5 -> 31.86866334 | T5: =T4+1 -> 46.73186813 | U5: =U4+1 -> 45.92549751 | V5: =V4-2 -> 30.4745098 | W5: =W4-2 -> 29.86866334
A6: ='Betistuta MS'!A52 -> D | B6: ='Betistuta MS'!B52 -> 2022-05-19 | C6: ='Betistuta MS'!C52 -> Pesaro | D6: ='Betistuta MS'!D52 -> 55-75 | E6: ='Betistuta MS'!E52 -> Virtus Bolog | F6: ='Betistuta MS'!F52 -> 35-35 | G6: ='Betistuta MS'!A71 -> D | H6: ='Betistuta MS'!B71 -> 2022-05-19 | I6: ='Betistuta MS'!C71 -> Reggiana | J6: ='Betistuta MS'!D71 -> 59-89 | K6: ='Betistuta MS'!E71 -> Olimpia Mila | L6: ='Betistuta MS'!F71 -> 27-43 | N6: =SUM(N2:N5)/4 -> 19.63651484 | O6: =SUM(O2:O5)/4 -> 19.62002305 | P6: 1.006363021 | Q6: 1.00671276 | R6: =ROUND(AVERAGE(R2:R5),0)+1 -> 40 | S6: =ROUND(AVERAGE(S2:S5),0)-1 -> 37 | T6: EV | U6: =AVERAGE(T5,V5) -> 38.60318897 | V6: DEP | W6: =AVERAGE(U5,W5) -> 37.89708043
A7: ='Betistuta MS'!A53 -> D | B7: ='Betistuta MS'!B53 -> 2022-05-17 | C7: ='Betistuta MS'!C53 -> Virtus Bolog | D7: ='Betistuta MS'!D53 -> 70-51 | E7: ='Betistuta MS'!E53 -> Pesaro | F7: ='Betistuta MS'!F53 -> 31-25 | G7: ='Betistuta MS'!A72 -> D | H7: ='Betistuta MS'!B72 -> 2022-05-17 | I7: ='Betistuta MS'!C72 -> Olimpia Mila | J7: ='Betistuta MS'!D72 -> 91-65 | K7: ='Betistuta MS'!E72 -> Reggiana | L7: ='Betistuta MS'!F72 -> 57-32
A8: ='Betistuta MS'!A54 -> D | B8: ='Betistuta MS'!B54 -> 2022-05-15 | C8: ='Betistuta MS'!C54 -> Virtus Bolog | D8: ='Betistuta MS'!D54 -> 82-76 | E8: ='Betistuta MS'!E54 -> Pesaro | F8: ='Betistuta MS'!F54 -> 45-36 | G8: ='Betistuta MS'!A73 -> D | H8: ='Betistuta MS'!B73 -> 2022-05-15 | I8: ='Betistuta MS'!C73 -> Olimpia Mila | J8: ='Betistuta MS'!D73 -> 91-82 | K8: ='Betistuta MS'!E73 -> Reggiana | L8: ='Betistuta MS'!F73 -> 51-40 | N8: EV | O8: DEP | P8: EV | Q8: DEP | R8: EV | S8: DEP | T8: EV | U8: DEP | V8: EV | W8: DEP
A9: ='Betistuta MS'!A55 -> D | B9: ='Betistuta MS'!B55 -> 2022-05-11 | C9: ='Betistuta MS'!C55 -> Virtus Bolog | D9: ='Betistuta MS'!D55 -> 80-67 | E9: ='Betistuta MS'!E55 -> Bursaspor | F9: ='Betistuta MS'!F55 -> 41-31 | G9: ='Betistuta MS'!A74 -> D | H9: ='Betistuta MS'!B74 -> 2022-05-08 | I9: ='Betistuta MS'!C74 -> Venezia | J9: ='Betistuta MS'!D74 -> 69-74 | K9: ='Betistuta MS'!E74 -> Olimpia Mila | L9: ='Betistuta MS'!F74 -> 41-32 | N9: =E19/15 -> 81.4 | O9: =K19/15 -> 77.73333333 | P9: =N11+0.02 -> 1.160056022 | Q9: =O11+0.02 -> 1.1117603 | R9: =N9*N11 -> 92.80056022 | S9: =O9*O11 -> 84.86616729 | T9: =MAX(O10,N9) -> 81.4 | U9: =MAX(O9,N10) -> 77.73333333 | V9: =MIN(O10,N9) -> 71.4 | W9: =MIN(O9,N10) -> 71.2
A10: ='Betistuta MS'!A56 -> D | B10: ='Betistuta MS'!B56 -> 2022-05-08 | C10: ='Betistuta MS'!C56 -> Virtus Bolog | D10: ='Betistuta MS'!D56 -> 79-57 | E10: ='Betistuta MS'!E56 -> Brescia | F10: ='Betistuta MS'!F56 -> 42-24 | G10: ='Betistuta MS'!A75 -> D | H10: ='Betistuta MS'!B75 -> 2022-05-04 | I10: ='Betistuta MS'!C75 -> Treviso | J10: ='Betistuta MS'!D75 -> 80-74 | K10: ='Betistuta MS'!E75 -> Olimpia Mila | L10: ='Betistuta MS'!F75 -> 29-32 | N10: =F19/15 -> 71.2 | O10: =L19/15 -> 71.4 | P10: =N11-0.02 -> 1.120056022 | Q10: =O11-0.02 -> 1.0717603 | R10: =N9*O12 -> 71.4 | S10: =O9*N12 -> 71.2 | T10: =MAX(N11,O12) -> 1.140056022 | U10: =MAX(O11,N12) -> 1.0917603 | V10: =MIN(N11,O12) -> 0.8771498771 | W10: =MIN(O11,N12) -> 0.9159519726
A11: ='Betistuta MS'!A57 -> D | B11: ='Betistuta MS'!B57 -> 2022-05-06 | C11: ='Betistuta MS'!C57 -> Sassari | D11: ='Betistuta MS'!D57 -> 108-73 | E11: ='Betistuta MS'!E57 -> Virtus Bolog | F11: ='Betistuta MS'!F57 -> 47-35 | G11: ='Betistuta MS'!A76 -> D | H11: ='Betistuta MS'!B76 -> 2022-05-01 | I11: ='Betistuta MS'!C76 -> Olimpia Mila | J11: ='Betistuta MS'!D76 -> 92-87 | K11: ='Betistuta MS'!E76 -> Brindisi | L11: ='Betistuta MS'!F76 -> 44-50 | N11: =N9/O10 -> 1.140056022 | O11: =O9/N10 -> 1.0917603 | P11: =N12+0.02 -> 0.9359519726 | Q11: =O12+0.02 -> 0.8971498771 | R11: =O10*N11 -> 81.4 | S11: =N10*O11 -> 77.73333333 | T11: =T9*T10 -> 92.80056022 | U11: =U9*U10 -> 84.86616729 | V11: =V9*V10 -> 62.62850123 | W11: =W9*W10 -> 65.21578045
A12: ='Betistuta MS'!A58 -> D | B12: ='Betistuta MS'!B58 -> 2022-05-04 | C12: ='Betistuta MS'!C58 -> Valencia | D12: ='Betistuta MS'!D58 -> 73-83 | E12: ='Betistuta MS'!E58 -> Virtus Bolog | F12: ='Betistuta MS'!F58 -> 38-50 | G12: ='Betistuta MS'!A77 -> D | H12: ='Betistuta MS'!B77 -> 2022-04-28 | I12: ='Betistuta MS'!C77 -> Anadolu Efes | J12: ='Betistuta MS'!D77 -> 75-70 | K12: ='Betistuta MS'!E77 -> Olimpia Mila | L12: ='Betistuta MS'!F77 -> 42-43 | N12: =N10/O9 -> 0.9159519726 | O12: =O10/N9 -> 0.8771498771 | P12: =N12-0.02 -> 0.8959519726 | Q12: =O12-0.02 -> 0.8571498771 | R12: =O10*O12 -> 62.62850123 | S12: =N10*N12 -> 65.21578045 | T12: =T11-2 -> 90.80056022 | U12: =U11-2 -> 82.86616729 | V12: =V11 -> 62.62850123 | W12: =W11 -> 65.21578045
A13: ='Betistuta MS'!A59 -> D | B13: ='Betistuta MS'!B59 -> 2022-04-29 | C13: ='Betistuta MS'!C59 -> Treviso | D13: ='Betistuta MS'!D59 -> 76-113 | E13: ='Betistuta MS'!E59 -> Virtus Bolog | F13: ='Betistuta MS'!F59 -> 34-52 | G13: ='Betistuta MS'!A78 -> D | H13: ='Betistuta MS'!B78 -> 2022-04-26 | I13: ='Betistuta MS'!C78 -> Anadolu Efes | J13: ='Betistuta MS'!D78 -> 77-65 | K13: ='Betistuta MS'!E78 -> Olimpia Mila | L13: ='Betistuta MS'!F78 -> 42-35 | N13: =SUM(N9:N12)/4 -> 38.664002 | O13: =SUM(O9:O12)/4 -> 37.77556088 | P13: 1.028003997 | Q13: 0.9844550884 | R13: =ROUND(AVERAGE(R9:R12),0)+1 -> 78 | S13: =ROUND(AVERAGE(S9:S12),0)-1 -> 74 | T13: EV | U13: =AVERAGE(T12,V12) -> 76.71453073 | V13: DEP | W13: =AVERAGE(U12,W12) -> 74.04097387
A14: ='Betistuta MS'!A60 -> D | B14: ='Betistuta MS'!B60 -> 2022-04-26 | C14: ='Betistuta MS'!C60 -> Virtus Bolog | D14: ='Betistuta MS'!D60 -> 83-77 | E14: ='Betistuta MS'!E60 -> Ulm | F14: ='Betistuta MS'!F60 -> 43-45 | G14: ='Betistuta MS'!A79 -> D | H14: ='Betistuta MS'!B79 -> 2022-04-23 | I14: ='Betistuta MS'!C79 -> Reggiana | J14: ='Betistuta MS'!D79 -> 63-67 | K14: ='Betistuta MS'!E79 -> Olimpia Mila | L14: ='Betistuta MS'!F79 -> 29-39
A15: ='Betistuta MS'!A61 -> D | B15: ='Betistuta MS'!B61 -> 2022-04-22 | C15: ='Betistuta MS'!C61 -> Virtus Bolog | D15: ='Betistuta MS'!D61 -> 101-83 | E15: ='Betistuta MS'!E61 -> Tortona | F15: ='Betistuta MS'!F61 -> 49-53 | G15: ='Betistuta MS'!A80 -> D | H15: ='Betistuta MS'!B80 -> 2022-04-21 | I15: ='Betistuta MS'!C80 -> Olimpia Mila | J15: ='Betistuta MS'!D80 -> 73-66 | K15: ='Betistuta MS'!E80 -> Anadolu Efes | L15: ='Betistuta MS'!F80 -> 33-33 | N15: =UPPER(D22) -> VİRTUS BOLOG | P15: =UPPER(J22) -> OLİMPİA MİLA | R15: HT | S15: FT | T15: =N15 -> VİRTUS BOLOG | V15: =P15 -> OLİMPİA MİLA
A16: ='Betistuta MS'!A62 -> D | B16: ='Betistuta MS'!B62 -> 2022-04-20 | C16: ='Betistuta MS'!C62 -> Virtus Bolog | D16: ='Betistuta MS'!D62 -> 75-67 | E16: ='Betistuta MS'!E62 -> Lietkabelis | F16: ='Betistuta MS'!F62 -> 39-34 | G16: ='Betistuta MS'!A81 -> D | H16: ='Betistuta MS'!B81 -> 2022-04-19 | I16: ='Betistuta MS'!C81 -> Olimpia Mila | J16: ='Betistuta MS'!D81 -> 48-64 | K16: ='Betistuta MS'!E81 -> Anadolu Efes | L16: ='Betistuta MS'!F81 -> 26-29 | N16: =R6+2 -> 42 | P16: =S6+2 -> 39 | R16: =INT(N16+P16) -> 81 | S16: =INT(T28+V28) -> 162 | T16: =INT(V26) -> 78 | V16: =INT(T26) -> 76
C17: G | D17: M | E17: AS | F17: YS | I17: G | J17: M | K17: AS | L17: YS | R17: =INT(ROUND((V5+W5),2)) -> 60 | S17: =INT(ROUND((V12+W12),2)) -> 127
A18: İlk Yarı | C18: ='Betistuta MS'!B64 -> 9 | D18: ='Betistuta MS'!C64 -> 5 | E18: ='Betistuta MS'!D64 -> 612 | F18: ='Betistuta MS'!E64 -> 536 | G18: İlk Yarı | I18: ='Betistuta MS'!B83 -> 9 | J18: ='Betistuta MS'!C83 -> 5 | K18: ='Betistuta MS'!D83 -> 601 | L18: ='Betistuta MS'!E83 -> 546 | R18: =INT(ROUND((T5+U5),2)) -> 92 | S18: =INT(ROUND((T12+U12),2)) -> 173
A19: Maç Sonu | C19: ='Betistuta MS'!B65 -> 13 | D19: ='Betistuta MS'!C65 -> 2 | E19: ='Betistuta MS'!D65 -> 1221 | F19: ='Betistuta MS'!E65 -> 1068 | G19: Maç Sonu | I19: ='Betistuta MS'!B84 -> 11 | J19: ='Betistuta MS'!C84 -> 4 | K19: ='Betistuta MS'!D84 -> 1166 | L19: ='Betistuta MS'!E84 -> 1071 | R19: =CONCATENATE("HT: ",L22," / ","FT: ",L21,"-",K21) -> HT: 81 / FT: 144,5-ALT
K21: =IF(L21>'Betistuta MS'!AA28,"UST","ALT") -> ALT | L21: =(LARGE(S16:S18,2)+LARGE(S16:S18,3))/2 -> 144.5 | R21: =IF(AND((N16>P16),(T16>V16)),"1 / 1",IF(AND((N16=P16),(T16>V16)),"X / 1",IF(AND((N16<P16),(T16>V16)),"2 / 1",IF(AND((N16>P16),(T16=V16)),"1 / X",IF(AND((N16=P16),(T16=V16)),"X / X",IF(AND((N16<P16),(T16=V16)),"2 / X",IF(AND((N16>P16),(T16<V16)),"1 / 2",IF(AND((N16=P16),(T16<V16)),"X / 2",IF(AND((N16<P16),(T16<V16)),"2 / 2"))))))))) -> 1 / 1
C22: =COUNTIF(C2:C16:E2:E16,C2) -> 15 | D22: =IF(C22>E22,C2,E2) -> Virtus Bolog | E22: =COUNTIF(C2:C16:E2:E16,E2) -> 1 | I22: =COUNTIF(I2:I16:K2:K16,I2) -> 1 | J22: =IF(I22>K22,I2,K2) -> Olimpia Mila | K22: =COUNTIF(I2:I16:K2:K16,K2) -> 15 | L22: =LARGE(R16:R18,2) -> 81
L24: =(L21/S18) -> 0.8352601156 | T24: =T28*L24 -> 67.18254674 | V24: =L24*V28 -> 68.82566749
L25: =(T28+V28)/(S16+S17+S18) -> 0.3524531683 | T25: =L25*T28/3 -> 9.449631722 | V25: =L25*V28/3 -> 9.680746598
T26: =T24+T25 -> 76.63217847 | V26: =V24+V25 -> 78.50641409
T28: =(R13+U12)/2 -> 80.43308365 | V28: =(S13+T12)/2 -> 82.40028011

Sheet RUS
A1: TAKIM | B1: OYNANAN | C1: W | D1: D | E1: L | F1: ATILAN | G1: YENEN | X1: 1 | Y1: =C9/B9/(C9/B9+D9/B9+C15/B15+D15/B15) -> 0.72 | Z1: =C2/B2/(C2/B2+D2/B2+D3/B3+C3/B3) -> 0.7272727273
A2: EV SAHİBİ | B2: =EV!L11 -> 10 | C2: =EV!M11 -> 8 | D2: =EV!N11 -> 0 | E2: =EV!O11 -> 2 | F2: =EV!P11 -> 766 | G2: =EV!Q11 -> 692 | H2: =EV!R11 -> 24 | I2: =F2/B2 -> 76.6 | J2: =G2/B2 -> 69.2 | X2: X | Y2: =(D9/B9+D15/B15)/(C9/B9+D9/B9+C15/B15+D15/B15) -> 0 | Z2: =(D2/B2+D3/B3)/(C2/B2+D2/B2+D3/B3+C3/B3) -> 0
A3: DEPLASMAN | B3: =DEP!L11 -> 10 | C3: =DEP!M11 -> 3 | D3: =DEP!N11 -> 0 | E3: =DEP!O11 -> 7 | F3: =DEP!P11 -> 773 | G3: =DEP!Q11 -> 796 | H3: =DEP!R11 -> 9 | I3: =F3/B3 -> 77.3 | J3: =G3/B3 -> 79.6 | X3: 2 | Y3: =C15/B15/(C9/B9+D9/B9+C15/B15+D15/B15) -> 0.28 | Z3: =C3/B3/(C2/B2+D2/B2+D3/B3+C3/B3) -> 0.2727272727
A4: EV SAHİBİ | B4: =EV!W6*1.5+EV!AD6*2 -> 649 | C4: =EV!X6*1.5+EV!AE6 -> 437.5 | D4: =B4/5 -> 129.8 | E4: =C4/5 -> 87.5 | F4: =((D4+E5)/2+(D5+E4)/2)/2 -> 112.175 | G4: =INT(AVERAGE(I9,I2)+AVERAGE(J5,J3)-F5) -> 81 | H4: =EV!AF11 -> 6 | I4: =F14/B14 -> 75 | J4: =G14/B14 -> 77.33333333
A5: DEPLASMAN | B5: =DEP!W6*1.5+DEP!AD6*2 -> 751 | C5: =DEP!X6*1.5+DEP!AE6 -> 406 | D5: =B5/5 -> 150.2 | E5: =C5/5 -> 81.2 | F5: =AVERAGE(EV!J2:K11,DEP!J2:K11) -> 75.675 | G5: =INT(AVERAGE(I5,I3)+AVERAGE(J9,J2)-F5) -> 69 | H5: =DEP!AF11 -> 9 | I5: =F15/B15 -> 79 | J5: =G15/B15 -> 81.11111111
A7: ='Betistuta MS'!A25 -> Virtus Bologna
A8: TAKIM | B8: OYNANAN | C8: W | D8: D | E8: L | F8: ATILAN | G8: YENEN
A9: EV SAHİBİ | B9: =EV!S11 -> 7 | C9: =EV!T11 -> 6 | D9: =EV!U11 -> 0 | E9: =EV!V11 -> 1 | F9: =EV!W11 -> 541 | G9: =EV!X11 -> 460 | H9: =EV!Y11 -> 18 | I9: =F9/B9 -> 77.28571429 | J9: =G9/B9 -> 65.71428571
A10: DEPLASMAN | B10: =DEP!S11 -> 1 | C10: =DEP!T11 -> 0 | D10: =DEP!U11 -> 0 | E10: =DEP!V11 -> 1 | F10: =DEP!W11 -> 62 | G10: =DEP!X11 -> 66 | H10: =DEP!Y11 -> 0 | I10: =F10/B10 -> 62 | J10: =G10/B10 -> 66
A12: ='Betistuta MS'!A27 -> Olimpia Milano
A13: TAKIM | B13: OYNANAN | C13: W | D13: D | E13: L | F13: ATILAN | G13: YENEN | H13: MS1 | I13: MSX | J13: MS2
A14: EV SAHİBİ | B14: =EV!Z11 -> 3 | C14: =EV!AA11 -> 2 | D14: =EV!AB11 -> 0 | E14: =EV!AC11 -> 1 | F14: =EV!AD11 -> 225 | G14: =EV!AE11 -> 232 | H14: =AVERAGE(Y1,Z1) -> 0.7236363636 | I14: =1-(H14+J14) -> 0 | J14: =AVERAGE(Y3,Z3) -> 0.2763636364
A15: DEPLASMAN | B15: =DEP!Z11 -> 9 | C15: =DEP!AA11 -> 3 | D15: =DEP!AB11 -> 0 | E15: =DEP!AC11 -> 6 | F15: =DEP!AD11 -> 711 | G15: =DEP!AE11 -> 730 | H15: =IF('Betistuta MS'!N1>RUS!G4+RUS!G5,"ÜST","ALT") -> ÜST

Sheet EV
B1: =IF(D2=D3,D2,IF(D2=E3,D2,E2)) -> Virtus Bolog | D1: EV | E1: DEP | F1: EV | G1: DEP | H1: EV - DEP | I1: SONUÇ | J1: SKOR | K1: SKOR | L1: SIRA | M1: W | N1: D | O1: L | P1: EV | Q1: DEP | R1: PUAN | S1: OYUN | T1: W | U1: D | V1: L | W1: BERABERE | X1: KAYBETMİŞ | Y1: BERABERE | Z1: OYUN | AA1: W | AB1: D | AC1: L | AD1: SKOR | AE1: SKOR | AF1: BERABERE | AG1: 0 | AH1: 1 | AI1: 2 | AJ1: 3+ | AK1: 0 | AL1: 1 | AM1: 2 | AN1: 3+ | AO1: SKOR | AP1: SKOR | AQ1: DEĞERLENDİRME | AR1: SERİ | AS1: TOPLAM | AT1: TOPLAM
A2: ='Betistuta MS'!C48 -> Virtus Bolog | B2: ='Betistuta MS'!E48 -> Olimpia Mila | C2: ='Betistuta MS'!D48 -> 62-66 | D2: =A2 -> Virtus Bolog | E2: Olimpia Mila | F2: =VALUE(LEFT(C2,FIND("-",C2,1)-1)) -> 62 | G2: =VALUE(LEFT(RIGHT(C2,LEN(C2)-FIND("-",C2,1)),100)) -> 66 | H2: =IF(D2=$B$1,"EV","DEP") -> EV | I2: =IF(H2="EV",IF(F2>G2,"W",IF(F2=G2,"D","L")),IF(F2<G2,"W",IF(F2=G2,"D","L"))) -> L | J2: =IF(H2="EV",F2,G2) -> 62 | K2: =IF(H2="EV",G2,F2) -> 66 | L2: 1 | M2: =IF(I2="W",1,0) -> 0 | N2: =IF(I2="D",1,0) -> 0 | O2: =IF(I2="L",1,0) -> 1 | P2: =J2 -> 62 | Q2: =K2 -> 66 | R2: =M2*3+N2 -> 0 | S2: =IF(H2="EV",1,0) -> 1 | T2: =IF(H2="EV",IF(I2="W",1,0),0) -> 0 | U2: =IF(H2="EV",IF(I2="D",1,0),0) -> 0 | V2: =IF(H2="EV",IF(I2="L",1,0),0) -> 1 | W2: =IF(H2="EV",J2,0) -> 62 | X2: =IF(H2="EV",K2,0) -> 66 | Y2: =T2*3+U2 -> 0 | Z2: =IF(H2<>"EV",1,0) -> 0 | AA2: =IF(H2<>"EV",IF(I2="W",1,0),0) -> 0 | AB2: =IF(H2<>"EV",IF(I2="D",1,0),0) -> 0 | AC2: =IF(H2<>"EV",IF(I2="L",1,0),0) -> 0 | AD2: =IF(H2<>"EV",J2,0) -> 0 | AE2: =IF(H2<>"EV",K2,0) -> 0 | AF2: =AA2*3+AB2 -> 0 | AG2: =IF(H2="EV",IF(J2=0,1,0),0) -> 0 | AH2: =IF(H2="EV",IF(J2=1,1,0),0) -> 0 | AI2: =IF(H2="EV",IF(J2=2,1,0),0) -> 0 | AJ2: =IF(H2="EV",IF(J2>=3,1,0),0) -> 1 | AK2: =IF(H2<>"EV",IF(J2=0,1,0),0) -> 0 | AL2: =IF(H2<>"EV",IF(J2=1,1,0),0) -> 0 | AM2: =IF(H2<>"EV",IF(J2=2,1,0),0) -> 0 | AN2: =IF(H2<>"EV",IF(J2>=3,1,0),0) -> 0 | AO2: =P2/L2 -> 62 | AP2: =Q2/L2 -> 66 | AQ2: =(Y2/IF(S2<1,1,S2)+AF2/IF(Z2<1,1,Z2)*1.5+W2/IF(S2<1,1,S2)+AD2/IF(Z2<1,1,Z2)*1.5-X2/IF(S2<1,1,S2)*1.5-AE2/IF(Z2<1,1,Z2))/15 -> -2.466666667 | AR2: =IF(H2="EV",IF(I2="W","W",IF(I2="D","D","L")),"") -> L | AS2: =IF(H2="EV",J2+K2,"") -> 128 | AT2: =F2+G2 -> 128
A3: ='Betistuta MS'!C49 -> Tortona | B3: ='Betistuta MS'!E49 -> Virtus Bolog | C3: ='Betistuta MS'!D49 -> 69-77 | D3: Tortona | E3: Virtus Bolog | F3: =VALUE(LEFT(C3,FIND("-",C3,1)-1)) -> 69 | G3: =VALUE(LEFT(RIGHT(C3,LEN(C3)-FIND("-",C3,1)),100)) -> 77 | H3: DEP | I3: =IF(H3="EV",IF(F3>G3,"W",IF(F3=G3,"D","L")),IF(F3<G3,"W",IF(F3=G3,"D","L"))) -> W | J3: 77 | K3: 69 | L3: =L2+1 -> 2 | M3: =IF(I3="W",M2+1,M2+0) -> 1 | N3: =IF(I3="D",N2+1,N2+0) -> 0 | O3: =IF(I3="L",O2+1,O2+0) -> 1 | P3: =J3+P2 -> 139 | Q3: =K3+Q2 -> 135 | R3: =M3*3+N3 -> 3 | S3: =IF(H3="EV",S2+1,S2+0) -> 1 | T3: =IF(H3="EV",IF(I3="W",T2+1,T2+0),T2+0) -> 0 | U3: =IF(H3="EV",IF(I3="D",U2+1,U2+0),U2+0) -> 0 | V3: =IF(H3="EV",IF(I3="L",V2+1,V2+0),V2+0) -> 1 | W3: =IF(H3="EV",W2+J3,W2+0) -> 62 | X3: =IF(H3="EV",X2+K3,X2+0) -> 66 | Y3: 0 | Z3: =IF(H3<>"EV",Z2+1,Z2+0) -> 1 | AA3: =IF(H3<>"EV",IF(I3="W",AA2+1,AA2+0),AA2+0) -> 1 | AB3: =IF(H3<>"EV",IF(I3="D",AB2+1,AB2+0),AB2+0) -> 0 | AC3: =IF(H3<>"EV",IF(I3="L",AC2+1,AC2+0),AC2+0) -> 0 | AD3: =IF(H3<>"EV",AD2+J3,AD2+0) -> 77 | AE3: =IF(H3<>"EV",AE2+K3,AE2+0) -> 69 | AF3: 3 | AG3: =IF(H3="EV",IF(J3=0,AG2+1,AG2),AG2) -> 0 | AH3: =IF(H3="EV",IF(J3=1,AH2+1,AH2),AH2) -> 0 | AI3: =IF(H3="EV",IF(J3=2,AI2+1,AI2),AI2) -> 0 | AJ3: =IF(H3="EV",IF(J3>=3,AJ2+1,AJ2),AJ2) -> 1 | AK3: =IF(H3<>"EV",IF(J3=0,AK2+1,AK2),AK2) -> 0 | AL3: =IF(H3<>"EV",IF(J3=1,AL2+1,AL2),AL2) -> 0 | AM3: =IF(H3<>"EV",IF(J3=2,AM2+1,AM2),AM2) -> 0 | AN3: =IF(H3<>"EV",IF(J3>=3,AN2+1,AN2),AN2) -> 1 | AO3: 69.5 | AP3: 67.5 | AQ3: =(Y3/IF(S3<1,1,S3)+AF3/IF(Z3<1,1,Z3)*1.5+W3/IF(S3<1,1,S3)+AD3/IF(Z3<1,1,Z3)*1.5-X3/IF(S3<1,1,S3)*1.5-AE3/IF(Z3<1,1,Z3))/15 -> 0.9333333333 | AT3: =F3+G3 -> 146
A4: ='Betistuta MS'!C50 -> Virtus Bolog | B4: ='Betistuta MS'!E50 -> Tortona | C4: ='Betistuta MS'!D50 -> 91-70 | D4: Virtus Bolog | E4: Tortona | F4: 91 | G4: 70 | H4: EV | I4: W | J4: 91 | K4: 70 | L4: =L3+1 -> 3 | M4: 2 | N4: 0 | O4: 1 | P4: =J4+P3 -> 230 | Q4: 205 | R4: 6 | S4: 2 | T4: 1 | U4: 0 | V4: 1 | W4: 153 | X4: 136 | Y4: 3 | Z4: 1 | AA4: 1 | AB4: 0 | AC4: 0 | AD4: 77 | AE4: 69 | AF4: 3 | AG4: 0 | AH4: 0 | AI4: 0 | AJ4: 2 | AK4: 0 | AL4: 0 | AM4: 0 | AN4: 1 | AO4: 76.66666667 | AP4: 68.33333333 | AQ4: =(Y4/IF(S4<1,1,S4)+AF4/IF(Z4<1,1,Z4)*1.5+W4/IF(S4<1,1,S4)+AD4/IF(Z4<1,1,Z4)*1.5-X4/IF(S4<1,1,S4)*1.5-AE4/IF(Z4<1,1,Z4))/15 -> 1.8 | AR4: W | AS4: 161 | AT4: 161
A5: ='Betistuta MS'!C51 -> Virtus Bolog | B5: ='Betistuta MS'!E51 -> Tortona | C5: ='Betistuta MS'!D51 -> 77-73 | D5: Virtus Bolog | E5: Tortona | F5: 77 | G5: 73 | H5: EV | I5: W | J5: 77 | K5: 73 | L5: 4 | M5: 3 | N5: 0 | O5: 1 | P5: 307 | Q5: 278 | R5: 9 | S5: 3 | T5: 2 | U5: 0 | V5: 1 | W5: 230 | X5: 209 | Y5: 6 | Z5: 1 | AA5: 1 | AB5: 0 | AC5: 0 | AD5: 77 | AE5: 69 | AF5: 3 | AG5: 0 | AH5: 0 | AI5: 0 | AJ5: 3 | AK5: 0 | AL5: 0 | AM5: 0 | AN5: 1 | AO5: 76.75 | AP5: 69.5 | AQ5: 1.677777778 | AR5: W | AS5: 150 | AT5: 150
A6: ='Betistuta MS'!C52 -> Pesaro | B6: ='Betistuta MS'!E52 -> Virtus Bolog | C6: ='Betistuta MS'!D52 -> 55-75 | D6: Pesaro | E6: Virtus Bolog | F6: 55 | G6: 75 | H6: DEP | I6: W | J6: 75 | K6: 55 | L6: 5 | M6: 4 | N6: 0 | O6: 1 | P6: 382 | Q6: 333 | R6: 12 | S6: 3 | T6: 2 | U6: 0 | V6: 1 | W6: 230 | X6: 209 | Y6: 6 | Z6: 2 | AA6: 2 | AB6: 0 | AC6: 0 | AD6: 152 | AE6: 124 | AF6: 6 | AG6: 0 | AH6: 0 | AI6: 0 | AJ6: 3 | AK6: 0 | AL6: 0 | AM6: 0 | AN6: 2 | AO6: 76.4 | AP6: 66.6 | AQ6: 2.044444444 | AT6: 130
A7: ='Betistuta MS'!C53 -> Virtus Bolog | B7: ='Betistuta MS'!E53 -> Pesaro | C7: ='Betistuta MS'!D53 -> 70-51 | D7: Virtus Bolog | E7: Pesaro | F7: 70 | G7: 51 | H7: EV | I7: W | J7: 70 | K7: 51 | L7: 6 | M7: 5 | N7: 0 | O7: 1 | P7: 452 | Q7: 384 | R7: 15 | S7: 4 | T7: 3 | U7: 0 | V7: 1 | W7: 300 | X7: 260 | Y7: 9 | Z7: 2 | AA7: 2 | AB7: 0 | AC7: 0 | AD7: 152 | AE7: 124 | AF7: 6 | AG7: 0 | AH7: 0 | AI7: 0 | AJ7: 4 | AK7: 0 | AL7: 0 | AM7: 0 | AN7: 2 | AO7: 75.33333333 | AP7: 64 | AQ7: 2.416666667 | AR7: W | AS7: 121 | AT7: 121
A8: ='Betistuta MS'!C54 -> Virtus Bolog | B8: ='Betistuta MS'!E54 -> Pesaro | C8: ='Betistuta MS'!D54 -> 82-76 | D8: Virtus Bolog | E8: Pesaro | F8: 82 | G8: 76 | H8: EV | I8: W | J8: 82 | K8: 76 | L8: 7 | M8: 6 | N8: 0 | O8: 1 | P8: 534 | Q8: 460 | R8: 18 | S8: 5 | T8: 4 | U8: 0 | V8: 1 | W8: 382 | X8: 336 | Y8: 12 | Z8: 2 | AA8: 2 | AB8: 0 | AC8: 0 | AD8: 152 | AE8: 124 | AF8: 6 | AG8: 0 | AH8: 0 | AI8: 0 | AJ8: 5 | AK8: 0 | AL8: 0 | AM8: 0 | AN8: 2 | AO8: 76.28571429 | AP8: 65.71428571 | AQ8: 2.3 | AR8: W | AS8: 158 | AT8: 158
A9: ='Betistuta MS'!C55 -> Virtus Bolog | B9: ='Betistuta MS'!E55 -> Bursaspor | C9: ='Betistuta MS'!D55 -> 80-67 | D9: Virtus Bolog | E9: Bursaspor | F9: 80 | G9: 67 | H9: EV | I9: W | J9: 80 | K9: 67 | L9: 8 | M9: 7 | N9: 0 | O9: 1 | P9: 614 | Q9: 527 | R9: 21 | S9: 6 | T9: 5 | U9: 0 | V9: 1 | W9: 462 | X9: 403 | Y9: 15 | Z9: 2 | AA9: 2 | AB9: 0 | AC9: 0 | AD9: 152 | AE9: 124 | AF9: 6 | AG9: 0 | AH9: 0 | AI9: 0 | AJ9: 6 | AK9: 0 | AL9: 0 | AM9: 0 | AN9: 2 | AO9: 76.75 | AP9: 65.875 | AQ9: 2.35 | AR9: W | AS9: 147 | AT9: 147
A10: ='Betistuta MS'!C56 -> Virtus Bolog | B10: ='Betistuta MS'!E56 -> Brescia | C10: ='Betistuta MS'!D56 -> 79-57 | D10: Virtus Bolog | E10: Brescia | F10: 79 | G10: 57 | H10: EV | I10: W | J10: 79 | K10: 57 | L10: 9 | M10: 8 | N10: 0 | O10: 1 | P10: 693 | Q10: 584 | R10: 24 | S10: 7 | T10: 6 | U10: 0 | V10: 1 | W10: 541 | X10: 460 | Y10: 18 | Z10: 2 | AA10: 2 | AB10: 0 | AC10: 0 | AD10: 152 | AE10: 124 | AF10: 6 | AG10: 0 | AH10: 0 | AI10: 0 | AJ10: 7 | AK10: 0 | AL10: 0 | AM10: 0 | AN10: 2 | AO10: 77 | AP10: 64.88888889 | AQ10: 2.519047619 | AR10: W | AS10: 136 | AT10: 136
A11: ='Betistuta MS'!C57 -> Sassari | B11: ='Betistuta MS'!E57 -> Virtus Bolog | C11: ='Betistuta MS'!D57 -> 108-73 | D11: Sassari | E11: Virtus Bolog | F11: 108 | G11: 73 | H11: DEP | I11: L | J11: 73 | K11: 108 | L11: 10 | M11: 8 | N11: 0 | O11: 2 | P11: 766 | Q11: 692 | R11: 24 | S11: 7 | T11: 6 | U11: 0 | V11: 1 | W11: 541 | X11: 460 | Y11: 18 | Z11: 3 | AA11: 2 | AB11: 0 | AC11: 1 | AD11: 225 | AE11: 232 | AF11: 6 | AG11: 0 | AH11: 0 | AI11: 0 | AJ11: 7 | AK11: 0 | AL11: 0 | AM11: 0 | AN11: 3 | AO11: 76.6 | AP11: 69.2 | AQ11: 1.296825397 | AT11: 181

Sheet DEP
B1: =IF(D2=D3,D2,IF(D2=E3,D2,E2)) -> Olimpia Mila | D1: EV | E1: DEP | F1: EV | G1: DEP | H1: EV - DEP | I1: SONUÇ | J1: SKOR | K1: SKOR | L1: SIRA | M1: W | N1: D | O1: L | P1: EV | Q1: DEP | R1: PUAN | S1: OYUN | T1: W | U1: D | V1: L | W1: BERABERE | X1: KAYBETMİŞ | Y1: BERABERE | Z1: OYUN | AA1: W | AB1: D | AC1: L | AD1: SKOR | AE1: SKOR | AF1: BERABERE | AG1: 0 | AH1: 1 | AI1: 2 | AJ1: 3+ | AK1: 0 | AL1: 1 | AM1: 2 | AN1: 3+ | AO1: SKOR | AP1: SKOR | AQ1: DEĞERLENDİRME | AR1: SERİ | AS1: TOPLAM | AT1: TOPLAM
A2: ='Betistuta MS'!C67 -> Virtus Bolog | B2: ='Betistuta MS'!E67 -> Olimpia Mila | C2: ='Betistuta MS'!D67 -> 62-66 | D2: =A2 -> Virtus Bolog | E2: Olimpia Mila | F2: =VALUE(LEFT(C2,FIND("-",C2,1)-1)) -> 62 | G2: =VALUE(LEFT(RIGHT(C2,LEN(C2)-FIND("-",C2,1)),100)) -> 66 | H2: =IF(D2=$D$2,"EV","DEP") -> EV | I2: =IF(H2="EV",IF(F2>G2,"W",IF(F2=G2,"D","L")),IF(F2<G2,"W",IF(F2=G2,"D","L"))) -> L | J2: =IF(H2="EV",F2,G2) -> 62 | K2: =IF(H2="EV",G2,F2) -> 66 | L2: 1 | M2: =IF(I2="W",1,0) -> 0 | N2: =IF(I2="D",1,0) -> 0 | O2: =IF(I2="L",1,0) -> 1 | P2: =J2 -> 62 | Q2: =K2 -> 66 | R2: =M2*3+N2 -> 0 | S2: =IF(H2="EV",1,0) -> 1 | T2: =IF(H2="EV",IF(I2="W",1,0),0) -> 0 | U2: =IF(H2="EV",IF(I2="D",1,0),0) -> 0 | V2: =IF(H2="EV",IF(I2="L",1,0),0) -> 1 | W2: =IF(H2="EV",J2,0) -> 62 | X2: =IF(H2="EV",K2,0) -> 66 | Y2: =T2*3+U2 -> 0 | Z2: =IF(H2<>"EV",1,0) -> 0 | AA2: =IF(H2<>"EV",IF(I2="W",1,0),0) -> 0 | AB2: =IF(H2<>"EV",IF(I2="D",1,0),0) -> 0 | AC2: =IF(H2<>"EV",IF(I2="L",1,0),0) -> 0 | AD2: =IF(H2<>"EV",J2,0) -> 0 | AE2: =IF(H2<>"EV",K2,0) -> 0 | AF2: =AA2*3+AB2 -> 0 | AG2: =IF(H2="EV",IF(J2=0,1,0),0) -> 0 | AH2: =IF(H2="EV",IF(J2=1,1,0),0) -> 0 | AI2: =IF(H2="EV",IF(J2=2,1,0),0) -> 0 | AJ2: =IF(H2="EV",IF(J2>=3,1,0),0) -> 1 | AK2: =IF(H2<>"EV",IF(J2=0,1,0),0) -> 0 | AL2: =IF(H2<>"EV",IF(J2=1,1,0),0) -> 0 | AM2: =IF(H2<>"EV",IF(J2=2,1,0),0) -> 0 | AN2: =IF(H2<>"EV",IF(J2>=3,1,0),0) -> 0 | AO2: =P2/L2 -> 62 | AP2: =Q2/L2 -> 66 | AQ2: =(Y2/IF(S2<1,1,S2)+AF2/IF(Z2<1,1,Z2)*1.5+W2/IF(S2<1,1,S2)+AD2/IF(Z2<1,1,Z2)*1.5-X2/IF(S2<1,1,S2)*1.5-AE2/IF(Z2<1,1,Z2))/15 -> -2.466666667 | AR2: =+IF(H2="DEP",IF(I2="W","W",IF(I2="D","D","L")),"") ->  | AS2: =IF(H2<>"EV",J2+K2,"") ->  | AT2: =F2+G2 -> 128
A3: ='Betistuta MS'!C68 -> Sassari | B3: ='Betistuta MS'!E68 -> Olimpia Mila | C3: ='Betistuta MS'!D68 -> 69-87 | D3: Sassari | E3: Olimpia Mila | F3: =VALUE(LEFT(C3,FIND("-",C3,1)-1)) -> 69 | G3: =VALUE(LEFT(RIGHT(C3,LEN(C3)-FIND("-",C3,1)),100)) -> 87 | H3: DEP | I3: W | J3: 87 | K3: 69 | L3: =L2+1 -> 2 | M3: =IF(I3="W",M2+1,M2+0) -> 1 | N3: =IF(I3="D",N2+1,N2+0) -> 0 | O3: =IF(I3="L",O2+1,O2+0) -> 1 | P3: =J3+P2 -> 149 | Q3: 135 | R3: 3 | S3: =IF(H3="EV",S2+1,S2+0) -> 1 | T3: =IF(H3="EV",IF(I3="W",T2+1,T2+0),T2+0) -> 0 | U3: =IF(H3="EV",IF(I3="D",U2+1,U2+0),U2+0) -> 0 | V3: =IF(H3="EV",IF(I3="L",V2+1,V2+0),V2+0) -> 1 | W3: =IF(H3="EV",W2+J3,W2+0) -> 62 | X3: =IF(H3="EV",X2+K3,X2+0) -> 66 | Y3: 0 | Z3: =IF(H3<>"EV",Z2+1,Z2+0) -> 1 | AA3: =IF(H3<>"EV",IF(I3="W",AA2+1,AA2+0),AA2+0) -> 1 | AB3: =IF(H3<>"EV",IF(I3="D",AB2+1,AB2+0),AB2+0) -> 0 | AC3: =IF(H3<>"EV",IF(I3="L",AC2+1,AC2+0),AC2+0) -> 0 | AD3: =IF(H3<>"EV",AD2+J3,AD2+0) -> 87 | AE3: =IF(H3<>"EV",AE2+K3,AE2+0) -> 69 | AF3: 3 | AG3: =IF(H3="EV",IF(J3=0,AG2+1,AG2),AG2) -> 0 | AH3: =IF(H3="EV",IF(J3=1,AH2+1,AH2),AH2) -> 0 | AI3: =IF(H3="EV",IF(J3=2,AI2+1,AI2),AI2) -> 0 | AJ3: =IF(H3="EV",IF(J3>=3,AJ2+1,AJ2),AJ2) -> 1 | AK3: =IF(H3<>"EV",IF(J3=0,AK2+1,AK2),AK2) -> 0 | AL3: =IF(H3<>"EV",IF(J3=1,AL2+1,AL2),AL2) -> 0 | AM3: =IF(H3<>"EV",IF(J3=2,AM2+1,AM2),AM2) -> 0 | AN3: =IF(H3<>"EV",IF(J3>=3,AN2+1,AN2),AN2) -> 1 | AO3: 74.5 | AP3: =Q3/L3 -> 67.5 | AQ3: =(Y3/IF(S3<1,1,S3)+AF3/IF(Z3<1,1,Z3)*1.5+W3/IF(S3<1,1,S3)+AD3/IF(Z3<1,1,Z3)*1.5-X3/IF(S3<1,1,S3)*1.5-AE3/IF(Z3<1,1,Z3))/15 -> 1.933333333 | AR3: =+IF(H3="DEP",IF(I3="W","W",IF(I3="D","D","L")),"") -> W | AS3: 156 | AT3: =F3+G3 -> 156
A4: ='Betistuta MS'!C69 -> Olimpia Mila | B4: ='Betistuta MS'!E69 -> Sassari | C4: ='Betistuta MS'!D69 -> 91-82 | D4: Olimpia Mila | E4: Sassari | F4: 91 | G4: 82 | H4: DEP | I4: L | J4: 82 | K4: 91 | L4: 3 | M4: 1 | N4: 0 | O4: 2 | P4: 231 | Q4: 226 | R4: 3 | S4: 1 | T4: 0 | U4: 0 | V4: 1 | W4: 62 | X4: 66 | Y4: 0 | Z4: 2 | AA4: 1 | AB4: 0 | AC4: 1 | AD4: 169 | AE4: 160 | AF4: 3 | AG4: 0 | AH4: 0 | AI4: 0 | AJ4: 1 | AK4: 0 | AL4: 0 | AM4: 0 | AN4: 2 | AO4: 77 | AP4: 75.33333333 | AQ4: 0.8 | AR4: L | AS4: 173 | AT4: 173
A5: ='Betistuta MS'!C70 -> Olimpia Mila | B5: ='Betistuta MS'!E70 -> Sassari | C5: ='Betistuta MS'!D70 -> 88-71 | D5: Olimpia Mila | E5: Sassari | F5: 88 | G5: 71 | H5: DEP | I5: L | J5: 71 | K5: 88 | L5: 4 | M5: 1 | N5: 0 | O5: 3 | P5: 302 | Q5: 314 | R5: 3 | S5: 1 | T5: 0 | U5: 0 | V5: 1 | W5: 62 | X5: 66 | Y5: 0 | Z5: 3 | AA5: 1 | AB5: 0 | AC5: 2 | AD5: 240 | AE5: 248 | AF5: 3 | AG5: 0 | AH5: 0 | AI5: 0 | AJ5: 1 | AK5: 0 | AL5: 0 | AM5: 0 | AN5: 3 | AO5: 75.5 | AP5: 78.5 | AQ5: 0.1222222222 | AR5: L | AS5: 159 | AT5: 159
A6: ='Betistuta MS'!C71 -> Reggiana | B6: ='Betistuta MS'!E71 -> Olimpia Mila | C6: ='Betistuta MS'!D71 -> 59-89 | D6: Reggiana | E6: Olimpia Mila | F6: 59 | G6: 89 | H6: DEP | I6: W | J6: 89 | K6: 59 | L6: 5 | M6: 2 | N6: 0 | O6: 3 | P6: 391 | Q6: 373 | R6: 6 | S6: 1 | T6: 0 | U6: 0 | V6: 1 | W6: 62 | X6: 66 | Y6: 0 | Z6: 4 | AA6: 2 | AB6: 0 | AC6: 2 | AD6: 329 | AE6: 307 | AF6: 6 | AG6: 0 | AH6: 0 | AI6: 0 | AJ6: 1 | AK6: 0 | AL6: 0 | AM6: 0 | AN6: 4 | AO6: 78.2 | AP6: 74.6 | AQ6: 0.7916666667 | AR6: W | AS6: 148 | AT6: 148
A7: ='Betistuta MS'!C72 -> Olimpia Mila | B7: ='Betistuta MS'!E72 -> Reggiana | C7: ='Betistuta MS'!D72 -> 91-65 | D7: Olimpia Mila | E7: Reggiana | F7: 91 | G7: 65 | H7: DEP | I7: L | J7: 65 | K7: 91 | L7: 6 | M7: 2 | N7: 0 | O7: 4 | P7: 456 | Q7: 464 | R7: 6 | S7: 1 | T7: 0 | U7: 0 | V7: 1 | W7: 62 | X7: 66 | Y7: 0 | Z7: 5 | AA7: 2 | AB7: 0 | AC7: 3 | AD7: 394 | AE7: 398 | AF7: 6 | AG7: 0 | AH7: 0 | AI7: 0 | AJ7: 1 | AK7: 0 | AL7: 0 | AM7: 0 | AN7: 5 | AO7: 76 | AP7: 77.33333333 | AQ7: 0.2266666667 | AR7: L | AS7: 156 | AT7: 156
A8: ='Betistuta MS'!C73 -> Olimpia Mila | B8: ='Betistuta MS'!E73 -> Reggiana | C8: ='Betistuta MS'!D73 -> 91-82 | D8: Olimpia Mila | E8: Reggiana | F8: 91 | G8: 82 | H8: DEP | I8: L | J8: 82 | K8: 91 | L8: 7 | M8: 2 | N8: 0 | O8: 5 | P8: 538 | Q8: 555 | R8: 6 | S8: 1 | T8: 0 | U8: 0 | V8: 1 | W8: 62 | X8: 66 | Y8: 0 | Z8: 6 | AA8: 2 | AB8: 0 | AC8: 4 | AD8: 476 | AE8: 489 | AF8: 6 | AG8: 0 | AH8: 0 | AI8: 0 | AJ8: 1 | AK8: 0 | AL8: 0 | AM8: 0 | AN8: 6 | AO8: 76.85714286 | AP8: 79.28571429 | AQ8: 0.1333333333 | AR8: L | AS8: 173 | AT8: 173
A9: ='Betistuta MS'!C74 -> Venezia | B9: ='Betistuta MS'!E74 -> Olimpia Mila | C9: ='Betistuta MS'!D74 -> 69-74 | D9: Venezia | E9: Olimpia Mila | F9: 69 | G9: 74 | H9: DEP | I9: W | J9: 74 | K9: 69 | L9: 8 | M9: 3 | N9: 0 | O9: 5 | P9: 612 | Q9: 624 | R9: 9 | S9: 1 | T9: 0 | U9: 0 | V9: 1 | W9: 62 | X9: 66 | Y9: 0 | Z9: 7 | AA9: 3 | AB9: 0 | AC9: 4 | AD9: 550 | AE9: 558 | AF9: 9 | AG9: 0 | AH9: 0 | AI9: 0 | AJ9: 1 | AK9: 0 | AL9: 0 | AM9: 0 | AN9: 7 | AO9: 76.5 | AP9: 78 | AQ9: 0.2047619048 | AR9: W | AS9: 143 | AT9: 143
A10: ='Betistuta MS'!C75 -> Treviso | B10: ='Betistuta MS'!E75 -> Olimpia Mila | C10: ='Betistuta MS'!D75 -> 80-74 | D10: Treviso | E10: Olimpia Mila | F10: 80 | G10: 74 | H10: DEP | I10: L | J10: 74 | K10: 80 | L10: 9 | M10: 3 | N10: 0 | O10: 6 | P10: 686 | Q10: 704 | R10: 9 | S10: 1 | T10: 0 | U10: 0 | V10: 1 | W10: 62 | X10: 66 | Y10: 0 | Z10: 8 | AA10: 3 | AB10: 0 | AC10: 5 | AD10: 624 | AE10: 638 | AF10: 9 | AG10: 0 | AH10: 0 | AI10: 0 | AJ10: 1 | AK10: 0 | AL10: 0 | AM10: 0 | AN10: 8 | AO10: 76.22222222 | AP10: 78.22222222 | AQ10: 0.1291666667 | AR10: L | AS10: 154 | AT10: 154
A11: ='Betistuta MS'!C76 -> Olimpia Mila | B11: ='Betistuta MS'!E76 -> Brindisi | C11: ='Betistuta MS'!D76 -> 92-87 | D11: Olimpia Mila | E11: Brindisi | F11: 92 | G11: 87 | H11: DEP | I11: L | J11: 87 | K11: 92 | L11: 10 | M11: 3 | N11: 0 | O11: 7 | P11: 773 | Q11: 796 | R11: 9 | S11: 1 | T11: 0 | U11: 0 | V11: 1 | W11: 62 | X11: 66 | Y11: 0 | Z11: 9 | AA11: 3 | AB11: 0 | AC11: 6 | AD11: 711 | AE11: 730 | AF11: 9 | AG11: 0 | AH11: 0 | AI11: 0 | AJ11: 1 | AK11: 0 | AL11: 0 | AM11: 0 | AN11: 9 | AO11: 77.3 | AP11: 79.6 | AQ11: 0.1259259259 | AR11: L | AS11: 179 | AT11: 179

Sheet 0
A1: TAKIM | B1: OYNANAN | C1: W | D1: D | E1: L | F1: ATILAN | G1: YENEN | X1: 1 | Y1: =C9/B9/(C9/B9+D9/B9+C15/B15+D15/B15) -> 0.5625 | Z1: =C2/B2/(C2/B2+D2/B2+D3/B3+C3/B3) -> 0.5
A2: EV SAHİBİ | B2: ='1'!L11 -> 10 | C2: ='1'!M11 -> 6 | D2: ='1'!N11 -> 1 | E2: ='1'!O11 -> 3 | F2: ='1'!P11 -> 379 | G2: ='1'!Q11 -> 332 | H2: ='1'!R11 -> 19 | I2: =F2/B2 -> 37.9 | J2: =G2/B2 -> 33.2 | X2: X | Y2: =(D9/B9+D15/B15)/(C9/B9+D9/B9+C15/B15+D15/B15) -> 0 | Z2: =(D2/B2+D3/B3)/(C2/B2+D2/B2+D3/B3+C3/B3) -> 0.08333333333
A3: DEPLASMAN | B3: ='2'!L11 -> 10 | C3: ='2'!M11 -> 5 | D3: ='2'!N11 -> 0 | E3: ='2'!O11 -> 5 | F3: ='2'!P11 -> 394 | G3: ='2'!Q11 -> 402 | H3: ='2'!R11 -> 15 | I3: =F3/B3 -> 39.4 | J3: =G3/B3 -> 40.2 | X3: 2 | Y3: =C15/B15/(C9/B9+D9/B9+C15/B15+D15/B15) -> 0.4375 | Z3: =C3/B3/(C2/B2+D2/B2+D3/B3+C3/B3) -> 0.4166666667
A4: EV SAHİBİ | B4: ='1'!W6*1.5+'1'!AD6*2 -> 318.5 | C4: ='1'!X6*1.5+'1'!AE6 -> 219.5 | D4: =B4/5 -> 63.7 | E4: =C4/5 -> 43.9 | F4: =((D4+E5)/2+(D5+E4)/2)/2 -> 56.725 | G4: =INT(AVERAGE(I9,I2)+AVERAGE(J5,J3)-F5)+3 -> 43 | H4: ='1'!AF11 -> 4 | I4: =F14/B14 -> 39 | J4: =G14/B14 -> 38.33333333
A5: DEPLASMAN | B5: ='2'!W6*1.5+'2'!AD6*2 -> 402.5 | C5: ='2'!X6*1.5+'2'!AE6 -> 194 | D5: =B5/5 -> 80.5 | E5: =C5/5 -> 38.8 | F5: =AVERAGE('1'!J2:K11,'2'!J2:K11) -> 37.675 | G5: =INT(AVERAGE(I5,I3)+AVERAGE(J9,J2)-F5)+3 -> 37 | H5: ='2'!AF11 -> 15 | I5: =F15/B15 -> 40.77777778 | J5: =G15/B15 -> 41.55555556
A7: ='Betistuta MS'!A25 -> Virtus Bologna
A8: TAKIM | B8: OYNANAN | C8: W | D8: D | E8: L | F8: ATILAN | G8: YENEN
A9: EV SAHİBİ | B9: ='1'!S11 -> 7 | C9: ='1'!T11 -> 5 | D9: ='1'!U11 -> 0 | E9: ='1'!V11 -> 2 | F9: ='1'!W11 -> 262 | G9: ='1'!X11 -> 217 | H9: ='1'!Y11 -> 15 | I9: =F9/B9 -> 37.42857143 | J9: =G9/B9 -> 31
A10: DEPLASMAN | B10: ='2'!S11 -> 1 | C10: ='2'!T11 -> 0 | D10: ='2'!U11 -> 0 | E10: ='2'!V11 -> 1 | F10: ='2'!W11 -> 27 | G10: ='2'!X11 -> 28 | H10: ='2'!Y11 -> 0 | I10: =F10/B10 -> 27 | J10: =G10/B10 -> 28
A12: ='Betistuta MS'!A27 -> Olimpia Milano
A13: TAKIM | B13: OYNANAN | C13: W | D13: D | E13: L | F13: ATILAN | G13: YENEN | H13: MS1 | I13: MSX | J13: MS2
A14: EV SAHİBİ | B14: ='1'!Z11 -> 3 | C14: ='1'!AA11 -> 1 | D14: ='1'!AB11 -> 1 | E14: ='1'!AC11 -> 1 | F14: ='1'!AD11 -> 117 | G14: ='1'!AE11 -> 115 | H14: =AVERAGE(Y1,Z1) -> 0.53125 | I14: =1-(H14+J14) -> 0.04166666667 | J14: =AVERAGE(Y3,Z3) -> 0.4270833333
A15: DEPLASMAN | B15: ='2'!Z11 -> 9 | C15: ='2'!AA11 -> 5 | D15: ='2'!AB11 -> 0 | E15: ='2'!AC11 -> 4 | F15: ='2'!AD11 -> 367 | G15: ='2'!AE11 -> 374 | H15: =IF('Betistuta MS'!O1<'0'!G5+'0'!G4,"ÜST","ALT") -> ÜST

Sheet 1 (hidden)
B1: =IF(D2=D3,D2,IF(D2=E3,D2,E2)) -> Virtus Bolog | D1: EV | E1: DEP | F1: EV | G1: DEP | H1: EV - DEP | I1: SONUÇ | J1: SKOR | K1: SKOR | L1: SIRA | M1: W | N1: D | O1: L | P1: EV | Q1: DEP | R1: PUAN | S1: OYUN | T1: W | U1: D | V1: L | W1: BERABERE | X1: KAYBETMİŞ | Y1: BERABERE | Z1: OYUN | AA1: W | AB1: D | AC1: L | AD1: SKOR | AE1: SKOR | AF1: BERABERE | AG1: 0 | AH1: 1 | AI1: 2 | AJ1: 3+ | AK1: 0 | AL1: 1 | AM1: 2 | AN1: 3+ | AO1: SKOR | AP1: SKOR | AQ1: DEĞERLENDİRME | AR1: SERİ | AS1: TOPLAM | AT1: TOPLAM
A2: ='Betistuta MS'!C48 -> Virtus Bolog | B2: ='Betistuta MS'!E48 -> Olimpia Mila | C2: ='Betistuta MS'!F48 -> 27-28 | D2: =A2 -> Virtus Bolog | E2: Olimpia Mila | F2: =VALUE(LEFT(C2,FIND("-",C2,1)-1)) -> 27 | G2: =VALUE(LEFT(RIGHT(C2,LEN(C2)-FIND("-",C2,1)),100)) -> 28 | H2: =IF(D2=$B$1,"EV","DEP") -> EV | I2: =IF(H2="EV",IF(F2>G2,"W",IF(F2=G2,"D","L")),IF(F2<G2,"W",IF(F2=G2,"D","L"))) -> L | J2: =IF(H2="EV",F2,G2) -> 27 | K2: =IF(H2="EV",G2,F2) -> 28 | L2: 1 | M2: =IF(I2="W",1,0) -> 0 | N2: =IF(I2="D",1,0) -> 0 | O2: =IF(I2="L",1,0) -> 1 | P2: =J2 -> 27 | Q2: =K2 -> 28 | R2: =M2*3+N2 -> 0 | S2: =IF(H2="EV",1,0) -> 1 | T2: =IF(H2="EV",IF(I2="W",1,0),0) -> 0 | U2: =IF(H2="EV",IF(I2="D",1,0),0) -> 0 | V2: =IF(H2="EV",IF(I2="L",1,0),0) -> 1 | W2: =IF(H2="EV",J2,0) -> 27 | X2: =IF(H2="EV",K2,0) -> 28 | Y2: =T2*3+U2 -> 0 | Z2: =IF(H2<>"EV",1,0) -> 0 | AA2: =IF(H2<>"EV",IF(I2="W",1,0),0) -> 0 | AB2: =IF(H2<>"EV",IF(I2="D",1,0),0) -> 0 | AC2: =IF(H2<>"EV",IF(I2="L",1,0),0) -> 0 | AD2: =IF(H2<>"EV",J2,0) -> 0 | AE2: =IF(H2<>"EV",K2,0) -> 0 | AF2: =AA2*3+AB2 -> 0 | AG2: =IF(H2="EV",IF(J2=0,1,0),0) -> 0 | AH2: =IF(H2="EV",IF(J2=1,1,0),0) -> 0 | AI2: =IF(H2="EV",IF(J2=2,1,0),0) -> 0 | AJ2: =IF(H2="EV",IF(J2>=3,1,0),0) -> 1 | AK2: =IF(H2<>"EV",IF(J2=0,1,0),0) -> 0 | AL2: =IF(H2<>"EV",IF(J2=1,1,0),0) -> 0 | AM2: =IF(H2<>"EV",IF(J2=2,1,0),0) -> 0 | AN2: =IF(H2<>"EV",IF(J2>=3,1,0),0) -> 0 | AO2: =P2/L2 -> 27 | AP2: =Q2/L2 -> 28 | AQ2: =(Y2/IF(S2<1,1,S2)+AF2/IF(Z2<1,1,Z2)*1.5+W2/IF(S2<1,1,S2)+AD2/IF(Z2<1,1,Z2)*1.5-X2/IF(S2<1,1,S2)*1.5-AE2/IF(Z2<1,1,Z2))/15 -> -1 | AR2: =IF(H2="EV",IF(I2="W","W",IF(I2="D","D","L")),"") -> L | AS2: =IF(H2="EV",J2+K2,"") -> 55 | AT2: =F2+G2 -> 55
A3: ='Betistuta MS'!C49 -> Tortona | B3: ='Betistuta MS'!E49 -> Virtus Bolog | C3: ='Betistuta MS'!F49 -> 33-47 | D3: Tortona | E3: Virtus Bolog | F3: =VALUE(LEFT(C3,FIND("-",C3,1)-1)) -> 33 | G3: =VALUE(LEFT(RIGHT(C3,LEN(C3)-FIND("-",C3,1)),100)) -> 47 | H3: DEP | I3: W | J3: 47 | K3: 33 | L3: =L2+1 -> 2 | M3: =IF(I3="W",M2+1,M2+0) -> 1 | N3: =IF(I3="D",N2+1,N2+0) -> 0 | O3: =IF(I3="L",O2+1,O2+0) -> 1 | P3: =J3+P2 -> 74 | Q3: =K3+Q2 -> 61 | R3: 3 | S3: =IF(H3="EV",S2+1,S2+0) -> 1 | T3: =IF(H3="EV",IF(I3="W",T2+1,T2+0),T2+0) -> 0 | U3: =IF(H3="EV",IF(I3="D",U2+1,U2+0),U2+0) -> 0 | V3: =IF(H3="EV",IF(I3="L",V2+1,V2+0),V2+0) -> 1 | W3: =IF(H3="EV",W2+J3,W2+0) -> 27 | X3: =IF(H3="EV",X2+K3,X2+0) -> 28 | Y3: 0 | Z3: =IF(H3<>"EV",Z2+1,Z2+0) -> 1 | AA3: =IF(H3<>"EV",IF(I3="W",AA2+1,AA2+0),AA2+0) -> 1 | AB3: =IF(H3<>"EV",IF(I3="D",AB2+1,AB2+0),AB2+0) -> 0 | AC3: =IF(H3<>"EV",IF(I3="L",AC2+1,AC2+0),AC2+0) -> 0 | AD3: =IF(H3<>"EV",AD2+J3,AD2+0) -> 47 | AE3: =IF(H3<>"EV",AE2+K3,AE2+0) -> 33 | AF3: 3 | AG3: =IF(H3="EV",IF(J3=0,AG2+1,AG2),AG2) -> 0 | AH3: =IF(H3="EV",IF(J3=1,AH2+1,AH2),AH2) -> 0 | AI3: =IF(H3="EV",IF(J3=2,AI2+1,AI2),AI2) -> 0 | AJ3: =IF(H3="EV",IF(J3>=3,AJ2+1,AJ2),AJ2) -> 1 | AK3: =IF(H3<>"EV",IF(J3=0,AK2+1,AK2),AK2) -> 0 | AL3: =IF(H3<>"EV",IF(J3=1,AL2+1,AL2),AL2) -> 0 | AM3: =IF(H3<>"EV",IF(J3=2,AM2+1,AM2),AM2) -> 0 | AN3: =IF(H3<>"EV",IF(J3>=3,AN2+1,AN2),AN2) -> 1 | AO3: 37 | AP3: 30.5 | AQ3: =(Y3/IF(S3<1,1,S3)+AF3/IF(Z3<1,1,Z3)*1.5+W3/IF(S3<1,1,S3)+AD3/IF(Z3<1,1,Z3)*1.5-X3/IF(S3<1,1,S3)*1.5-AE3/IF(Z3<1,1,Z3))/15 -> 1.8 | AT3: =F3+G3 -> 80
A4: ='Betistuta MS'!C50 -> Virtus Bolog | B4: ='Betistuta MS'!E50 -> Tortona | C4: ='Betistuta MS'!F50 -> 41-35 | D4: Virtus Bolog | E4: Tortona | F4: 41 | G4: 35 | H4: EV | I4: W | J4: 41 | K4: 35 | L4: =L3+1 -> 3 | M4: 2 | N4: 0 | O4: 1 | P4: =J4+P3 -> 115 | Q4: 96 | R4: 6 | S4: 2 | T4: 1 | U4: 0 | V4: 1 | W4: 68 | X4: 63 | Y4: 3 | Z4: 1 | AA4: 1 | AB4: 0 | AC4: 0 | AD4: 47 | AE4: 33 | AF4: 3 | AG4: 0 | AH4: 0 | AI4: 0 | AJ4: 2 | AK4: 0 | AL4: 0 | AM4: 0 | AN4: 1 | AO4: 38.33333333 | AP4: 32 | AQ4: =(Y4/IF(S4<1,1,S4)+AF4/IF(Z4<1,1,Z4)*1.5+W4/IF(S4<1,1,S4)+AD4/IF(Z4<1,1,Z4)*1.5-X4/IF(S4<1,1,S4)*1.5-AE4/IF(Z4<1,1,Z4))/15 -> 2.016666667 | AR4: W | AS4: 76 | AT4: 76
A5: ='Betistuta MS'!C51 -> Virtus Bolog | B5: ='Betistuta MS'!E51 -> Tortona | C5: ='Betistuta MS'!F51 -> 35-38 | D5: Virtus Bolog | E5: Tortona | F5: 35 | G5: 38 | H5: EV | I5: L | J5: 35 | K5: 38 | L5: 4 | M5: 2 | N5: 0 | O5: 2 | P5: 150 | Q5: 134 | R5: 6 | S5: 3 | T5: 1 | U5: 0 | V5: 2 | W5: 103 | X5: 101 | Y5: 3 | Z5: 1 | AA5: 1 | AB5: 0 | AC5: 0 | AD5: 47 | AE5: 33 | AF5: 3 | AG5: 0 | AH5: 0 | AI5: 0 | AJ5: 3 | AK5: 0 | AL5: 0 | AM5: 0 | AN5: 1 | AO5: 37.5 | AP5: 33.5 | AQ5: 1.788888889 | AR5: L | AS5: 73 | AT5: 73
A6: ='Betistuta MS'!C52 -> Pesaro | B6: ='Betistuta MS'!E52 -> Virtus Bolog | C6: ='Betistuta MS'!F52 -> 35-35 | D6: Pesaro | E6: Virtus Bolog | F6: 35 | G6: 35 | H6: DEP | I6: D | J6: 35 | K6: 35 | L6: 5 | M6: 2 | N6: 1 | O6: 2 | P6: 185 | Q6: 169 | R6: 7 | S6: 3 | T6: 1 | U6: 0 | V6: 2 | W6: 103 | X6: 101 | Y6: 3 | Z6: 2 | AA6: 1 | AB6: 1 | AC6: 0 | AD6: 82 | AE6: 68 | AF6: 4 | AG6: 0 | AH6: 0 | AI6: 0 | AJ6: 3 | AK6: 0 | AL6: 0 | AM6: 0 | AN6: 2 | AO6: 37 | AP6: 33.8 | AQ6: 1.022222222 | AT6: 70
A7: ='Betistuta MS'!C53 -> Virtus Bolog | B7: ='Betistuta MS'!E53 -> Pesaro | C7: ='Betistuta MS'!F53 -> 31-25 | D7: Virtus Bolog | E7: Pesaro | F7: 31 | G7: 25 | H7: EV | I7: W | J7: 31 | K7: 25 | L7: 6 | M7: 3 | N7: 1 | O7: 2 | P7: 216 | Q7: 194 | R7: 10 | S7: 4 | T7: 2 | U7: 0 | V7: 2 | W7: 134 | X7: 126 | Y7: 6 | Z7: 2 | AA7: 1 | AB7: 1 | AC7: 0 | AD7: 82 | AE7: 68 | AF7: 4 | AG7: 0 | AH7: 0 | AI7: 0 | AJ7: 4 | AK7: 0 | AL7: 0 | AM7: 0 | AN7: 2 | AO7: 36 | AP7: 32.33333333 | AQ7: 1.216666667 | AR7: W | AS7: 56 | AT7: 56
A8: ='Betistuta MS'!C54 -> Virtus Bolog | B8: ='Betistuta MS'!E54 -> Pesaro | C8: ='Betistuta MS'!F54 -> 45-36 | D8: Virtus Bolog | E8: Pesaro | F8: 45 | G8: 36 | H8: EV | I8: W | J8: 45 | K8: 36 | L8: 7 | M8: 4 | N8: 1 | O8: 2 | P8: 261 | Q8: 230 | R8: 13 | S8: 5 | T8: 3 | U8: 0 | V8: 2 | W8: 179 | X8: 162 | Y8: 9 | Z8: 2 | AA8: 1 | AB8: 1 | AC8: 0 | AD8: 82 | AE8: 68 | AF8: 4 | AG8: 0 | AH8: 0 | AI8: 0 | AJ8: 5 | AK8: 0 | AL8: 0 | AM8: 0 | AN8: 2 | AO8: 37.28571429 | AP8: 32.85714286 | AQ8: 1.3 | AR8: W | AS8: 81 | AT8: 81
A9: ='Betistuta MS'!C55 -> Virtus Bolog | B9: ='Betistuta MS'!E55 -> Bursaspor | C9: ='Betistuta MS'!F55 -> 41-31 | D9: Virtus Bolog | E9: Bursaspor | F9: 41 | G9: 31 | H9: EV | I9: W | J9: 41 | K9: 31 | L9: 8 | M9: 5 | N9: 1 | O9: 2 | P9: 302 | Q9: 261 | R9: 16 | S9: 6 | T9: 4 | U9: 0 | V9: 2 | W9: 220 | X9: 193 | Y9: 12 | Z9: 2 | AA9: 1 | AB9: 1 | AC9: 0 | AD9: 82 | AE9: 68 | AF9: 4 | AG9: 0 | AH9: 0 | AI9: 0 | AJ9: 6 | AK9: 0 | AL9: 0 | AM9: 0 | AN9: 2 | AO9: 37.75 | AP9: 32.625 | AQ9: 1.394444444 | AR9: W | AS9: 72 | AT9: 72
A10: ='Betistuta MS'!C56 -> Virtus Bolog | B10: ='Betistuta MS'!E56 -> Brescia | C10: ='Betistuta MS'!F56 -> 42-24 | D10: Virtus Bolog | E10: Brescia | F10: 42 | G10: 24 | H10: EV | I10: W | J10: 42 | K10: 24 | L10: 9 | M10: 6 | N10: 1 | O10: 2 | P10: 344 | Q10: 285 | R10: 19 | S10: 7 | T10: 5 | U10: 0 | V10: 2 | W10: 262 | X10: 217 | Y10: 15 | Z10: 2 | AA10: 1 | AB10: 1 | AC10: 0 | AD10: 82 | AE10: 68 | AF10: 4 | AG10: 0 | AH10: 0 | AI10: 0 | AJ10: 7 | AK10: 0 | AL10: 0 | AM10: 0 | AN10: 2 | AO10: 38.22222222 | AP10: 31.66666667 | AQ10: 1.571428571 | AR10: W | AS10: 66 | AT10: 66
A11: ='Betistuta MS'!C57 -> Sassari | B11: ='Betistuta MS'!E57 -> Virtus Bolog | C11: ='Betistuta MS'!F57 -> 47-35 | D11: Sassari | E11: Virtus Bolog | F11: 47 | G11: 35 | H11: DEP | I11: L | J11: 35 | K11: 47 | L11: 10 | M11: 6 | N11: 1 | O11: 3 | P11: 379 | Q11: 332 | R11: 19 | S11: 7 | T11: 5 | U11: 0 | V11: 2 | W11: 262 | X11: 217 | Y11: 15 | Z11: 3 | AA11: 1 | AB11: 1 | AC11: 1 | AD11: 117 | AE11: 115 | AF11: 4 | AG11: 0 | AH11: 0 | AI11: 0 | AJ11: 7 | AK11: 0 | AL11: 0 | AM11: 0 | AN11: 3 | AO11: 37.9 | AP11: 33.2 | AQ11: 1.015873016 | AT11: 82

Sheet 2 (hidden)
B1: =IF(D2=D3,D2,IF(D2=E3,D2,E2)) -> Olimpia Mila | D1: EV | E1: DEP | F1: EV | G1: DEP | H1: EV - DEP | I1: SONUÇ | J1: SKOR | K1: SKOR | L1: SIRA | M1: W | N1: D | O1: L | P1: EV | Q1: DEP | R1: PUAN | S1: OYUN | T1: W | U1: D | V1: L | W1: BERABERE | X1: KAYBETMİŞ | Y1: BERABERE | Z1: OYUN | AA1: W | AB1: D | AC1: L | AD1: SKOR | AE1: SKOR | AF1: BERABERE | AG1: 0 | AH1: 1 | AI1: 2 | AJ1: 3+ | AK1: 0 | AL1: 1 | AM1: 2 | AN1: 3+ | AO1: SKOR | AP1: SKOR | AQ1: DEĞERLENDİRME | AR1: SERİ | AS1: TOPLAM | AT1: TOPLAM
A2: ='Betistuta MS'!C67 -> Virtus Bolog | B2: ='Betistuta MS'!E67 -> Olimpia Mila | C2: ='Betistuta MS'!F67 -> 27-28 | D2: =A2 -> Virtus Bolog | E2: Olimpia Mila | F2: =VALUE(LEFT(C2,FIND("-",C2,1)-1)) -> 27 | G2: =VALUE(LEFT(RIGHT(C2,LEN(C2)-FIND("-",C2,1)),100)) -> 28 | H2: =IF(D2=$D$2,"EV","DEP") -> EV | I2: =IF(H2="EV",IF(F2>G2,"W",IF(F2=G2,"D","L")),IF(F2<G2,"W",IF(F2=G2,"D","L"))) -> L | J2: =IF(H2="EV",F2,G2) -> 27 | K2: =IF(H2="EV",G2,F2) -> 28 | L2: 1 | M2: =IF(I2="W",1,0) -> 0 | N2: =IF(I2="D",1,0) -> 0 | O2: =IF(I2="L",1,0) -> 1 | P2: =J2 -> 27 | Q2: =K2 -> 28 | R2: =M2*3+N2 -> 0 | S2: =IF(H2="EV",1,0) -> 1 | T2: =IF(H2="EV",IF(I2="W",1,0),0) -> 0 | U2: =IF(H2="EV",IF(I2="D",1,0),0) -> 0 | V2: =IF(H2="EV",IF(I2="L",1,0),0) -> 1 | W2: =IF(H2="EV",J2,0) -> 27 | X2: =IF(H2="EV",K2,0) -> 28 | Y2: =T2*3+U2 -> 0 | Z2: =IF(H2<>"EV",1,0) -> 0 | AA2: =IF(H2<>"EV",IF(I2="W",1,0),0) -> 0 | AB2: =IF(H2<>"EV",IF(I2="D",1,0),0) -> 0 | AC2: =IF(H2<>"EV",IF(I2="L",1,0),0) -> 0 | AD2: =IF(H2<>"EV",J2,0) -> 0 | AE2: =IF(H2<>"EV",K2,0) -> 0 | AF2: =AA2*3+AB2 -> 0 | AG2: =IF(H2="EV",IF(J2=0,1,0),0) -> 0 | AH2: =IF(H2="EV",IF(J2=1,1,0),0) -> 0 | AI2: =IF(H2="EV",IF(J2=2,1,0),0) -> 0 | AJ2: =IF(H2="EV",IF(J2>=3,1,0),0) -> 1 | AK2: =IF(H2<>"EV",IF(J2=0,1,0),0) -> 0 | AL2: =IF(H2<>"EV",IF(J2=1,1,0),0) -> 0 | AM2: =IF(H2<>"EV",IF(J2=2,1,0),0) -> 0 | AN2: =IF(H2<>"EV",IF(J2>=3,1,0),0) -> 0 | AO2: =P2/L2 -> 27 | AP2: =Q2/L2 -> 28 | AQ2: =(Y2/IF(S2<1,1,S2)+AF2/IF(Z2<1,1,Z2)*1.5+W2/IF(S2<1,1,S2)+AD2/IF(Z2<1,1,Z2)*1.5-X2/IF(S2<1,1,S2)*1.5-AE2/IF(Z2<1,1,Z2))/15 -> -1 | AR2: =+IF(H2="DEP",IF(I2="W","W",IF(I2="D","D","L")),"") ->  | AS2: =IF(H2<>"EV",J2+K2,"") ->  | AT2: =F2+G2 -> 55
A3: ='Betistuta MS'!C68 -> Sassari | B3: ='Betistuta MS'!E68 -> Olimpia Mila | C3: ='Betistuta MS'!F68 -> 34-47 | D3: Sassari | E3: Olimpia Mila | F3: =VALUE(LEFT(C3,FIND("-",C3,1)-1)) -> 34 | G3: =VALUE(LEFT(RIGHT(C3,LEN(C3)-FIND("-",C3,1)),100)) -> 47 | H3: DEP | I3: W | J3: 47 | K3: 34 | L3: =L2+1 -> 2 | M3: =IF(I3="W",M2+1,M2+0) -> 1 | N3: =IF(I3="D",N2+1,N2+0) -> 0 | O3: =IF(I3="L",O2+1,O2+0) -> 1 | P3: =J3+P2 -> 74 | Q3: 62 | R3: 3 | S3: =IF(H3="EV",S2+1,S2+0) -> 1 | T3: =IF(H3="EV",IF(I3="W",T2+1,T2+0),T2+0) -> 0 | U3: =IF(H3="EV",IF(I3="D",U2+1,U2+0),U2+0) -> 0 | V3: =IF(H3="EV",IF(I3="L",V2+1,V2+0),V2+0) -> 1 | W3: =IF(H3="EV",W2+J3,W2+0) -> 27 | X3: =IF(H3="EV",X2+K3,X2+0) -> 28 | Y3: 0 | Z3: =IF(H3<>"EV",Z2+1,Z2+0) -> 1 | AA3: =IF(H3<>"EV",IF(I3="W",AA2+1,AA2+0),AA2+0) -> 1 | AB3: =IF(H3<>"EV",IF(I3="D",AB2+1,AB2+0),AB2+0) -> 0 | AC3: =IF(H3<>"EV",IF(I3="L",AC2+1,AC2+0),AC2+0) -> 0 | AD3: =IF(H3<>"EV",AD2+J3,AD2+0) -> 47 | AE3: =IF(H3<>"EV",AE2+K3,AE2+0) -> 34 | AF3: 3 | AG3: =IF(H3="EV",IF(J3=0,AG2+1,AG2),AG2) -> 0 | AH3: =IF(H3="EV",IF(J3=1,AH2+1,AH2),AH2) -> 0 | AI3: =IF(H3="EV",IF(J3=2,AI2+1,AI2),AI2) -> 0 | AJ3: =IF(H3="EV",IF(J3>=3,AJ2+1,AJ2),AJ2) -> 1 | AK3: =IF(H3<>"EV",IF(J3=0,AK2+1,AK2),AK2) -> 0 | AL3: =IF(H3<>"EV",IF(J3=1,AL2+1,AL2),AL2) -> 0 | AM3: =IF(H3<>"EV",IF(J3=2,AM2+1,AM2),AM2) -> 0 | AN3: =IF(H3<>"EV",IF(J3>=3,AN2+1,AN2),AN2) -> 1 | AO3: 37 | AP3: =Q3/L3 -> 31 | AQ3: =(Y3/IF(S3<1,1,S3)+AF3/IF(Z3<1,1,Z3)*1.5+W3/IF(S3<1,1,S3)+AD3/IF(Z3<1,1,Z3)*1.5-X3/IF(S3<1,1,S3)*1.5-AE3/IF(Z3<1,1,Z3))/15 -> 1.733333333 | AR3: =+IF(H3="DEP",IF(I3="W","W",IF(I3="D","D","L")),"") -> W | AS3: 81 | AT3: =F3+G3 -> 81
A4: ='Betistuta MS'!C69 -> Olimpia Mila | B4: ='Betistuta MS'!E69 -> Sassari | C4: ='Betistuta MS'!F69 -> 41-49 | D4: Olimpia Mila | E4: Sassari | F4: 41 | G4: 49 | H4: DEP | I4: W | J4: 49 | K4: 41 | L4: 3 | M4: 2 | N4: 0 | O4: 1 | P4: 123 | Q4: 103 | R4: 6 | S4: 1 | T4: 0 | U4: 0 | V4: 1 | W4: 27 | X4: 28 | Y4: 0 | Z4: 2 | AA4: 2 | AB4: 0 | AC4: 0 | AD4: 96 | AE4: 75 | AF4: 6 | AG4: 0 | AH4: 0 | AI4: 0 | AJ4: 1 | AK4: 0 | AL4: 0 | AM4: 0 | AN4: 2 | AO4: 41 | AP4: 34.33333333 | AQ4: 1.6 | AR4: W | AS4: 90 | AT4: 90
A5: ='Betistuta MS'!C70 -> Olimpia Mila | B5: ='Betistuta MS'!E70 -> Sassari | C5: ='Betistuta MS'!F70 -> 50-42 | D5: Olimpia Mila | E5: Sassari | F5: 50 | G5: 42 | H5: DEP | I5: L | J5: 42 | K5: 50 | L5: 4 | M5: 2 | N5: 0 | O5: 2 | P5: 165 | Q5: 153 | R5: 6 | S5: 1 | T5: 0 | U5: 0 | V5: 1 | W5: 27 | X5: 28 | Y5: 0 | Z5: 3 | AA5: 2 | AB5: 0 | AC5: 1 | AD5: 138 | AE5: 125 | AF5: 6 | AG5: 0 | AH5: 0 | AI5: 0 | AJ5: 1 | AK5: 0 | AL5: 0 | AM5: 0 | AN5: 3 | AO5: 41.25 | AP5: 38.25 | AQ5: 1.022222222 | AR5: L | AS5: 92 | AT5: 92
A6: ='Betistuta MS'!C71 -> Reggiana | B6: ='Betistuta MS'!E71 -> Olimpia Mila | C6: ='Betistuta MS'!F71 -> 27-43 | D6: Reggiana | E6: Olimpia Mila | F6: 27 | G6: 43 | H6: DEP | I6: W | J6: 43 | K6: 27 | L6: 5 | M6: 3 | N6: 0 | O6: 2 | P6: 208 | Q6: 180 | R6: 9 | S6: 1 | T6: 0 | U6: 0 | V6: 1 | W6: 27 | X6: 28 | Y6: 0 | Z6: 4 | AA6: 3 | AB6: 0 | AC6: 1 | AD6: 181 | AE6: 152 | AF6: 9 | AG6: 0 | AH6: 0 | AI6: 0 | AJ6: 1 | AK6: 0 | AL6: 0 | AM6: 0 | AN6: 4 | AO6: 41.6 | AP6: 36 | AQ6: 1.216666667 | AR6: W | AS6: 70 | AT6: 70
A7: ='Betistuta MS'!C72 -> Olimpia Mila | B7: ='Betistuta MS'!E72 -> Reggiana | C7: ='Betistuta MS'!F72 -> 57-32 | D7: Olimpia Mila | E7: Reggiana | F7: 57 | G7: 32 | H7: DEP | I7: L | J7: 32 | K7: 57 | L7: 6 | M7: 3 | N7: 0 | O7: 3 | P7: 240 | Q7: 237 | R7: 9 | S7: 1 | T7: 0 | U7: 0 | V7: 1 | W7: 27 | X7: 28 | Y7: 0 | Z7: 5 | AA7: 3 | AB7: 0 | AC7: 2 | AD7: 213 | AE7: 209 | AF7: 9 | AG7: 0 | AH7: 0 | AI7: 0 | AJ7: 1 | AK7: 0 | AL7: 0 | AM7: 0 | AN7: 5 | AO7: 40 | AP7: 39.5 | AQ7: 0.6533333333 | AR7: L | AS7: 89 | AT7: 89
A8: ='Betistuta MS'!C73 -> Olimpia Mila | B8: ='Betistuta MS'!E73 -> Reggiana | C8: ='Betistuta MS'!F73 -> 51-40 | D8: Olimpia Mila | E8: Reggiana | F8: 51 | G8: 40 | H8: DEP | I8: L | J8: 40 | K8: 51 | L8: 7 | M8: 3 | N8: 0 | O8: 4 | P8: 280 | Q8: 288 | R8: 9 | S8: 1 | T8: 0 | U8: 0 | V8: 1 | W8: 27 | X8: 28 | Y8: 0 | Z8: 6 | AA8: 3 | AB8: 0 | AC8: 3 | AD8: 253 | AE8: 260 | AF8: 9 | AG8: 0 | AH8: 0 | AI8: 0 | AJ8: 1 | AK8: 0 | AL8: 0 | AM8: 0 | AN8: 6 | AO8: 40 | AP8: 41.14285714 | AQ8: 0.4777777778 | AR8: L | AS8: 91 | AT8: 91
A9: ='Betistuta MS'!C74 -> Venezia | B9: ='Betistuta MS'!E74 -> Olimpia Mila | C9: ='Betistuta MS'!F74 -> 41-32 | D9: Venezia | E9: Olimpia Mila | F9: 41 | G9: 32 | H9: DEP | I9: L | J9: 32 | K9: 41 | L9: 8 | M9: 3 | N9: 0 | O9: 5 | P9: 312 | Q9: 329 | R9: 9 | S9: 1 | T9: 0 | U9: 0 | V9: 1 | W9: 27 | X9: 28 | Y9: 0 | Z9: 7 | AA9: 3 | AB9: 0 | AC9: 4 | AD9: 285 | AE9: 301 | AF9: 9 | AG9: 0 | AH9: 0 | AI9: 0 | AJ9: 1 | AK9: 0 | AL9: 0 | AM9: 0 | AN9: 7 | AO9: 39 | AP9: 41.125 | AQ9: 0.3333333333 | AR9: L | AS9: 73 | AT9: 73
A10: ='Betistuta MS'!C75 -> Treviso | B10: ='Betistuta MS'!E75 -> Olimpia Mila | C10: ='Betistuta MS'!F75 -> 29-32 | D10: Treviso | E10: Olimpia Mila | F10: 29 | G10: 32 | H10: DEP | I10: W | J10: 32 | K10: 29 | L10: 9 | M10: 4 | N10: 0 | O10: 5 | P10: 344 | Q10: 358 | R10: 12 | S10: 1 | T10: 0 | U10: 0 | V10: 1 | W10: 27 | X10: 28 | Y10: 0 | Z10: 8 | AA10: 4 | AB10: 0 | AC10: 4 | AD10: 317 | AE10: 330 | AF10: 12 | AG10: 0 | AH10: 0 | AI10: 0 | AJ10: 1 | AK10: 0 | AL10: 0 | AM10: 0 | AN10: 8 | AO10: 38.22222222 | AP10: 39.77777778 | AQ10: 0.3625 | AR10: W | AS10: 61 | AT10: 61
A11: ='Betistuta MS'!C76 -> Olimpia Mila | B11: ='Betistuta MS'!E76 -> Brindisi | C11: ='Betistuta MS'!F76 -> 44-50 | D11: Olimpia Mila | E11: Brindisi | F11: 44 | G11: 50 | H11: DEP | I11: W | J11: 50 | K11: 44 | L11: 10 | M11: 5 | N11: 0 | O11: 5 | P11: 394 | Q11: 402 | R11: 15 | S11: 1 | T11: 0 | U11: 0 | V11: 1 | W11: 27 | X11: 28 | Y11: 0 | Z11: 9 | AA11: 5 | AB11: 0 | AC11: 4 | AD11: 367 | AE11: 374 | AF11: 15 | AG11: 0 | AH11: 0 | AI11: 0 | AJ11: 1 | AK11: 0 | AL11: 0 | AM11: 0 | AN11: 9 | AO11: 39.4 | AP11: 40.2 | AQ11: 0.4740740741 | AR11: W | AS11: 94 | AT11: 94
